Workbook

Sheet Instructions
A1: Редакция: июль 2022 г.
B3: Настоящее практическое пособие для рабочего инструмента по эпиднадзору и обмену информацией (РИ ЭОИ) следует использовать вместе с руководством по РИ ЭОИ, доступным по ссылке: https://www.fao.org/documents/card/en/c/cc0716en
B6: Рабочий инструмент по эпиднадзору и обмену информацией
B8: ПРАКТИЧЕСКОЕ ПОСОБИЕ РИ ЭОИ
B10: Практическое пособие РИ ЭОИ является основной частью Рабочего инструмента по эпиднадзору и обмену информацией (РИ ЭОИ). РИ ЭОИ обеспечивает поддержку национальным органам государственного управления в их работе по созданию или укреплению межотраслевой координированной системы эпиднадзора и обмена информацией (ЭОИ) в отношении зоонозов на основе концепции «Единое здоровье». РИ ЭОИ был разработан в рамках трехстороннего сотрудничества (ФАО, ВОЗ и МЭБ) в целях создания рабочих инструментов для оказания помощи странам в реализации рекомендаций, содержащихся в Трехстороннем руководстве по зоонозам (ТРЗ), и укреплению усилий стран по применению подхода «Единое здоровье» к решению проблемы зоонозов. Практическое пособие РИ ЭОИ помогает пользователям применять поэтапный подход для оценки степени развития в стране координированной системы эпиднадзора и обмена информацией с использованием пяти этапов развития потенциала по координации эпиднадзора за зоонозами, разбитых на три раздела: Раздел 1. Предварительное планирование; Раздел 2. Оценка; Планирование; Внедрение; Раздел 3. Мониторинг и оценка. Данные разделы содержат пакет из 32 различных мероприятий по развитию ЭОИ, объединенных в 14 категорий. После прохождения всех этапов оценки пользователи переходят к процессу планирования, во время которого с помьщью практического пособия РИ ЭОИ они определяют мероприятия, которые создадут или укрепят национальную систему эпиднадзора за зоонозами и обмена информацией, с составлением списка предлагаемых ресурсов и инструментов для выполнения каждого этапа, а также разрабатывают дорожную карту для реализации этих мероприятий.
B35: Инструкции
B36: Перед использованием практического пособия РИ ЭОИ пользователям настоятельно рекомендуется прочитать руководство по РИ ЭОИ и данные инструкции. Оценка • После прочтения инструкций начните работу со страницы «Карта», воспользовавшись навигационным меню слева или нажав на кнопку «Далее: Карта» в правом верхнем или нижнем углу. На ней схематически представлен процесс оценки и возможен быстрый доступ к различным этапам процесса применения РИ ЭОИ в практическом пособии. Оценку можно проводить последовательно в соответствии с порядком областей деятельности в каждом разделе с помощью кнопки «Далее» в нижней части страниц или в предпочтительном для пользователя порядке, непосредственно переходя к намеченным областям через «Карту». • Начните оценку с раздела 1: этап «Предварительное планирование», нажав на кнопку «Раздел I». - Выполните процесс оценки таким же образом для уровня 2 и уровня 3. Обратите внимание, что некоторые мероприятия предполагают только один или два уровня потенциала, например, только уровень 1 или уровень 1 и уровень 3. - Поле для комментариев можно использовать для записи важных моментов обсуждения. - После завершения всех мероприятий для одной области перейдите к следующей области, нажав кнопку «Далее» или используя навигацию по карте. - После прохождения всех областей в одном разделе перейдите к следующему разделу с помощью кнопки «Далее» или через страницу карты и повторите процесс. Пользователи могут вернуться к предыдущей области с помощью кнопки «Назад». - После заполнения всех трех разделов при необходимости вернитесь на страницу «Карта» для корректировки любых оценок. Просмотр результатов оценки • После завершения оценки перейдите на страницу «Результаты оценки», используя навигационное меню слева или нажав на кнопку «Далее: Результаты оценки» на странице последней области деятельности «Стандарты качества данных», или с помощью карты. • Просмотрите «Результаты оценки». Данная страница отражает следующий уровень потенциала (уровень 1, уровень 2 или уровень 3) 32 оцениваемых мероприятий в качестве «целевого уровня потенциала», который страна должна достичь на следующей стадии. Например, если в отношении конкретного мероприятия достигнут уровень потенциала 1, то целевым уровнем потенциала будет «уровень 2». Мероприятие считается полностью реализованным и отвечающим установленным требованиям, если страна достигла 3-го уровня потенциала. • Если для уровня целевого потенциала в качестве результата указано «Н/П», это означает, что оценка для данного мероприятия не завершена, поэтому вернитесь на страницу оценки данного мероприятия, используя соответствующую кнопку справа рядом с колонкой «Руководство по ресурсам». Выбор инструментов и ресурсов для обеспечения выполнения мероприятий • Перейдите на страницу «Обзор параметров» при помощи навигационного меню. Присвойте балльную оценку (от 0 до 100) каждому из девяти параметров, описывающих инструменты и ресурсы, в соответствующем поле справа от описания параметра. Сделайте это таким образом, чтобы в общей сложности по всем девяти параметрам было распределено 100 баллов, взвешенных в соответствии с их относительной важностью при выборе ресурса для пользователя. • После завершения обзора параметров перейдите на страницу «Результаты оценки» практического пособия РИ ЭОИ с помощью кнопки навигационного меню «Результаты оценки» или кнопки «Далее: Результаты оценки», расположенной внизу. - Стрелки для каждого мероприятия на странице «Результаты оценки» обозначают ссылки на «страницы с ресурсами» с перечнем рекомендуемых ресурсов и инструментов, которые могут помочь в достижение целевого уровня потенциала для данного мероприятия. Переход к странице с ресурсами для каждого мероприятия осуществляется по соответствующей ссылке. - Страницы ресурсов содержат список ресурсов для каждого мероприятия, сгруппированных по назначению. «Наиболее подходящие» ресурсы — это ресурсы, основное предназначение или функция которых заключаются в оказании пользователю непосредственной поддержки в выполнении определенного мероприятия. А «Другие полезные» ресурсы — это ресурсы, которые частично или опосредованно помогают пользователю в выполнении определенного мероприятия. - Для каждого включенного в список ресурса на страницах ресурсов дано его краткое описание, а также информация по виду и общей направленности ресурса: ориентирован ли ресурс на конкретный сектор или основан на принципах концепции «Единое здоровье»; направлен ли он на борьбу с конкретным заболеванием или же универсален для всех зоонозов либо инфекционных заболеваний. - На странице также указаны балльные оценки каждого инструмента от рецензентов из команды разработчиков РИ ЭОИ, с тем чтобы помочь пользователям в процессе выбора ресурсов. Для облегчения выбора представлены как исходные баллы, полученные в процессе оценки инструмента, так и взвешенные оценки, основанные на баллах, присвоенных пользователями каждому из девяти параметров. - Соответствующая кнопка «Перейти в реестр ресурсов» обеспечивает доступ к более подробной информации по каждому ресурсу в реестре ресурсов. - Выберите один или два ресурса-кандидата для содействия в выполнении каждого мероприятия на основе информации, представленной по каждому ресурсу. • Используя навигационное меню, перейдите на страницу «Выбор ресурсов». Внесите выбранные ресурсы в колонку «Ресурс 1», используя выпадающий список для каждого мероприятия. Для записи второго варианта ресурса, если он выбран, используйте колонку «Ресурс 2». Приоритизация и дорожная карта • Используя навигационное меню, перейдите на страницу «Приоритизация и дорожная карта». - В отношении каждого целевого мероприятия выберите из выпадающего списка время и приоритетность осуществления (например: «необходимо осуществить сейчас — в течение 1 года» — высокий приоритет; «необходимо начать в течение 2–3 лет» — средний приоритет; «необходимо начать в течение более 3 лет» — низкий приоритет). Если мероприятие оценивается как завершенное, выберите «завершено» из выпадающего списка и не рассматривайте его при обсуждении. - Определите и согласуйте сроки осуществления (например: 3 года или 5 лет) плана развития системы ЭОИ. - Выберите мероприятия, которые будут осуществляться в рамках данного плана развития системы ЭОИ исходя из времени и приоритетности их выполнения и с учетом согласованных сроков плана (например: для 3-летнего плана можно выбрать мероприятия с высоким и средним приоритетом). - В отношении мероприятий, которые было решено не включать в план, выберите «не включать в этот план» из выпадающего списка. - Измените диаграмму Ганта в соответствии с выбранным сроком плана развития (например: 5 лет, начиная с 1 квартала 2020 г.). - В отношении каждого целевого мероприятия, выбранного для плана развития системы ЭОИ, определите сроки выполнения, включая продолжительность мероприятия (например: один квартал, два квартала или до конца периода планирования) и время его начала (например: первый квартал года 1) с учетом времени выполнения и приоритетности, ранее определенных для данного мероприятия. Укажите эти сроки на диаграмме Ганта с помощью цветовой палитры и выпадающих списков в столбцах «Квартал начала мероприятия» и «Продолжительность мероприятия». План развития • Используя навигационное меню, перейдите на страницу «План развития». В таблице плана развития в результате сделанного выбора на предыдущих страницах и согласно описанию выше автоматически отражаются следующие элементы: - Мероприятие и целевой уровень потенциала - Выбранные ресурсы и инструменты - Время начала мероприятия - Продолжительность мероприятия Заполните оставшиеся столбцы по каждому мероприятию, включая перечень действий, необходимых для его выполнения, распределение функций и обязанностей по выполнению этих действий, ожидаемые трудности, координационные центры, а также индикаторы для мониторинга и презентации достижений и привлечения ресурсов и поддержки. Проверьте и при необходимости скорректируйте все элементы, отраженные в различных рабочих листах.
B135: ©Всемирная организация здравоохранения (ВОЗ), Продовольственная и сельскохозяйственная организация Объединенных Наций (ФАО) и Всемирная организация по охране здоровья животных (МЭБ), 2022 г. Все права защищены.

Sheet Map
B3: Рабочий инструмент по эпиднадзору и обмену информацией
B6: ПРАКТИЧЕСКОЕ ПОСОБИЕ РИ ЭОИ: КАРТА

Sheet Attribute Survey
B2: Обзор параметров
B6: Вы завершили оценку по всем трем разделам! Перед тем как переходить к странице «Результаты», оцените параметры любого конкретного ресурса согласно их релевантности для вашего применения. На данном этапе вы можете присвоить взвешенные значения 9 разным параметрам, используемым для оценки ресурсов в РИ ЭОИ. При этом следует исходить из их относительной важности для вас при выборе этих ресурсов. Присвоенные значения позволят рассчитать скорректированную пользователем общую оценку для каждого ресурса на основе балльных оценок, присвоенных командой рецензентов РИ ЭОИ. Благодаря взвешенной оценке вы сможете лучше определить ресурсы, соответствующие вашим предпочтениям.
B14: Необходимо присвоить балльную оценку (от 1 до 100) каждому описанному ниже параметру так, чтобы общая сумма баллов по всем параметрам составила 100.
C18: ПАРАМЕТР | H18: ОПИСАНИЕ ПАРАМЕТРА | S18: БАЛЛЬНАЯ ОЦЕНКА (от 1 до 100, чтобы в сумме получилось 100) | V18: ←Каждый балл должен быть от 1 до 100, чтобы общая сумма по всем параметрам получилась 100!
C22: Доступность | H22: Логистическое обеспечение доступа и использования инструмента; оценивается открытость или доступность, стоимость и поддержка пользователей | S22: 0
C26: Язык | H26: Наличие ресурса на разных языках и простота перевода ресурса на другие языки | S26: 0
C30: Простота использования | H30: Уровень сложности и трудности навигации и освоения ресурса, а также технические или операционные навыки, необходимые для использования ресурса | S30: 0
C34: Гибкость | H34: Возможность адаптации инструмента для использования в различных контекстах и сценариях | S34: 0
C38: Потребности в данных | H38: Требования к работе систем и устройств для обеспечения функционирования ресурса, а также хранение и безопасность данных | S38: 0
C42: Анализ данных | H42: Способы обработки и проверки качества данных, в том числе возможность получения выходных материалов и отчетности | S42: 0
C46: Приемлемость | H46: Показатели приемлемости ресурса для использования на основе публикаций, отчетов и/или количество пилотных проектов и внедрений | S46: 0
C50: «Единое здоровье» | H50: Способность ресурса содействовать коммуникации и сотрудничеству между различными секторами в рамках подхода «Единое здоровье» (здравоохранение человека, охрана здоровья животных, охрана окружающей среды и заинтересованные партнеры) | S50: 0
C54: Воздействие | H54: Фактические данные о достигнутых улучшениях в сфере «Единого здоровья» или потенциала в области эпиднадзора в результате применения ресурса, основанные на показателях мониторинга и оценки или примерах из прошлого | S54: 0
C58: ИТОГО | S58: =SUM(S22:T56) -> 0

Sheet Results
B2: РЕЗУЛЬТАТЫ ОЦЕНКИ
B6: ЭТАП | G6: МЕРОПРИЯТИЕ | K6: Описание мероприятия | T6: Целевой уровень потенциала | X6: Индикатор уровня | Y6: Руководство по ресурсам
B9: Предварительное планирование | G9: =""&Activities!B2 -> ПП-1 Предварительное выявление заинтересованных сторон | K9: =IF('Focal Points'!O44=0,AE9,IF(AND('Focal Points'!O44=1,'Focal Points'!X44=0),AE10,IF(AND('Focal Points'!X44=1,'Focal Points'!AG44=0),AE11,"Complete"))) -> Во всех участвующих секторах на национальном уровне определены координаторы, «лидеры» или технические рабочие группы для планирования внедрения координированного эпиднадзора | T9: =IF('Focal Points'!O44="","N/A",IF(AND('Focal Points'!O44=0),"1",IF(AND('Focal Points'!O44=1,'Focal Points'!X44=0),"2",IF(AND('Focal Points'!X44=1,'Focal Points'!AG44=0),"3","Complete")))) -> N/A | X9: → | Y9: Посмотреть ресурсы уровня 1 | AE9: =Activities!C2 -> Во всех участвующих секторах на национальном уровне определены координаторы, «лидеры» или технические рабочие группы для планирования внедрения координированного эпиднадзора
X10: → | Y10: Ресурсов уровня 2 нет (смотрите уровень 1) | AE10: =Activities!C3 -> Во всех участвующих секторах на всех уровнях в стране определены координаторы, «лидеры» или технические рабочие группы для планирования внедрения координированного эпиднадзора
X11: → | Y11: Посмотреть ресурсы уровня 3 | AE11: =Activities!C4 -> Координаторы, «лидеры» или технические рабочие группы (включая выявленных координаторов или «лидеров») в области координированного эпиднадзора институализированы (например: в рамках руководящего органа, такого как МКМ)
G13: =""&Activities!B5 -> ПП-2 Приоритизация | K13: =IF(Prioritization!O44=0,AE13,IF(AND(Prioritization!O44=1,Prioritization!X44=0),AE14,IF(AND(Prioritization!X44=1,Prioritization!AG44=0),AE15,"Complete"))) -> Существует список приоритетных зоонозов, подлежащих включению в координированную систему эпиднадзора | T13: =IF(Prioritization!O44="","N/A",IF(AND(Prioritization!O44=0),"1",IF(AND(Prioritization!O44=1,Prioritization!X44=0),"2",IF(AND(Prioritization!X44=1,Prioritization!AG44=0),"3","Complete")))) -> N/A | X13: → | Y13: Посмотреть ресурсы уровня 1 | AE13: =Activities!C5 -> Существует список приоритетных зоонозов, подлежащих включению в координированную систему эпиднадзора
X14: → | Y14: Ресурсов уровня 2 нет (смотрите уровень 1) | AE14: =Activities!C6 -> Список зоонозов широко распространен на субнациональном уровне и уровне сообществ
X15: → | Y15: Ресурсов уровня 3 нет (смотрите уровень 1) | AE15: =Activities!C7 -> Список зоонозов составляется с использованием межотраслевого подхода «Единое здоровье». Такой подход предполагает участие всех соответствующих секторов в основанном на фактических данных, прозрачном и воспроизводимом процессе определения приоритетов
G17: =""&Activities!B8 -> ПП-3 Постановка целей | K17: =IF('Goal Setting'!O44=0,AE17,IF(AND('Goal Setting'!O44=1,'Goal Setting'!X44=0),AE18,IF(AND('Goal Setting'!X44=1,'Goal Setting'!AG44=0),AE19,"Complete"))) -> Цель(и), функции и обязанности всех участвующих секторов координированной системы эпиднадзора согласованы на национальном уровне | T17: =IF('Goal Setting'!O44="","N/A",IF(AND('Goal Setting'!O44=0),"1",IF(AND('Goal Setting'!O44=1,'Goal Setting'!X44=0),"2",IF(AND('Goal Setting'!X44=1,'Goal Setting'!AG44=0),"3","Complete")))) -> N/A | X17: → | Y17: Посмотреть ресурсы уровня 1 | AE17: =Activities!C8 -> Цель(и), функции и обязанности всех участвующих секторов координированной системы эпиднадзора согласованы на национальном уровне
X18: → | Y18: Посмотреть ресурсы уровня 2 | AE18: =Activities!C9 -> Цель(и), функции и обязанности всех участвующих секторов координированной системы эпиднадзора согласованы и охватывают все уровни в стране
X19: → | Y19: Посмотреть ресурсы уровня 3 | AE19: =Activities!C10 -> Цель(и), функции и обязанности в рамках координированной системы эпиднадзора пересмотрены для учета текущих потребностей координированной системы эпиднадзора
B21: Оценка | G21: =""&Activities!G2 -> О-1 Картирование заинтересованных сторон | K21: =IF(Stakeholders!O44=0,AE21,IF(AND(Stakeholders!O44=1,Stakeholders!X44=0),AE22,IF(AND(Stakeholders!X44=1,Stakeholders!AG44=0),AE23,"Complete"))) -> Заинтересованные стороны в области эпиднадзора, эпидемиологии, лабораторных исследований и обмена информацией выявлены | T21: =IF(Stakeholders!O44="","N/A",IF(AND(Stakeholders!O44=0),"1",IF(AND(Stakeholders!O44=1,Stakeholders!X44=0),"2",IF(AND(Stakeholders!X44=1,Stakeholders!AG44=0),"3","Complete")))) -> N/A | X21: → | Y21: Посмотреть ресурсы уровня 1 | AE21: =Activities!H2 -> Заинтересованные стороны в области эпиднадзора, эпидемиологии, лабораторных исследований и обмена информацией выявлены
X22: → | Y22: Посмотреть ресурсы уровня 2 | AE22: =Activities!H3 -> В ходе анализа заинтересованных сторон определены участники на всех уровнях в стране
X23: → | Y23: Посмотреть ресурсы уровня 3 | AE23: =Activities!H4 -> Функции и обязанности заинтересованных сторон институционализированы и включены в политические документы
G25: =""&Activities!G5 -> О-2 Оценка взаимосвязей в системе эпиднадзора | K25: =IF('Plans & Organization'!O44=0,AE25,IF(AND('Plans & Organization'!O44=1,'Plans & Organization'!X44=0),AE26,IF(AND('Plans & Organization'!X44=1,'Plans & Organization'!AG44=0),AE27,"Complete"))) -> Оценка взаимосвязей между существующими системами эпиднадзора за приоритетными зоонозами проведена на межотраслевом уровне | T25: =IF('Plans & Organization'!O44="","N/A",IF(AND('Plans & Organization'!O44=0),"1",IF(AND('Plans & Organization'!O44=1,'Plans & Organization'!X44=0),"2",IF(AND('Plans & Organization'!X44=1,'Plans & Organization'!AG44=0),"3","Complete")))) -> N/A | X25: → | Y25: Посмотреть ресурсы уровня 1 | AE25: =Activities!H5 -> Оценка взаимосвязей между существующими системами эпиднадзора за приоритетными зоонозами проведена на межотраслевом уровне
X26: → | Y26: Посмотреть ресурсы уровня 2 | AE26: =Activities!H6 -> Оценка взаимосвязей между существующими системами эпиднадзора проведена на межотраслевом уровне и на всех уровнях в стране
X27: → | Y27: Посмотреть ресурсы уровня 3 | AE27: =Activities!H7 -> Взаимосвязи между существующими системами эпиднадзора проанализированы и признаны соответствующими целям координированной системы эпиднадзора
G29: =""&Activities!G8 -> О-3 Оценка нормативно-правовой базы | K29: =IF('Policy & Legal'!O44=0,AE29,IF(AND('Policy & Legal'!O44=1,'Policy & Legal'!AG44=0),AE31,"Complete")) -> Оценка нормативно-правовой базы (правил, политики, руководящих принципов и положений, включая международные стандарты), регулирующей стандарты этики и конфиденциальности в области эпиднадзора и обмена данными, проведена | T29: =IF('Policy & Legal'!O44="","N/A",IF(AND('Policy & Legal'!O44=0),"1",IF(AND('Policy & Legal'!O44=1,'Policy & Legal'!AG44=0),"3","Complete"))) -> N/A | X29: → | Y29: Посмотреть ресурсы уровня 1 | AE29: =Activities!H8 -> Оценка нормативно-правовой базы (правил, политики, руководящих принципов и положений, включая международные стандарты), регулирующей стандарты этики и конфиденциальности в области эпиднадзора и обмена данными, проведена
X30: →
X31: → | Y31: Ресурсов уровня 3 нет (смотрите уровень 1) | AE31: =Activities!H9 -> Оценка нормативно-правовой базы (правил, политики, руководящих принципов и положений, включая международные стандарты), регулирующей стандарты этики и конфиденциальности в области эпиднадзора и обмена данными, проводится на всех уровнях в стране
G33: =""&Activities!G16 -> О-4 Картирование инфраструктуры | K33: =IF('Plans & Organization'!O60=0,AE33,IF(AND('Plans & Organization'!O60=1,'Plans & Organization'!X60=0),AE34,IF(AND('Plans & Organization'!X60=1,'Plans & Organization'!AG60=0),AE35,"Complete"))) -> В результате проведения базового картирования инфраструктуры (в соответствие с ТРЗ, гл. 4.1) были описаны структура и взаимосвязи внутри секторов и между ними | T33: =IF('Plans & Organization'!O60="","N/A",IF(AND('Plans & Organization'!O60=0),"1",IF(AND('Plans & Organization'!O60=1,'Plans & Organization'!X60=0),"2",IF(AND('Plans & Organization'!X60=1,'Plans & Organization'!AG60=0),"3","Complete")))) -> N/A | X33: → | Y33: Посмотреть ресурсы уровня 1 | AE33: =Activities!H16 -> В результате проведения базового картирования инфраструктуры (в соответствие с ТРЗ, гл. 4.1) были описаны структура и взаимосвязи внутри секторов и между ними
X34: → | Y34: Посмотреть ресурсы уровня 2 | AE34: =Activities!H17 -> В ходе картирования инфраструктуры описано большинство подлежащих картированию областей (в соответствие с ТРЗ, гл. 4.1)
X35: → | Y35: Ресурсов уровня 3 нет (смотрите уровень 2) | AE35: =Activities!H18 -> Полное картирование инфраструктуры использовано для описания всех подлежащих картированию областей (в соответствие с ТРЗ, гл. 4.1).
G37: =""&Activities!G19 -> О-5 Оценка экономических потребностей | K37: =IF('Budgets & Finances'!O44=0,AE37,IF(AND('Budgets & Finances'!O44=1,'Budgets & Finances'!AG44=0),AE39,"Complete")) -> Экономические оценки были использованы для определения национальных финансовых потребностей координированной системы эпиднадзора | T37: =IF('Budgets & Finances'!O44="","N/A",IF(AND('Budgets & Finances'!O44=0),"1",IF(AND('Budgets & Finances'!O44=1,'Budgets & Finances'!AG44=0),"3","Complete"))) -> N/A | X37: → | Y37: Посмотреть ресурсы уровня 1 | AE37: =Activities!H19 -> Экономические оценки были использованы для определения национальных финансовых потребностей координированной системы эпиднадзора
X39: → | Y39: Посмотреть ресурсы уровня 3 | AE39: =Activities!H20 -> Экономические оценки проведены для определения финансовых потребностей на всех уровнях в стране в отношении координированной системы эпиднадзора
G41: =""&Activities!G21 -> О-6 Оценка лабораторного потенциала | K41: =IF(Laboratory!O44=0,AE41,IF(AND(Laboratory!O44=1,Laboratory!X44=0),AE42,IF(AND(Laboratory!X44=1,Laboratory!AG44=0),AE43,"Complete"))) -> В результате проведения оценок лабораторного потенциала были определены квалифицированные национальные или международные референс-лаборатории, которые могут проводить тестирование для поддержки деятельности в рамках координированного эпиднадзора | T41: =IF(Laboratory!O44="","N/A",IF(AND(Laboratory!O44=0),"1",IF(AND(Laboratory!O44=1,Laboratory!X44=0),"2",IF(AND(Laboratory!X44=1,Laboratory!AG44=0),"3","Complete")))) -> N/A | X41: → | Y41: Посмотреть ресурсы уровня 1 | AE41: =Activities!H21 -> В результате проведения оценок лабораторного потенциала были определены квалифицированные национальные или международные референс-лаборатории, которые могут проводить тестирование для поддержки деятельности в рамках координированного эпиднадзора
X42: → | Y42: Посмотреть ресурсы уровня 2 | AE42: =Activities!H22 -> В результате проведения оценок лабораторного потенциала были определены квалифицированные лаборатории на всех уровнях (включая международный), которые могут проводить тестирование для поддержки мероприятий в рамках координированного эпиднадзора
X43: → | Y43: Ресурсов уровня 3 нет (смотрите уровень 2) | AE43: =Activities!H23 -> В результате проведения оценок лабораторного потенциала выявлена сеть квалифицированных лабораторий, которые могут проводить тестирование для поддержки мероприятий в рамках координированного эпиднадзора
G45: =""&Activities!G24 -> О-7 Лабораторная логистика и интерпретация результатов исследований | K45: =IF(Laboratory!O62=0,AE45,IF(AND(Laboratory!O62=1,Laboratory!X62=0),AE46,IF(AND(Laboratory!X62=1,Laboratory!AG62=0),AE47,"Complete"))) -> Поставки лабораторных материалов, транспортные цепочки и методы интерпретации результатов оценены на предмет согласования между участвующими секторами на национальном уровне | T45: =IF(Laboratory!O62="","N/A",IF(AND(Laboratory!O62=0),"1",IF(AND(Laboratory!O62=1,Laboratory!X62=0),"2",IF(AND(Laboratory!X62=1,Laboratory!AG62=0),"3","Complete")))) -> N/A | X45: → | Y45: Посмотреть ресурсы уровня 1 | AE45: =Activities!H24 -> Поставки лабораторных материалов, транспортные цепочки и методы интерпретации результатов оценены на предмет согласования между участвующими секторами на национальном уровне
X46: → | Y46: Посмотреть ресурсы уровня 2 | AE46: =Activities!H25 -> Поставки лабораторных материалов, транспортные цепочки и методы интерпретации результатов оценены на предмет согласования между участвующими секторами на всех уровнях в стране
X47: → | Y47: Ресурсов уровня 3 нет (смотрите уровень 2) | AE47: =Activities!H26 -> Степень согласованности способов поставок лабораторных материалов, транспортных цепочек и методов интерпретации результатов между участвующими секторами оценена и признана соответствующей целям координированной системы эпиднадзора
G49: =""&Activities!G27 -> О-8 Оценка кадровых ресурсов | K49: =IF(Workforce!O44=0,AE49,IF(AND(Workforce!O44=1,Workforce!AG44=0),AE51,"Complete")) -> Оценки кадровых ресурсов проведены для определения текущих требований, компетенций, потребностей и пробелов в области кадрового потенциала на национальном уровне | T49: =IF(Workforce!O44="","N/A",IF(AND(Workforce!O44=0),"1",IF(AND(Workforce!O44=1,Workforce!AG44=0),"3","Complete"))) -> N/A | X49: → | Y49: Посмотреть ресурсы уровня 1 | AE49: =Activities!H27 -> Оценки кадровых ресурсов проведены для определения текущих требований, компетенций, потребностей и пробелов в области кадрового потенциала на национальном уровне
X51: → | Y51: Посмотреть ресурсы уровня 3 | AE51: =Activities!H28 -> Оценка кадровых ресурсов проведена для определения текущих требований, компетенций, потребностей и пробелов в области кадрового потенциала на всех уровнях в стране
B53: Планирование | G53: =""&Activities!L2 -> ПЛ-1 Политическая воля | K53: =IF(Stakeholders!O66=0,AE53,IF(AND(Stakeholders!O66=1,Stakeholders!X66=0),AE54,IF(AND(Stakeholders!X66=1,Stakeholders!AG66=0),AE55,"Complete"))) -> Определены лица, принимающие решения в отношении создания координированной системы эпиднадзора | T53: =IF(Stakeholders!O66="","N/A",IF(AND(Stakeholders!O66=0),"1",IF(AND(Stakeholders!O66=1,Stakeholders!X66=0),"2",IF(AND(Stakeholders!X66=1,Stakeholders!AG66=0),"3","Complete")))) -> N/A | X53: → | Y53: Посмотреть ресурсы уровня 1 | AE53: =Activities!M2 -> Определены лица, принимающие решения в отношении создания координированной системы эпиднадзора
X54: → | Y54: Посмотреть ресурсы уровня 2 | AE54: =Activities!M3 -> Политическая поддержка координированной системы эпиднадзора сформирована, и ее сторонники имеются на всех страновых уровнях
X55: → | Y55: Посмотреть ресурсы уровня 3 | AE55: =Activities!M4 -> Имеется стратегия информационно-разъяснительной работы, которая служит основой для коммуникации с лицами, принимающими решения, по вопросам координированной системы эпиднадзора
G57: =""&Activities!L5 -> ПЛ-2 Общие элементы данных | K57: =IF('Data Storage & Sharing'!O44=0,AE57,IF(AND('Data Storage & Sharing'!O44=1,'Data Storage & Sharing'!X44=0),AE58,IF(AND('Data Storage & Sharing'!X44=1,'Data Storage & Sharing'!AG44=0),AE59,"Complete"))) -> В каждом участвующем секторе общие элементы данных для достижения общих аналитических целей координированной системы эпиднадзора определены и согласованы на национальном уровне | T57: =IF('Data Storage & Sharing'!O44="","N/A",IF(AND('Data Storage & Sharing'!O44=0),"1",IF(AND('Data Storage & Sharing'!O44=1,'Data Storage & Sharing'!X44=0),"2",IF(AND('Data Storage & Sharing'!X44=1,'Data Storage & Sharing'!AG44=0),"3","Complete")))) -> N/A | X57: → | Y57: Посмотреть ресурсы уровня 1 | AE57: =Activities!M5 -> В каждом участвующем секторе общие элементы данных для достижения общих аналитических целей координированной системы эпиднадзора определены и согласованы на национальном уровне
X58: → | Y58: Посмотреть ресурсы уровня 2 | AE58: =Activities!M6 -> В каждом участвующем секторе общие элементы данных для достижения общих аналитических целей координированной системы эпиднадзора определены и согласованы на всех уровнях в стране
X59: → | Y59: Посмотреть ресурсы уровня 3 | AE59: =Activities!M7 -> Общие элементы данных стандартизированы во всех участвующих секторах на основе общих аналитических целей координированной системы эпиднадзора и отвечают международным стандартам данных
G61: =""&Activities!L8 -> ПЛ-3 Стратегические планы и рамочные документы по координированному эпиднадзору | K61: =IF('Plans & Organization'!O82=0,AE61,IF(AND('Plans & Organization'!O82=1,'Plans & Organization'!X82=0),AE62,IF(AND('Plans & Organization'!X82=1,'Plans & Organization'!AG82=0),AE63,"Complete"))) -> В целях планирования проведен межотраслевой сбор и обзор национальных стратегических документов (стратегий, рамочных программ и стратегических планов), относящихся к координированной системе эпиднадзора | T61: =IF('Plans & Organization'!O82="","N/A",IF(AND('Plans & Organization'!O82=0),"1",IF(AND('Plans & Organization'!O82=1,'Plans & Organization'!X82=0),"2",IF(AND('Plans & Organization'!X82=1,'Plans & Organization'!AG82=0),"3","Complete")))) -> N/A | X61: → | Y61: Посмотреть ресурсы уровня 1 | AE61: =Activities!M8 -> В целях планирования проведен межотраслевой сбор и обзор национальных стратегических документов (стратегий, рамочных программ и стратегических планов), относящихся к координированной системе эпиднадзора
X62: → | Y62: Посмотреть ресурсы уровня 2 | AE62: =Activities!M9 -> Национальные стратегические документы (стратегии, рамочные программы и стратегические планы) по координированной системе эпиднадзора сведены воедино и согласованы на основе результатов оценки на всех уровнях в стране
X63: → | Y63: Посмотреть ресурсы уровня 3 | AE63: =Activities!M10 -> Пересмотренные стратегические документы (стратегии, рамочные программы и стратегические планы) по координированной системе эпиднадзора приведены в соответствие с международными стандартами и рекомендациями
G65: =""&Activities!L11 -> ПЛ-4 Национальные оперативные планы | K65: =IF('Plans & Organization'!O98=0,AE65,IF(AND('Plans & Organization'!O98=1,'Plans & Organization'!X98=0),AE66,IF(AND('Plans & Organization'!X98=1,'Plans & Organization'!AG98=0),AE67,"Complete"))) -> В целях планирования проведен межотраслевой сбор и обзор национальных оперативных планов и других важные документов (включая планы эпиднадзора, определения случаев, протоколы и стандартные операционные процедуры), относящихся к координированной системе эпиднадзора | T65: =IF('Plans & Organization'!O98="","N/A",IF(AND('Plans & Organization'!O98=0),"1",IF(AND('Plans & Organization'!O98=1,'Plans & Organization'!X98=0),"2",IF(AND('Plans & Organization'!X98=1,'Plans & Organization'!AG98=0),"3","Complete")))) -> N/A | X65: → | Y65: Посмотреть ресурсы уровня 1 | AE65: =Activities!M11 -> В целях планирования проведен межотраслевой сбор и обзор национальных оперативных планов и других важные документов (включая планы эпиднадзора, определения случаев, протоколы и стандартные операционные процедуры), относящихся к координированной системе эпиднадзора
X66: → | Y66: Посмотреть ресурсы уровня 2 | AE66: =Activities!M12 -> Пересмотренные оперативные планы и другие важные документы (включая планы эпиднадзора, определения случаев, протоколы и стандартные операционные процедуры), относящиеся к координированной системе эпиднадзора и обмена информацией, утверждены всеми ведомствами, осуществляющими эпиднадзор на всех уровнях в стране
X67: → | Y67: Посмотреть ресурсы уровня 3 | AE67: =Activities!M13 -> Пересмотренные оперативные планы (включая планы эпиднадзора, определения случаев, протоколы и стандартные операционные процедуры), относящиеся к координированной системе эпиднадзора, приведены в соответствие с международными руководящими указаниями и рекомендациями
G69: =""&Activities!L14 -> ПЛ-5 Финансовое планирование | K69: =IF('Budgets & Finances'!O66=0,AE69,IF(AND('Budgets & Finances'!O66=1,'Budgets & Finances'!X66=0),AE70,IF(AND('Budgets & Finances'!X66=1,'Budgets & Finances'!AG66=0),AE71,"Complete"))) -> Имеются бюджетный план и механизм распределения средств для осуществления координированного эпиднадзора на национальном уровне | T69: =IF('Budgets & Finances'!O66="","N/A",IF(AND('Budgets & Finances'!O66=0),"1",IF(AND('Budgets & Finances'!O66=1,'Budgets & Finances'!X66=0),"2",IF(AND('Budgets & Finances'!X66=1,'Budgets & Finances'!AG66=0),"3","Complete")))) -> N/A | X69: → | Y69: Посмотреть ресурсы уровня 1 | AE69: =Activities!M14 -> Имеются бюджетный план и механизм распределения средств для осуществления координированного эпиднадзора на национальном уровне
X70: → | Y70: Ресурсов уровня 2 нет (смотрите уровень 1) | AE70: =Activities!M15 -> Имеются бюджетный план и механизм распределения средств для осуществления координированного эпиднадзора на всех страновых уровнях
X71: → | Y71: Ресурсов уровня 3 нет (смотрите уровень 1) | AE71: =Activities!M16 -> Бюджетный план и механизм распределения средств подвергнуты оценке и признаны соответствующими целям координированной системы эпиднадзора
G73: =""&Activities!L17 -> ПЛ-6 Планирование в области кадровых ресурсов | K73: =IF(Workforce!O66=0,AE73,IF(AND(Workforce!O66=1,Workforce!X66=0),AE74,IF(AND(Workforce!X66=1,Workforce!AG66=0),AE75,"Complete"))) -> План обучения и профессиональной подготовки кадров для координированной системы эпиднадзора разработан на основе оценки кадровых ресурсов на национальном уровне | T73: =IF(Workforce!O66="","N/A",IF(AND(Workforce!O66=0),"1",IF(AND(Workforce!O66=1,Workforce!X66=0),"2",IF(AND(Workforce!X66=1,Workforce!AG66=0),"3","Complete")))) -> N/A | X73: → | Y73: Посмотреть ресурсы уровня 1 | AE73: =Activities!M17 -> План обучения и профессиональной подготовки кадров для координированной системы эпиднадзора разработан на основе оценки кадровых ресурсов на национальном уровне
X74: → | Y74: Ресурсов уровня 2 нет (смотрите уровень 1) | AE74: =Activities!M18 -> План обучения и профессиональной подготовки кадров для координированной системы эпиднадзора разработан на основе оценки кадровых ресурсов для всех страновых уровней
X75: → | Y75: Ресурсов уровня 3 нет (смотрите уровень 1) | AE75: =Activities!M19 -> Образование и профессиональная подготовка кадров включены в процесс национального межотраслевого кадрового планирования с учетом международных компетенций и оценок
G77: =""&Activities!L20 -> ПЛ-7 Обеспечение нормативно-правовой базы | K77: =IF('Policy & Legal'!O66=0,AE77,IF(AND('Policy & Legal'!O66=1,'Policy & Legal'!X66=0),AE78,IF(AND('Policy & Legal'!X66=1,'Policy & Legal'!AG66=0),AE79,"Complete"))) -> По результатам оценки необходимые нормативно-правовые рамки (правила, стратегии, руководства и положения, включая международные стандарты) стандартизированы во всех секторах на национальном уровне | T77: =IF('Policy & Legal'!O66="","N/A",IF(AND('Policy & Legal'!O66=0),"1",IF(AND('Policy & Legal'!O66=1,'Policy & Legal'!X66=0),"2",IF(AND('Policy & Legal'!X66=1,'Policy & Legal'!AG66=0),"3","Complete")))) -> N/A | X77: → | Y77: Посмотреть ресурсы уровня 1 | AE77: =Activities!M20 -> По результатам оценки необходимые нормативно-правовые рамки (правила, стратегии, руководства и положения, включая международные стандарты) стандартизированы во всех секторах на национальном уровне
X78: → | Y78: Ресурсов уровня 2 нет (смотрите уровень 1) | AE78: =Activities!M21 -> По результатам оценки необходимые нормативно-правовые рамки (правила, стратегии, руководства и положения, включая международные стандарты) стандартизированы во всех секторах на всех страновых уровнях
X79: → | Y79: Посмотреть ресурсы уровня 3 | AE79: =Activities!M22 -> Пересмотренные нормативно-правовые рамки для координированной системы эпиднадзора приведены в соответствие с международными стандартами и рекомендациями.
G81: =""&Activities!L23 -> ПЛ-8 Планирование скоординированной коммуникации | K81: =IF('Communication & Reporting'!O44=0,AE81,IF(AND('Communication & Reporting'!O44=1,'Communication & Reporting'!X44=0),AE82,IF(AND('Communication & Reporting'!X44=1,'Communication & Reporting'!AG44=0),AE83,"Complete"))) -> Проведено согласование коммуникационной терминологии и сообщений между всеми секторами, участвующими в координированной системе эпиднадзора на национальном уровне. | T81: =IF('Communication & Reporting'!O44="","N/A",IF(AND('Communication & Reporting'!O44=0),"1",IF(AND('Communication & Reporting'!O44=1,'Communication & Reporting'!X44=0),"2",IF(AND('Communication & Reporting'!X44=1,'Communication & Reporting'!AG44=0),"3","Complete")))) -> N/A | X81: → | Y81: Посмотреть ресурсы уровня 1 | AE81: =Activities!M23 -> Проведено согласование коммуникационной терминологии и сообщений между всеми секторами, участвующими в координированной системе эпиднадзора на национальном уровне.
X82: → | Y82: Посмотреть ресурсы уровня 2 | AE82: =Activities!M24 -> Согласованная коммуникационная терминология и сообщения между всеми секторами, участвующими в координированной системе эпиднадзора, доведены до всех уровней в стране
X83: → | Y83: Посмотреть ресурсы уровня 3 | AE83: =Activities!M25 -> Существует стратегия коммуникации и/или план коммуникации (включающий терминологию и формы сообщений), на основе которых осуществляется коммуникация с заинтересованными сторонами и населением в рамках координированной системы эпиднадзора
B85: Внедрение | G85: =""&Activities!Q2 -> В-1 Привлечение финансовых ресурсов | K85: =IF('Budgets & Finances'!O88=0,AE85,IF(AND('Budgets & Finances'!O88=1,'Budgets & Finances'!X88=0),AE86,IF(AND('Budgets & Finances'!X88=1,'Budgets & Finances'!AG88=0),AE87,"Complete"))) -> Имеется финансирование для осуществления координированного эпиднадзора на национальном уровне | T85: =IF('Budgets & Finances'!O88="","N/A",IF(AND('Budgets & Finances'!O88=0),"1",IF(AND('Budgets & Finances'!O88=1,'Budgets & Finances'!X88=0),"2",IF(AND('Budgets & Finances'!X88=1,'Budgets & Finances'!AG88=0),"3","Complete")))) -> N/A | X85: → | Y85: Посмотреть ресурсы уровня 1 | AE85: =Activities!R2 -> Имеется финансирование для осуществления координированного эпиднадзора на национальном уровне
X86: → | Y86: Посмотреть ресурсы уровня 2 | AE86: =Activities!R3 -> Финансирование для осуществления координированного эпиднадзора имеется на всех уровнях в стране
X87: → | Y87: Посмотреть ресурсы уровня 3 | AE87: =Activities!R4 -> Устойчивое финансирование (т. е. заложенное в национальный бюджет) выделено на мероприятия по координированному эпиднадзору, оценено и признано соответствующим целям координированной системы эпиднадзора
G89: =""&Activities!Q5 -> В-2 Привлечение кадровых ресурсов и заинтересованных сторон | K89: =IF(Stakeholders!O88=0,AE89,IF(AND(Stakeholders!O88=1,Stakeholders!X88=0),AE90,IF(AND(Stakeholders!X88=1,Stakeholders!AG88=0),AE91,"Complete"))) -> Координаторы или технические рабочие группы проводят совещания эпизодически | T89: =IF(Stakeholders!O88="","N/A",IF(AND(Stakeholders!O88=0),"1",IF(AND(Stakeholders!O88=1,Stakeholders!X88=0),"2",IF(AND(Stakeholders!X88=1,Stakeholders!AG88=0),"3","Complete")))) -> N/A | X89: → | Y89: Посмотреть ресурсы уровня 1 | AE89: =Activities!R5 -> Координаторы или технические рабочие группы проводят совещания эпизодически
X90: → | Y90: Посмотреть ресурсы уровня 2 | AE90: =Activities!R6 -> Координаторы или технические рабочие группы встречаются на регулярной основе и для решения приоритетных вопросов по мере их возникновения
X91: → | Y91: Посмотреть ресурсы уровня 3 | AE91: =Activities!R7 -> Технические рабочие группы регулярно проводят обзоры мероприятий по координированному эпиднадзору и ее оптимизацию
G93: =""&Activities!Q8 -> В-3 Обмен данными и информацией | K93: =IF('Data Storage & Sharing'!O65=0,AE93,IF(AND('Data Storage & Sharing'!O65=1,'Data Storage & Sharing'!X65=0),AE94,IF(AND('Data Storage & Sharing'!X65=1,'Data Storage & Sharing'!AG65=0),AE95,"Complete"))) -> Существует механизм обмена данными между секторами на национальном уровне | T93: =IF('Data Storage & Sharing'!O65="","N/A",IF(AND('Data Storage & Sharing'!O65=0),"1",IF(AND('Data Storage & Sharing'!O65=1,'Data Storage & Sharing'!X65=0),"2",IF(AND('Data Storage & Sharing'!X65=1,'Data Storage & Sharing'!AG65=0),"3","Complete")))) -> N/A | X93: → | Y93: Посмотреть ресурсы уровня 1 | AE93: =Activities!R8 -> Существует механизм обмена данными между секторами на национальном уровне
X94: → | Y94: Посмотреть ресурсы уровня 2 | AE94: =Activities!R9 -> Существует механизм обмена данными между секторами на всех страновых уровнях
X95: → | Y95: Посмотреть ресурсы уровня 3 | AE95: =Activities!R10 -> Существует доступный, функциональный и удобный для использования всеми участвующими секторами механизм обмена данными
G97: =""&Activities!Q11 -> В-4 Хранение данных | K97: =IF('Data Storage & Sharing'!O81=0,AE97,IF(AND('Data Storage & Sharing'!O81=1,'Data Storage & Sharing'!X81=0),AE98,IF(AND('Data Storage & Sharing'!X81=1,'Data Storage & Sharing'!AG81=0),AE99,"Complete"))) -> Существуют структура и место для хранения и ведения данных, получаемых из различных секторов, на национальном уровне. | T97: =IF('Data Storage & Sharing'!O81="","N/A",IF(AND('Data Storage & Sharing'!O81=0),"1",IF(AND('Data Storage & Sharing'!O81=1,'Data Storage & Sharing'!X81=0),"2",IF(AND('Data Storage & Sharing'!X81=1,'Data Storage & Sharing'!AG81=0),"3","Complete")))) -> N/A | X97: → | Y97: Посмотреть ресурсы уровня 1 | AE97: =Activities!R11 -> Существуют структура и место для хранения и ведения данных, получаемых из различных секторов, на национальном уровне.
X98: → | Y98: Посмотреть ресурсы уровня 2 | AE98: =Activities!R12 -> Существуют структура и место для хранения и ведения данных, получаемых из различных секторов, на всех уровнях в стране
X99: → | Y99: Посмотреть ресурсы уровня 3 | AE99: =Activities!R13 -> Существуют доступная, функциональная и используемая всеми участвующими секторами структура и место для хранения и ведения данных, получаемых из всех соответствующих секторов
G101: =""&Activities!Q14 -> В-5 Меры по обеспечению конфиденциальности и безопасности данных | K101: =IF('Data Storage & Sharing'!O97=0,AE101,IF(AND('Data Storage & Sharing'!O97=1,'Data Storage & Sharing'!X97=0),AE102,IF(AND('Data Storage & Sharing'!X97=1,'Data Storage & Sharing'!AG97=0),AE103,"Complete"))) -> Меры по обеспечению конфиденциальности и безопасности данных для защиты данных координированного эпиднадзора применяются на национальном уровне | T101: =IF('Data Storage & Sharing'!O97="","N/A",IF(AND('Data Storage & Sharing'!O97=0),"1",IF(AND('Data Storage & Sharing'!O97=1,'Data Storage & Sharing'!X97=0),"2",IF(AND('Data Storage & Sharing'!X97=1,'Data Storage & Sharing'!AG97=0),"3","Complete")))) -> N/A | X101: → | Y101: Посмотреть ресурсы уровня 1 | AE101: =Activities!R14 -> Меры по обеспечению конфиденциальности и безопасности данных для защиты данных координированного эпиднадзора применяются на национальном уровне
X102: → | Y102: Посмотреть ресурсы уровня 2 | AE102: =Activities!R15 -> Меры по обеспечению конфиденциальности и безопасности данных для защиты данных координированного эпиднадзора применяются на всех страновых уровнях
X103: → | Y103: Посмотреть ресурсы уровня 3 | AE103: =Activities!R16 -> Меры по обеспечению конфиденциальности и безопасности данных для защиты данных координированного эпиднадзора прошли оценку и соответствуют целям координированной системы эпиднадзора
G105: =""&Activities!Q17 -> В-6 Внедрение координированной системы эпиднадзора | K105: =IF('Plans & Organization'!O120=0,AE105,IF(AND('Plans & Organization'!O120=1,'Plans & Organization'!X120=0),AE106,IF(AND('Plans & Organization'!X120=1,'Plans & Organization'!AG120=0),AE107,"Complete"))) -> Запущен пилотный проект координированной системы эпиднадзора в целевых регионах | T105: =IF('Plans & Organization'!O120="","N/A",IF(AND('Plans & Organization'!O120=0),"1",IF(AND('Plans & Organization'!O120=1,'Plans & Organization'!X120=0),"2",IF(AND('Plans & Organization'!X120=1,'Plans & Organization'!AG120=0),"3","Complete")))) -> N/A | X105: → | Y105: Посмотреть ресурсы уровня 1 | AE105: =Activities!R17 -> Запущен пилотный проект координированной системы эпиднадзора в целевых регионах
X106: → | Y106: Посмотреть ресурсы уровня 2 | AE106: =Activities!R18 -> Координированная система эпиднадзора расширена до дополнительных областей исходя из пилотных внедрений
X107: → | Y107: Посмотреть ресурсы уровня 3 | AE107: =Activities!R19 -> Координированная системы эпиднадзора является общегосударственной программой
G109: =""&Activities!Q20 -> В-7 Обмен данными эпиднадзора | K109: =IF('Data Storage & Sharing'!O113=0,AE109,IF(AND('Data Storage & Sharing'!O113=1,'Data Storage & Sharing'!X113=0),AE110,IF(AND('Data Storage & Sharing'!X113=1,'Data Storage & Sharing'!AG113=0),AE111,"Complete"))) -> Обмен данными эпиднадзора осуществляется неофициально или официально эпизодически на национальном уровне | T109: =IF('Data Storage & Sharing'!O113="","N/A",IF(AND('Data Storage & Sharing'!O113=0),"1",IF(AND('Data Storage & Sharing'!O113=1,'Data Storage & Sharing'!X113=0),"2",IF(AND('Data Storage & Sharing'!X113=1,'Data Storage & Sharing'!AG113=0),"3","Complete")))) -> N/A | X109: → | Y109: Посмотреть ресурсы уровня 1 | AE109: =Activities!R20 -> Обмен данными эпиднадзора осуществляется неофициально или официально эпизодически на национальном уровне
X110: → | Y110: Посмотреть ресурсы уровня 2 | AE110: =Activities!R21 -> Обмен данными эпиднадзора осуществляется неофициально или официально регулярно и своевременно на всех уровнях в стране
X111: → | Y111: Посмотреть ресурсы уровня 3 | AE111: =Activities!R22 -> Данные эпиднадзора систематически, регулярно и своевременно предоставляются всем участвующим секторам через универсальную или объединенную платформу (платформы)
G113: =""&Activities!Q23 -> В-8 Коммуникация и обмен информацией | K113: =IF('Communication & Reporting'!O65=0,AE113,IF(AND('Communication & Reporting'!O65=1,'Communication & Reporting'!X65=0),AE114,IF(AND('Communication & Reporting'!X65=1,'Communication & Reporting'!AG65=0),AE115,"Complete"))) -> Осуществляется эпизодический обмен информацией и коммуникация с соответствующими заинтересованными сторонами | T113: =IF('Communication & Reporting'!O65="","N/A",IF(AND('Communication & Reporting'!O65=0),"1",IF(AND('Communication & Reporting'!O65=1,'Communication & Reporting'!X65=0),"2",IF(AND('Communication & Reporting'!X65=1,'Communication & Reporting'!AG65=0),"3","Complete")))) -> N/A | X113: → | Y113: Посмотреть ресурсы уровня 1 | AE113: =Activities!R23 -> Осуществляется эпизодический обмен информацией и коммуникация с соответствующими заинтересованными сторонами
X114: → | Y114: Посмотреть ресурсы уровня 2 | AE114: =Activities!R24 -> Осуществляется регулярный обмен информацией и коммуникация с соответствующими заинтересованными сторонами
X115: → | Y115: Посмотреть ресурсы уровня 3 | AE115: =Activities!R25 -> Осуществляется регулярный и своевременный обмен информацией с соответствующими заинтересованными сторонами, включая трансграничные, региональные и международные структуры
G117: =""&Activities!Q26 -> В-9 Международные требования в отношении оповещений | K117: =IF('Communication & Reporting'!O81=0,AE117,"Complete") -> Соблюдение международных требований в отношении оповещения обо всех случаях зоонозов | T117: =IF('Communication & Reporting'!O81="","N/A",IF(AND('Communication & Reporting'!O65=0),"1","Complete")) -> N/A | X117: → | Y117: Посмотреть ресурсы уровня 1 | AE117: =Activities!R26 -> Соблюдение международных требований в отношении оповещения обо всех случаях зоонозов
X119: →
G121: =""&Activities!Q27 -> B-10 Визуализация и анализ данных координированного эпиднадзора | K121: =IF('Communication & Reporting'!O97=0,AE121,IF(AND('Communication & Reporting'!O97=1,'Communication & Reporting'!X97=0),AE122,IF(AND('Communication & Reporting'!X97=1,'Communication & Reporting'!AG97=0),AE123,"Complete"))) -> Данные координированного эпиднадзора позволяют получить выходные материалы (например: рисунки, графики, отчеты или бюллетени), которые распространяются на национальном уровне | T121: =IF('Communication & Reporting'!O97="","N/A",IF(AND('Communication & Reporting'!O97=0),"1",IF(AND('Communication & Reporting'!O97=1,'Communication & Reporting'!X97=0),"2",IF(AND('Communication & Reporting'!X97=1,'Communication & Reporting'!AG97=0),"3","Complete")))) -> N/A | X121: → | Y121: Посмотреть ресурсы уровня 1 | AE121: =Activities!R27 -> Данные координированного эпиднадзора позволяют получить выходные материалы (например: рисунки, графики, отчеты или бюллетени), которые распространяются на национальном уровне
X122: → | Y122: Посмотреть ресурсы уровня 2 | AE122: =Activities!R28 -> Данные координированного эпиднадзора позволяют получить выходные материалы (например: рисунки, графики, отчеты или бюллетени), которые распространяются среди заинтересованных сторон на всех уровнях в стране
X123: → | Y123: Посмотреть ресурсы уровня 3 | AE123: =Activities!R29 -> Данные координированного эпиднадзора, включая отчеты о результатах мониторинга и оценки, позволяют получить выходные материалы, которые используются при разработке ответных мер, политики и программ
B125: Мониторинг и оценка | G125: МО-1 Имитационные учения | K125: =IF('Simulation Exercises'!O44=0,AE125,IF(AND('Simulation Exercises'!O44=1,'Simulation Exercises'!X44=0),AE126,IF(AND('Simulation Exercises'!X44=1,'Simulation Exercises'!AG44=0),AE127,"Complete"))) -> Имитационные учения проводятся для оценки эффективности и функциональности координированной системы эпиднадзора на национальном уровне | T125: =IF('Simulation Exercises'!O44="","N/A",IF(AND('Simulation Exercises'!O44=0),"1",IF(AND('Simulation Exercises'!O44=1,'Simulation Exercises'!X44=0),"2",IF(AND('Simulation Exercises'!X44=1,'Simulation Exercises'!AG44=0),"3","Complete")))) -> N/A | X125: → | Y125: Посмотреть ресурсы уровня 1 | AE125: =Activities!W2 -> Имитационные учения проводятся для оценки эффективности и функциональности координированной системы эпиднадзора на национальном уровне
X126: → | Y126: Посмотреть ресурсы уровня 2 | AE126: =Activities!W3 -> Имитационные учения проводятся для оценки эффективности и функциональности координированной системы эпиднадзора на всех уровнях в стране
X127: → | Y127: Посмотреть ресурсы уровня 3 | AE127: =Activities!W4 -> Результаты имитационных учений используются при составлении и пересмотре планов по координированному эпиднадзору
G129: =""&Activities!V5 -> МО-2 Планирование деятельности по мониторингу и оценке | K129: =IF('M & E Planning'!O44=0,AE129,IF(AND('M & E Planning'!O44=1,'M & E Planning'!X44=0),AE130,IF(AND('M & E Planning'!X44=1,'M & E Planning'!AG44=0),AE131,"Complete"))) -> Существует план мониторинга и оценки, отвечающий целям координированной системы эпиднадзора | T129: =IF('M & E Planning'!O44="","N/A",IF(AND('M & E Planning'!O44=0),"1",IF(AND('M & E Planning'!O44=1,'M & E Planning'!X44=0),"2",IF(AND('M & E Planning'!X44=1,'M & E Planning'!AG44=0),"3","Complete")))) -> N/A | X129: → | Y129: Посмотреть ресурсы уровня 1 | AE129: =Activities!W5 -> Существует план мониторинга и оценки, отвечающий целям координированной системы эпиднадзора
X130: → | Y130: Ресурсов уровня 2 нет (смотрите уровень 1) | AE130: =Activities!W6 -> С помощью плана мониторинга и оценки оценивается эффективность деятельности и достигнутый прогресс в рамках координированной системы эпиднадзора
X131: → | Y131: Ресурсов уровня 3 нет (смотрите уровень 1) | AE131: =Activities!W7 -> Результаты мониторинга и оценки позволяют последовательно совершенствовать или расширять координированную систему эпиднадзора и приводить ее в соответствие с международными стандартами и рекомендациями
G133: МО-3 Стандарты качества данных | K133: =IF('Data Quality Standards'!O44=0,AE133,IF(AND('Data Quality Standards'!O44=1,'Data Quality Standards'!X44=0),AE134,IF(AND('Data Quality Standards'!X44=1,'Data Quality Standards'!AG44=0),AE135,"Complete"))) -> Существует методология управления качеством данных | T133: =IF('Data Quality Standards'!O44="","N/A",IF(AND('Data Quality Standards'!O44=0),"1",IF(AND('Data Quality Standards'!O44=1,'Data Quality Standards'!X44=0),"2",IF(AND('Data Quality Standards'!X44=1,'Data Quality Standards'!AG44=0),"3","Complete")))) -> N/A | X133: → | Y133: Посмотреть ресурсы уровня 1 | AE133: =Activities!W8 -> Существует методология управления качеством данных
X134: → | Y134: Посмотреть ресурсы уровня 2 | AE134: =Activities!W9 -> Качество данных проверено и признано соответствующим целям координированной системы эпиднадзора
X135: → | Y135: Посмотреть ресурсы уровня 3 | AE135: =Activities!W10 -> Качество данных соответствует международным стандартам и рекомендациям

Sheet Resource selection
B2: ВЫБОР ИНСТРУМЕНТОВ И РЕСУРСОВ
B9: ОБЛАСТЬ | D9: МЕРОПРИЯТИЕ | F9: Целевой уровень потенциала | H9: Описание | J9: Ресурс 1 | L9: Ресурс 2
B11: Координаторы | D11: ПП-1 Предварительное выявление заинтересованных сторон | F11: =Results!T9 -> N/A | H11: =Results!K9 -> Во всех участвующих секторах на национальном уровне определены координаторы, «лидеры» или технические рабочие группы для планирования внедрения координированного эпиднадзора
B13: Приоритизация | D13: ПП-2 Приоритизация | F13: =Results!T13 -> N/A | H13: =Results!K13 -> Существует список приоритетных зоонозов, подлежащих включению в координированную систему эпиднадзора
B15: Постановка целей | D15: ПП-3 Постановка целей | F15: =Results!T17 -> N/A | H15: =Results!K17 -> Цель(и), функции и обязанности всех участвующих секторов координированной системы эпиднадзора согласованы на национальном уровне
B17: Заинтересованные стороны | D17: О-1 Картирование заинтересованных сторон | F17: =Results!T21 -> N/A | H17: =Results!K21 -> Заинтересованные стороны в области эпиднадзора, эпидемиологии, лабораторных исследований и обмена информацией выявлены
D19: ПЛ-1 Политическая воля | F19: =Results!T9 -> N/A | H19: =Results!K53 -> Определены лица, принимающие решения в отношении создания координированной системы эпиднадзора
D21: В-2 Привлечение кадровых ресурсов и заинтересованных сторон | F21: =Results!T89 -> N/A | H21: =Results!K89 -> Координаторы или технические рабочие группы проводят совещания эпизодически
B23: Планы и организация | D23: О-2 Оценка взаимосвязей в системе эпиднадзора | F23: =Results!T25 -> N/A | H23: =Results!K25 -> Оценка взаимосвязей между существующими системами эпиднадзора за приоритетными зоонозами проведена на межотраслевом уровне
D26: О-4 Картирование инфраструктуры | F26: =Results!T33 -> N/A | H26: =Results!K33 -> В результате проведения базового картирования инфраструктуры (в соответствие с ТРЗ, гл. 4.1) были описаны структура и взаимосвязи внутри секторов и между ними
D28: ПЛ-3 Стратегические планы и рамочные документы по координированному эпиднадзору | F28: =Results!T61 -> N/A | H28: =Results!K61 -> В целях планирования проведен межотраслевой сбор и обзор национальных стратегических документов (стратегий, рамочных программ и стратегических планов), относящихся к координированной системе эпиднадзора
D30: ПЛ-4 Национальные оперативные планы | F30: =Results!T65 -> N/A | H30: =Results!K65 -> В целях планирования проведен межотраслевой сбор и обзор национальных оперативных планов и других важные документов (включая планы эпиднадзора, определения случаев, протоколы и стандартные операционные процедуры), относящихся к координированной системе эпиднадзора
D32: В-6 Внедрение координированной системы эпиднадзора | F32: =Results!T105 -> N/A | H32: =Results!K105 -> Запущен пилотный проект координированной системы эпиднадзора в целевых регионах
B34: Политика и право | D34: О-3 Оценка нормативно-правовой базы | F34: =Results!T29 -> N/A | H34: =Results!K29 -> Оценка нормативно-правовой базы (правил, политики, руководящих принципов и положений, включая международные стандарты), регулирующей стандарты этики и конфиденциальности в области эпиднадзора и обмена данными, проведена
D36: ПЛ-7 Обеспечение нормативно-правовой базы | F36: =Results!T77 -> N/A | H36: =Results!K77 -> По результатам оценки необходимые нормативно-правовые рамки (правила, стратегии, руководства и положения, включая международные стандарты) стандартизированы во всех секторах на национальном уровне
B38: Бюджеты и финансы | D38: О-5 Оценка экономических потребностей | F38: =Results!T37 -> N/A | H38: =Results!K37 -> Экономические оценки были использованы для определения национальных финансовых потребностей координированной системы эпиднадзора
D40: ПЛ-5 Финансовое планирование | F40: =Results!T69 -> N/A | H40: =Results!K69 -> Имеются бюджетный план и механизм распределения средств для осуществления координированного эпиднадзора на национальном уровне
D42: В-1 Привлечение финансовых ресурсов | F42: =Results!T85 -> N/A | H42: =Results!K85 -> Имеется финансирование для осуществления координированного эпиднадзора на национальном уровне
B44: Кадровые ресурсы | D44: О-8 Оценка кадровых ресурсов | F44: =Results!T49 -> N/A | H44: =Results!K49 -> Оценки кадровых ресурсов проведены для определения текущих требований, компетенций, потребностей и пробелов в области кадрового потенциала на национальном уровне
D46: ПЛ-6 Планирование в области кадровых ресурсов | F46: =Results!T73 -> N/A | H46: =Results!K73 -> План обучения и профессиональной подготовки кадров для координированной системы эпиднадзора разработан на основе оценки кадровых ресурсов на национальном уровне
B48: Лаборатория | D48: О-6 Оценка лабораторного потенциала | F48: =Results!T41 -> N/A | H48: =Results!K41 -> В результате проведения оценок лабораторного потенциала были определены квалифицированные национальные или международные референс-лаборатории, которые могут проводить тестирование для поддержки деятельности в рамках координированного эпиднадзора
D50: О-7 Оценка лабораторной логистики и интерпретации результатов исследований | F50: =Results!T45 -> N/A | H50: =Results!K45 -> Поставки лабораторных материалов, транспортные цепочки и методы интерпретации результатов оценены на предмет согласования между участвующими секторами на национальном уровне
B52: Хранение и обмен данными | D52: ПЛ-2 Общие элементы данных | F52: =Results!T57 -> N/A | H52: =Results!K57 -> В каждом участвующем секторе общие элементы данных для достижения общих аналитических целей координированной системы эпиднадзора определены и согласованы на национальном уровне
D54: В-3 Обмен данными и информацией | F54: =Results!T93 -> N/A | H54: =Results!K93 -> Существует механизм обмена данными между секторами на национальном уровне
D56: В-4 Хранение данных | F56: =Results!T97 -> N/A | H56: =Results!K97 -> Существуют структура и место для хранения и ведения данных, получаемых из различных секторов, на национальном уровне.
D58: В-5 Меры по обеспечению конфиденциальности и безопасности данных | F58: =Results!T101 -> N/A | H58: =Results!K101 -> Меры по обеспечению конфиденциальности и безопасности данных для защиты данных координированного эпиднадзора применяются на национальном уровне
D60: В-7 Обмен данными координированного эпиднадзора | F60: =Results!T109 -> N/A | H60: =Results!K109 -> Обмен данными эпиднадзора осуществляется неофициально или официально эпизодически на национальном уровне
B62: Коммуникация и отчетность | D62: ПЛ-8 Планирование скоординированной коммуникации | F62: =Results!T81 -> N/A | H62: =Results!K81 -> Проведено согласование коммуникационной терминологии и сообщений между всеми секторами, участвующими в координированной системе эпиднадзора на национальном уровне.
D64: B-8 Коммуникация и обмен информацией | F64: =Results!T113 -> N/A | H64: =Results!K113 -> Осуществляется эпизодический обмен информацией и коммуникация с соответствующими заинтересованными сторонами
D66: B-9 Соблюдение международных требований в отношении оповещений | F66: =Results!T117 -> N/A | H66: =Results!K117 -> Соблюдение международных требований в отношении оповещения обо всех случаях зоонозов
D68: B-10 Визуализация и анализ данных координированного эпиднадзора | F68: =Results!T121 -> N/A | H68: =Results!K121 -> Данные координированного эпиднадзора позволяют получить выходные материалы (например: рисунки, графики, отчеты или бюллетени), которые распространяются на национальном уровне
B70: Имитационные учения | D70: МО-1 Имитационные учения | F70: =Results!T125 -> N/A | H70: =Results!K125 -> Имитационные учения проводятся для оценки эффективности и функциональности координированной системы эпиднадзора на национальном уровне
B72: Планирование деятельности по мониторингу и оценке | D72: MO-2 Планирование деятельности по мониторингу и оценке | F72: =Results!T129 -> N/A | H72: =Results!K129 -> Существует план мониторинга и оценки, отвечающий целям координированной системы эпиднадзора
B74: Стандарты качества данных | D74: МО-3 Стандарты качества данных | F74: =Results!T133 -> N/A | H74: =Results!K133 -> Существует методология управления качеством данных

Sheet Prioritization and roadmap
B2: ПРИОРИТИЗАЦИЯ И ДОРОЖНАЯ КАРТА
B8: ОБЛАСТЬ | D8: МЕРОПРИЯТИЕ | F8: Целевой уровень потенциала | H8: Описание | J8: Начало и приоритетность внедрения мероприятий | L8: Время начала мероприятия | N8: Продолжительность мероприятия | P8: Год 1 (например, 2022) | T8: Год 2 | X8: Год 3 | AB8: Год 4 | AF8: Год 5
P9: 1 кв. | Q9: 2 кв. | R9: 3 кв. | S9: 4 кв. | T9: 1 кв. | U9: 2 кв. | V9: 3 кв. | W9: 4 кв. | X9: 1 кв. | Y9: 2 кв. | Z9: 3 кв. | AA9: 4 кв. | AB9: 1 кв. | AC9: 2 кв. | AD9: 3 кв. | AE9: 4 кв. | AF9: 1 кв. | AG9: 2 кв. | AH9: 3 кв. | AI9: 4 кв.
B10: Координаторы | D10: ПП-1 Предварительное выявление заинтересованных сторон | F10: =Results!T9 -> N/A | H10: =Results!K9 -> Во всех участвующих секторах на национальном уровне определены координаторы, «лидеры» или технические рабочие группы для планирования внедрения координированного эпиднадзора
AL11: Год 1-Четв 1, Год 1-Четв 2, Год 1-Четв 3, Год 1-Четв 4,Год 2-Четв 1, Год 2-Четв 2, Год 2-Четв 3, Год 2-Четв 4, Год 3-Четв 1, Год 3-Четв 2, Год 3-Четв 3, Год 3-Четв 4,Год 4-Четв 1,Год 4-Четв 2, Год 4-Четв 3, Год 4-Четв 4, Год 5-Четв 1, Год 5-Четв 2, Год 5-Четв 3, Год 5-Четв 4
B12: Приоритизация | D12: ПП-2 Приоритизация | F12: =Results!T13 -> N/A | H12: =Results!K13 -> Существует список приоритетных зоонозов, подлежащих включению в координированную систему эпиднадзора
B14: Постановка целей | D14: ПП-3 Постановка целей | F14: =Results!T17 -> N/A | H14: =Results!K17 -> Цель(и), функции и обязанности всех участвующих секторов координированной системы эпиднадзора согласованы на национальном уровне
B16: Заинтересованные стороны | D16: О-1 Картирование заинтересованных сторон | F16: =Results!T21 -> N/A | H16: =Results!K21 -> Заинтересованные стороны в области эпиднадзора, эпидемиологии, лабораторных исследований и обмена информацией выявлены
D18: ПЛ-1 Политическая воля | F18: =Results!T9 -> N/A | H18: =Results!K53 -> Определены лица, принимающие решения в отношении создания координированной системы эпиднадзора
D20: В-2 Привлечение кадровых ресурсов и заинтересованных сторон | F20: =Results!T89 -> N/A | H20: =Results!K89 -> Координаторы или технические рабочие группы проводят совещания эпизодически
B22: Планы и организация | D22: О-2 Оценка взаимосвязей в системе эпиднадзора | F22: =Results!T25 -> N/A | H22: =Results!K25 -> Оценка взаимосвязей между существующими системами эпиднадзора за приоритетными зоонозами проведена на межотраслевом уровне
D25: О-4 Картирование инфраструктуры | F25: =Results!T33 -> N/A | H25: =Results!K33 -> В результате проведения базового картирования инфраструктуры (в соответствие с ТРЗ, гл. 4.1) были описаны структура и взаимосвязи внутри секторов и между ними
D27: ПЛ-3 Рамочные документы и стратегические планы по координированному эпиднадзору | F27: =Results!T61 -> N/A | H27: =Results!K61 -> В целях планирования проведен межотраслевой сбор и обзор национальных стратегических документов (стратегий, рамочных программ и стратегических планов), относящихся к координированной системе эпиднадзора
D29: ПЛ-4 Национальные планы и протоколы по эпиднадзору (Национальные оперативные планы) | F29: =Results!T65 -> N/A | H29: =Results!K65 -> В целях планирования проведен межотраслевой сбор и обзор национальных оперативных планов и других важные документов (включая планы эпиднадзора, определения случаев, протоколы и стандартные операционные процедуры), относящихся к координированной системе эпиднадзора
D31: В-6 Внедрение координированной системы эпиднадзора | F31: =Results!T105 -> N/A | H31: =Results!K105 -> Запущен пилотный проект координированной системы эпиднадзора в целевых регионах
B33: Политика и право | D33: О-3 Оценка нормативно-правовой базы | F33: =Results!T29 -> N/A | H33: =Results!K29 -> Оценка нормативно-правовой базы (правил, политики, руководящих принципов и положений, включая международные стандарты), регулирующей стандарты этики и конфиденциальности в области эпиднадзора и обмена данными, проведена
D35: ПЛ-7 Обеспечение нормативно-правовой базы | F35: =Results!T77 -> N/A | H35: =Results!K77 -> По результатам оценки необходимые нормативно-правовые рамки (правила, стратегии, руководства и положения, включая международные стандарты) стандартизированы во всех секторах на национальном уровне
B37: Бюджеты и финансы | D37: О-5 Оценка экономических потребностей | F37: =Results!T37 -> N/A | H37: =Results!K37 -> Экономические оценки были использованы для определения национальных финансовых потребностей координированной системы эпиднадзора
D39: ПЛ-5 Финансовое планирование | F39: =Results!T69 -> N/A | H39: =Results!K69 -> Имеются бюджетный план и механизм распределения средств для осуществления координированного эпиднадзора на национальном уровне
D41: В-1 Привлечение финансовых ресурсов | F41: =Results!T85 -> N/A | H41: =Results!K85 -> Имеется финансирование для осуществления координированного эпиднадзора на национальном уровне
B43: Кадровые ресурсы | D43: О-8 Оценка кадровых ресурсов | F43: =Results!T49 -> N/A | H43: =Results!K49 -> Оценки кадровых ресурсов проведены для определения текущих требований, компетенций, потребностей и пробелов в области кадрового потенциала на национальном уровне
D45: ПЛ-6 Планирование в области кадровых ресурсов | F45: =Results!T73 -> N/A | H45: =Results!K73 -> План обучения и профессиональной подготовки кадров для координированной системы эпиднадзора разработан на основе оценки кадровых ресурсов на национальном уровне
B47: Лаборатория | D47: О-6 Оценка лабораторного потенциала | F47: =Results!T41 -> N/A | H47: =Results!K41 -> В результате проведения оценок лабораторного потенциала были определены квалифицированные национальные или международные референс-лаборатории, которые могут проводить тестирование для поддержки деятельности в рамках координированного эпиднадзора
D49: О-7 Оценка лабораторной логистики и интерпретации результатов исследований | F49: =Results!T45 -> N/A | H49: =Results!K45 -> Поставки лабораторных материалов, транспортные цепочки и методы интерпретации результатов оценены на предмет согласования между участвующими секторами на национальном уровне
B51: Хранение и обмен данными | D51: ПЛ-2 Общие элементы данных | F51: =Results!T57 -> N/A | H51: =Results!K57 -> В каждом участвующем секторе общие элементы данных для достижения общих аналитических целей координированной системы эпиднадзора определены и согласованы на национальном уровне
D53: В-3 Обмен данными и информацией | F53: =Results!T93 -> N/A | H53: =Results!K93 -> Существует механизм обмена данными между секторами на национальном уровне
D55: В-4 Хранение данных | F55: =Results!T97 -> N/A | H55: =Results!K97 -> Существуют структура и место для хранения и ведения данных, получаемых из различных секторов, на национальном уровне.
D57: В-5 Меры по обеспечению конфиденциальности и безопасности данных | F57: =Results!T101 -> N/A | H57: =Results!K101 -> Меры по обеспечению конфиденциальности и безопасности данных для защиты данных координированного эпиднадзора применяются на национальном уровне
D59: В-7 Обмен данными | F59: =Results!T109 -> N/A | H59: =Results!K109 -> Обмен данными эпиднадзора осуществляется неофициально или официально эпизодически на национальном уровне
B61: Коммуникация и отчетность | D61: ПЛ-8 Планирование скоординированной коммуникации | F61: =Results!T81 -> N/A | H61: =Results!K81 -> Проведено согласование коммуникационной терминологии и сообщений между всеми секторами, участвующими в координированной системе эпиднадзора на национальном уровне.
D63: B-8 Коммуникация и использование данных | F63: =Results!T113 -> N/A | H63: =Results!K113 -> Осуществляется эпизодический обмен информацией и коммуникация с соответствующими заинтересованными сторонами
D65: B-9 Соблюдение международных требований в отношении оповещений | F65: =Results!T117 -> N/A | H65: =Results!K117 -> Соблюдение международных требований в отношении оповещения обо всех случаях зоонозов
D67: B-10 Визуализация и анализ данных координированного эпиднадзора | F67: =Results!T121 -> N/A | H67: =Results!K121 -> Данные координированного эпиднадзора позволяют получить выходные материалы (например: рисунки, графики, отчеты или бюллетени), которые распространяются на национальном уровне
B69: Имитационные учения | D69: МО-1 Имитационные учения | F69: =Results!T125 -> N/A | H69: =Results!K125 -> Имитационные учения проводятся для оценки эффективности и функциональности координированной системы эпиднадзора на национальном уровне
B71: Планирование деятельности по мониторингу и оценке | D71: MO-2 Планирование деятельности по мониторингу и оценке | F71: =Results!T129 -> N/A | H71: =Results!K129 -> Существует план мониторинга и оценки, отвечающий целям координированной системы эпиднадзора
B73: Стандарты качества данных | D73: МО-3 Стандарты качества данных | F73: =Results!T133 -> N/A | H73: =Results!K133 -> Существует методология управления качеством данных

Sheet Development plan
B2: ПЛАН РАЗВИТИЯ
B6: ОБЛАСТЬ | C6: МЕРОПРИЯТИЕ | D6: Описание | E6: Выбранные ресурсы и инструменты | F6: Действия | G6: Ведущий сектор и функции/обязанности каждого партнера | H6: Возможные трудности | I6: Время начала мероприятия | J6: Продолжительность мероприятия | K6: Контактное лицо каждого партнера (имя, должность, организация, сектор) | L6: Индикатор для данного требования | M6: Другие замечания
B8: ПРИМЕР
B9: Приоритизация | C9: ПП-2 Приоритизация | D9: Существует список приоритетных зоонозов, подлежащих включению в координированную систему эпиднадзора | E9: OHZDP | F9: Провести приоритизацию зоонозов (например: посредством проведения семинара по приоритизации зоонозов (OHZDP) в соответствии с подходом «Единое здоровье», организованного центром по контролю и профилактике заболеваний (ЦКПЗ)) По результатам приоритизации обновить перечни приоритетных заболеваний секторов | G9: Ведущий сектор: Охрана здоровья животных (AH) Представитель сектора «Здравоохранение человека» (HH) свяжется с ЦКПЗ для определения участников от сектора HH. Представитель AH будет координировать логистическое обеспечение и организацию места проведения мероприятия | H9: Для проведения межотраслевого мероприятия могут понадобиться дополнительные средства; Обсудить возможность проведения семинара OHZDP с ЦКПЗ. | I9: Год 1-кв. 2 | J9: 1 квартал | K9: Линда Бьянка, директор Службы охраны здоровья животных, Министерство сельского хозяйства Дэн Фишер, директор Службы здравоохранения, Министерство здравоохранения | L9: Мероприятие по приоритизации состоялось; на нем присутствовали все соответствующие секторы Перечни приоритетных заболеваний обновлены в соответствие с результатами приоритизации для всех секторов
B11: ПЛАН
B12: Координаторы | C12: ПП-1 Предварительное выявление заинтересованных сторон | D12: =Results!K9 -> Во всех участвующих секторах на национальном уровне определены координаторы, «лидеры» или технические рабочие группы для планирования внедрения координированного эпиднадзора | E12: ='Resource selection'!J11 -> 0 | I12: ='Prioritization and roadmap'!L10 -> 0 | J12: ='Prioritization and roadmap'!N10 -> 0
B14: Приоритизация | C14: ПП-2 Приоритизация | D14: =Results!K13 -> Существует список приоритетных зоонозов, подлежащих включению в координированную систему эпиднадзора | E14: ='Resource selection'!J13 -> 0 | I14: ='Prioritization and roadmap'!L12 -> 0 | J14: ='Prioritization and roadmap'!N12 -> 0
B16: Постановка целей | C16: ПП-3 Постановка целей | D16: =Results!K17 -> Цель(и), функции и обязанности всех участвующих секторов координированной системы эпиднадзора согласованы на национальном уровне | E16: ='Resource selection'!J15 -> 0 | I16: ='Prioritization and roadmap'!L14 -> 0 | J16: ='Prioritization and roadmap'!N14 -> 0
B18: Заинтересованные стороны | C18: О-1 Картирование заинтересованных сторон | D18: =Results!K21 -> Заинтересованные стороны в области эпиднадзора, эпидемиологии, лабораторных исследований и обмена информацией выявлены | E18: ='Resource selection'!J17 -> 0 | I18: ='Prioritization and roadmap'!L16 -> 0 | J18: ='Prioritization and roadmap'!N16 -> 0
C19: ПЛ-1 Политическая воля | D19: =Results!K53 -> Определены лица, принимающие решения в отношении создания координированной системы эпиднадзора | E19: ='Resource selection'!J19 -> 0 | I19: ='Prioritization and roadmap'!L18 -> 0 | J19: ='Prioritization and roadmap'!N18 -> 0
C20: В-2 Привлечение кадровых ресурсов и заинтересованных сторон | D20: =Results!K89 -> Координаторы или технические рабочие группы проводят совещания эпизодически | E20: ='Resource selection'!J21 -> 0 | I20: ='Prioritization and roadmap'!L20 -> 0 | J20: ='Prioritization and roadmap'!N20 -> 0
B22: Планы и организация | C22: О-2 Оценка взаимосвязей в системе эпиднадзора | D22: =Results!K25 -> Оценка взаимосвязей между существующими системами эпиднадзора за приоритетными зоонозами проведена на межотраслевом уровне | E22: ='Resource selection'!J23 -> 0 | I22: ='Prioritization and roadmap'!L22 -> 0 | J22: ='Prioritization and roadmap'!N22 -> 0
C23: О-4 Картирование инфраструктуры | D23: =Results!K33 -> В результате проведения базового картирования инфраструктуры (в соответствие с ТРЗ, гл. 4.1) были описаны структура и взаимосвязи внутри секторов и между ними | E23: ='Resource selection'!J26 -> 0 | I23: ='Prioritization and roadmap'!L25 -> 0 | J23: ='Prioritization and roadmap'!N25 -> 0
C24: ПЛ-3 Рамочные документы и стратегические планы по координированному эпиднадзору | D24: =Results!K61 -> В целях планирования проведен межотраслевой сбор и обзор национальных стратегических документов (стратегий, рамочных программ и стратегических планов), относящихся к координированной системе эпиднадзора | E24: ='Resource selection'!J28 -> 0 | I24: ='Prioritization and roadmap'!L27 -> 0 | J24: ='Prioritization and roadmap'!N27 -> 0
C25: ПЛ-4 Национальные планы и протоколы по эпиднадзору (Национальные оперативные планы) | D25: =Results!K65 -> В целях планирования проведен межотраслевой сбор и обзор национальных оперативных планов и других важные документов (включая планы эпиднадзора, определения случаев, протоколы и стандартные операционные процедуры), относящихся к координированной системе эпиднадзора | E25: ='Resource selection'!J30 -> 0 | I25: ='Prioritization and roadmap'!L29 -> 0 | J25: ='Prioritization and roadmap'!N29 -> 0
C26: В-6 Внедрение координированной системы эпиднадзора | D26: =Results!K105 -> Запущен пилотный проект координированной системы эпиднадзора в целевых регионах | E26: ='Resource selection'!J32 -> 0 | I26: ='Prioritization and roadmap'!L31 -> 0 | J26: ='Prioritization and roadmap'!N31 -> 0
B28: Политика и право | C28: О-3 Оценка нормативно-правовой базы | D28: =Results!K29 -> Оценка нормативно-правовой базы (правил, политики, руководящих принципов и положений, включая международные стандарты), регулирующей стандарты этики и конфиденциальности в области эпиднадзора и обмена данными, проведена | E28: ='Resource selection'!J34 -> 0 | I28: ='Prioritization and roadmap'!L33 -> 0 | J28: ='Prioritization and roadmap'!N33 -> 0
C29: ПЛ-7 Обеспечение нормативно-правовой базы | D29: =Results!K77 -> По результатам оценки необходимые нормативно-правовые рамки (правила, стратегии, руководства и положения, включая международные стандарты) стандартизированы во всех секторах на национальном уровне | E29: ='Resource selection'!J36 -> 0 | I29: ='Prioritization and roadmap'!L35 -> 0 | J29: ='Prioritization and roadmap'!N35 -> 0
B31: Бюджеты и финансы | C31: О-5 Оценка экономических потребностей | D31: =Results!K37 -> Экономические оценки были использованы для определения национальных финансовых потребностей координированной системы эпиднадзора | E31: ='Resource selection'!J38 -> 0 | I31: ='Prioritization and roadmap'!L37 -> 0 | J31: ='Prioritization and roadmap'!N37 -> 0
C32: ПЛ-5 Финансовое планирование | D32: =Results!K69 -> Имеются бюджетный план и механизм распределения средств для осуществления координированного эпиднадзора на национальном уровне | E32: ='Resource selection'!J40 -> 0 | I32: ='Prioritization and roadmap'!L39 -> 0 | J32: ='Prioritization and roadmap'!N39 -> 0
C33: В-1 Привлечение финансовых ресурсов | D33: =Results!K85 -> Имеется финансирование для осуществления координированного эпиднадзора на национальном уровне | E33: ='Resource selection'!J42 -> 0 | I33: ='Prioritization and roadmap'!L41 -> 0 | J33: ='Prioritization and roadmap'!N41 -> 0
B35: Кадровые ресурсы | C35: О-8 Оценка кадровых ресурсов | D35: =Results!K49 -> Оценки кадровых ресурсов проведены для определения текущих требований, компетенций, потребностей и пробелов в области кадрового потенциала на национальном уровне | E35: ='Resource selection'!J44 -> 0 | I35: ='Prioritization and roadmap'!L43 -> 0 | J35: ='Prioritization and roadmap'!N43 -> 0
C36: ПЛ-6 Планирование в области кадровых ресурсов | D36: =Results!K73 -> План обучения и профессиональной подготовки кадров для координированной системы эпиднадзора разработан на основе оценки кадровых ресурсов на национальном уровне | E36: ='Resource selection'!J46 -> 0 | I36: ='Prioritization and roadmap'!L45 -> 0 | J36: ='Prioritization and roadmap'!N45 -> 0
B38: Лаборатория | C38: О-6 Оценка лабораторного потенциала | D38: =Results!K41 -> В результате проведения оценок лабораторного потенциала были определены квалифицированные национальные или международные референс-лаборатории, которые могут проводить тестирование для поддержки деятельности в рамках координированного эпиднадзора | E38: ='Resource selection'!J48 -> 0 | I38: ='Prioritization and roadmap'!L47 -> 0 | J38: ='Prioritization and roadmap'!N47 -> 0
C39: О-7 Оценка лабораторной логистики и интерпретации результатов исследований | D39: =Results!K45 -> Поставки лабораторных материалов, транспортные цепочки и методы интерпретации результатов оценены на предмет согласования между участвующими секторами на национальном уровне | E39: ='Resource selection'!J50 -> 0 | I39: ='Prioritization and roadmap'!L49 -> 0 | J39: ='Prioritization and roadmap'!N49 -> 0
B41: Хранение и обмен данными | C41: ПЛ-2 Общие элементы данных | D41: =Results!K57 -> В каждом участвующем секторе общие элементы данных для достижения общих аналитических целей координированной системы эпиднадзора определены и согласованы на национальном уровне | E41: ='Resource selection'!J52 -> 0 | I41: ='Prioritization and roadmap'!L51 -> 0 | J41: ='Prioritization and roadmap'!N51 -> 0
C42: В-3 Обмен данными и информацией | D42: =Results!K93 -> Существует механизм обмена данными между секторами на национальном уровне | E42: ='Resource selection'!J54 -> 0 | I42: ='Prioritization and roadmap'!L53 -> 0 | J42: ='Prioritization and roadmap'!N53 -> 0
C43: В-4 Хранение данных | D43: =Results!K97 -> Существуют структура и место для хранения и ведения данных, получаемых из различных секторов, на национальном уровне. | E43: ='Resource selection'!J56 -> 0 | I43: ='Prioritization and roadmap'!L55 -> 0 | J43: ='Prioritization and roadmap'!N55 -> 0
C44: В-5 Меры по обеспечению конфиденциальности и безопасности данных | D44: =Results!K101 -> Меры по обеспечению конфиденциальности и безопасности данных для защиты данных координированного эпиднадзора применяются на национальном уровне | E44: ='Resource selection'!J58 -> 0 | I44: ='Prioritization and roadmap'!L57 -> 0 | J44: ='Prioritization and roadmap'!N57 -> 0
C45: В-7 Обмен данными координированного эпиднадзора | D45: =Results!K109 -> Обмен данными эпиднадзора осуществляется неофициально или официально эпизодически на национальном уровне | E45: ='Resource selection'!J60 -> 0 | I45: ='Prioritization and roadmap'!L59 -> 0 | J45: ='Prioritization and roadmap'!N59 -> 0
B47: Коммуникация и отчетность | C47: ПЛ-8 Планирование скоординированной коммуникации | D47: =Results!K81 -> Проведено согласование коммуникационной терминологии и сообщений между всеми секторами, участвующими в координированной системе эпиднадзора на национальном уровне. | E47: ='Resource selection'!J62 -> 0 | I47: ='Prioritization and roadmap'!L61 -> 0 | J47: ='Prioritization and roadmap'!N61 -> 0
C48: B-8 Коммуникация и обмен информацией | D48: =Results!K113 -> Осуществляется эпизодический обмен информацией и коммуникация с соответствующими заинтересованными сторонами | E48: ='Resource selection'!J64 -> 0 | I48: ='Prioritization and roadmap'!L63 -> 0 | J48: ='Prioritization and roadmap'!N63 -> 0
C49: B-9 Соблюдение международных требований в отношении оповещений | D49: =Results!K117 -> Соблюдение международных требований в отношении оповещения обо всех случаях зоонозов | E49: ='Resource selection'!J66 -> 0 | I49: ='Prioritization and roadmap'!L65 -> 0 | J49: ='Prioritization and roadmap'!N65 -> 0
C50: B-10 Визуализация и анализ данных координированного эпиднадзора | D50: =Results!K121 -> Данные координированного эпиднадзора позволяют получить выходные материалы (например: рисунки, графики, отчеты или бюллетени), которые распространяются на национальном уровне | E50: ='Resource selection'!J68 -> 0 | I50: ='Prioritization and roadmap'!L67 -> 0 | J50: ='Prioritization and roadmap'!N67 -> 0
B52: Имитационные учения | C52: МО-1 Имитационные учения | D52: =Results!K125 -> Имитационные учения проводятся для оценки эффективности и функциональности координированной системы эпиднадзора на национальном уровне | E52: ='Resource selection'!J70 -> 0 | I52: ='Prioritization and roadmap'!L69 -> 0 | J52: ='Prioritization and roadmap'!N69 -> 0
B54: Планирование деятельности по мониторингу и оценке | C54: MO-2 Планирование деятельности по мониторингу и оценке | D54: =Results!K129 -> Существует план мониторинга и оценки, отвечающий целям координированной системы эпиднадзора | E54: ='Resource selection'!J72 -> 0 | I54: ='Prioritization and roadmap'!L71 -> 0 | J54: ='Prioritization and roadmap'!N71 -> 0
B56: Стандарты качества данных | C56: МО-3 Стандарты качества данных | D56: =Results!K133 -> Существует методология управления качеством данных | E56: ='Resource selection'!J74 -> 0 | I56: ='Prioritization and roadmap'!L73 -> 0 | J56: ='Prioritization and roadmap'!N73 -> 0

Sheet Tools by activity
A2: ПП-1 Координаторы | C2: О-1 Картирование заинтересованных сторон | E2: ПЛ-1 Политическая воля | G2: В-1 Привлечение финансовых ресурсов | I2: МО-1 Имитационные учения
A4: Рамочная программа Африканских ЦКПЗ по надзору на основе сигнальных событий | C4: Руководство для сбора данных о потенциале страны в отношении охраны здоровья в пограничных районах (BHCDG) | E4: Оценка сотрудничества в рамках межотраслевой системы эпиднадзора (ECoSur) | G4: SurvCost: Инструмент для оценки стоимости комплексной системы эпиднадзора и мер реагирования | I4: Анализ инфраструктуры лабораторной сети (LINA)
A5: Оценка сотрудничества в рамках межотраслевой системы эпиднадзора (ECoSur) | C5: Оценка сотрудничества в рамках межотраслевой системы эпиднадзора (ECoSur) | E5: Комплексная система эпиднадзора и мер реагирования (IDSR) | G5: Инструмент оценки экономической эффективности системы эпиднадзора за бешенством у животных | I5: Инструментарий для картирования и анализа систем «Единое здоровье» (OH-SMART)
A6: Комплексная система эпиднадзора и мер реагирования (IDSR) | C6: Национальный семинар по выстраиванию связей ММСП-ПВС | E6: Методология для анализа законодательства, относящегося к УПП, в продовольственном и сельскохозяйственном секторе | G6: Инструмент расчета затрат для соответствия Международным медико-санитарным правилам (ММСП) (разработка Джорджтаунского университета) | I6: Инструментарий для проведения имитационных учений
A7: Национальный план действий по обеспечению безопасности в области здравоохранения (NAPHS) | C7: Комплексная система эпиднадзора и мер реагирования (IDSR) | E7: Национальный план действий по обеспечению безопасности в области здравоохранения (NAPHS) | G7: Инструментарий для реализации стратегии устойчивого финансирования в рамках концепции «Единое здоровье» | I7: Пакет программного обеспечения для проведения автоматического глобального электронного биомониторинга (SAGES)
A8: Инструмент для оценки требований и готовности к эпиднадзору на основе концепции «Единое здоровье» (OHSRRT) | C8: Национальный план действий по обеспечению безопасности в области здравоохранения (NAPHS) | E8: Сеть для оценки мероприятий на основе концепции «Единое здоровье» (NEOH) | G8: Инструментарий для реализации стратегии устойчивого финансирования в рамках концепции «Единое здоровье»
A9: Анализ политического поля (PFA) | C9: Анализ пробелов ПВС МЭБ | E9: Инструментарий для пропаганды политики «Единое здоровье» | I9: МО-2 Планирование деятельности по мониторингу и оценке
A10: Инструмент оценки систем здравоохранения на предмет предотвращения приоритетных зоонозов и борьбы с ними в соответствии с подходом «Единое здоровье» (OH-SAPZ) | C10: Инструмент для оценки требований и готовности к эпиднадзору на основе концепции «Единое здоровье» (OHSRRT) | E10: Инструментарий для моделирования политики «Единое здоровье» | G10: В-2 Привлечение кадровых ресурсов
C11: Инструментарий для картирования и анализа систем «Единое здоровье» (OH-SMART) | E11: Анализ политического поля (PFA) | I11: Устойчивость к противомикробным препаратам: руководство для разработки национальных планов действий
A12: ПП-2 Приоритизация | C12: Анализ политического поля (PFA) | E12: Поэтапный подход к ликвидации бешенства (SARE) | G12: Рамочная программа Африканских ЦКПЗ по надзору на основе сигнальных событий | I12: Оценка системы эпиднадзора и мониторинга качества данных Европейского ЦКПЗ — справочник методов и применений
A13: Инструмент Европейского ЦКПЗ для приоритизации угроз инфекционных заболеваний | C13: Поэтапный подход к ликвидации бешенства (SARE) | G13: Инструментарий для проведения обзора принятых мер после вспышки заболевания | I13: Международные медико-санитарные правила (2005 г.): инструмент ежегодной отчетности государств-участников на основе самооценки (SPAR)
A14: Составление перечня и классификация приоритетных болезней животных, в том числе передаваемых человеку (Phylum) | C14: Рамочная программа по оценке эпиднадзора за здоровьем животных (SERVAL) | E14: ПЛ-2 Общие элементы данных | G14: Инструментарий для создания руководства по управлению | I14: Сеть для оценки мероприятий на основе концепции «Единое здоровье» (NEOH)
A15: Процесс приоритизации зоонозов на основе концепции «Единое здоровье» (OHZDP) | C15: Инструмент оценки систем здравоохранения на предмет предотвращения приоритетных зоонозов и борьбы с ними в соответствии с подходом «Единое здоровье» (OH-SAPZ) | G15: Инструментарий для обеспечения готовности и планирования ответных действий | I15: Рамочная программа по оценке эпиднадзора за здоровьем животных (SERVAL)
A16: Инструмент оценки систем здравоохранения на предмет предотвращения приоритетных зоонозов и борьбы с ними в соответствии с подходом «Единое здоровье» (OH-SAPZ) | E16: Оценка сотрудничества в рамках межотраслевой системы эпиднадзора (ECoSur) | I16: Рамочная программа по оценке эпиднадзора за биозащитой (SurF)
C17: О-2 Оценка взаимосвязей в системе эпиднадзора | E17: Рамочная программа для укрепления мер профилактики и борьбы с сибирской язвой | G17: В-3 Обмен данными и информацией | I17: Онлайн-инструменты для разработки и оценки систем эпиднадзора (SURVTOOLS)
E18: Национальный семинар по выстраиванию связей ММСП-ПВС | I18: Обновленные руководящие принципы для оценки систем эпиднадзора за здоровьем человека
C19: Рамочная программа Африканских ЦКПЗ по надзору на основе сигнальных событий | E19: Комплексная система эпиднадзора и мер реагирования (IDSR) | G19: Инструмент Afyadata
A20: ПП-3 Постановка целей | C20: Оценка системы эпиднадзора и мониторинга качества данных Европейского ЦКПЗ — справочник методов и применений | E20: Рамочная программа ЕФСА для сбора данных | G20: Районная информационная система здравоохранения, версия 2 (DHIS2) | I20: МО-3 Стандарты качества данных
A21: Рамочная программа Африканских ЦКПЗ по надзору на основе сигнальных событий | C21: Инструмент ФАО для оценки работы лабораторий и систем надзора за устойчивостью к противомикробным препаратам (ФАО-АТЛАСС) | G21: Электронная интегрированная система эпиднадзора за болезнями (EIDSS)
A22: Оценка сотрудничества в рамках межотраслевой системы эпиднадзора (ECoSur) | C22: Инструмент ФАО для оценки эффективности эпиднадзора (SET) | E22: ПЛ-3 Стратегические планы и рамочные документы по координированному эпиднадзору | G22: Глобальная информационная система болезней животных (EMPRES-i) | I22: Инструментарий для оценки качества данных (DQR)
A23: Комплексная система эпиднадзора и мер реагирования (IDSR) | C23: Международные медико-санитарные правила (2005 г.): инструмент ежегодной отчетности государств-участников на основе самооценки (SPAR) | G23: Мобильное приложение EMA-i для обмена данными о болезнях животных | I23: Оценка системы эпиднадзора и мониторинга качества данных Европейского ЦКПЗ — справочник методов и применений
A24: Национальный план действий по обеспечению безопасности в области здравоохранения (NAPHS) | E24: Рамочная программа Африканских ЦКПЗ по надзору на основе сигнальных событий | G24: Приложение FoodChain-Lab (FCL) | I24: Рамочная программа для укрепления мер профилактики и борьбы с сибирской язвой
A25: Сеть для оценки мероприятий на основе концепции «Единое здоровье» (NEOH) | C25: О-3 Оценка нормативно-правовой базы | E25: Устойчивость к противомикробным препаратам: руководство для разработки национальных планов действий | G25: Лабораторная информационная менеджмент-система для африканских ветеринарных служб (SILABFA) | I25: Комплексная система эпиднадзора и мер реагирования (IDSR)
A26: Инструмент для оценки требований и готовности к эпиднадзору на основе концепции «Единое здоровье» (OHSRRT) | E26: Руководство для сбора данных о потенциале страны в отношении охраны здоровья в пограничных районах (BHCDG) | G26: Лабораторная информационная менеджмент-система, облегченная версия (МиниЛИМС) | I26: Рамочная программа по оценке эпиднадзора за здоровьем животных (SERVAL)
C27: Устойчивость к противомикробным препаратам: руководство для разработки национальных планов действий | E27: Оценка сотрудничества в рамках межотраслевой системы эпиднадзора (ECoSur) | G27: Инструментарий для обеспечения готовности и планирования ответных действий | I27: Рамочная программа по оценке эпиднадзора за биозащитой (SurF)
C28: Оценка сотрудничества в рамках межотраслевой системы эпиднадзора (ECoSur) | E28: Рамочная программа для оценки систем эпиднадзора за здоровьем человека с целью раннего обнаружения вспышек заболеваний | G28: Приложение для оценки воздействия бешенства и выявления контактных лиц (REACT) | I28: Пакет программного обеспечения для проведения автоматического глобального электронного биомониторинга (SAGES)
C29: Инструментарий для создания руководства по управлению | E29: Рамочная программа для укрепления мер профилактики и борьбы с сибирской язвой | G29: Система анализа и управления мерами эпиднадзора и реагирования на вспышки (SORMAS) | I29: Обновленные руководящие принципы для оценки систем эпиднадзора за здоровьем человека
C30: Международные медико-санитарные правила (2005 г.): инструмент ежегодной отчетности государств-участников на основе самооценки (SPAR) | E30: Национальный семинар по выстраиванию связей ММСП-ПВС | G30: Инициатива по выявлению эпидемиологических угроз с использованием открытых источников (EIOS)
C31: Методология для анализа законодательства, относящегося к УПП, в продовольственном и сельскохозяйственном секторе | E31: Комплексная система эпиднадзора и мер реагирования (IDSR) | G31: Пакет программного обеспечения для проведения автоматического глобального электронного биомониторинга (SAGES)
C32: Инструмент для оценки требований и готовности к эпиднадзору на основе концепции «Единое здоровье» (OHSRRT) | E32: Инструмент совместной внешней оценки (СВО)
C33: Анализ политического поля (PFA) | E33: Методология для анализа законодательства, относящегося к УПП, в продовольственном и сельскохозяйственном секторе | G33: В-4 Хранение данных
C34: Поэтапный инструмент по искоренению бруцеллеза (STEB) | E34: Национальный план действий по обеспечению безопасности в области здравоохранения (NAPHS)
C35: Поэтапный подход к ликвидации бешенства (SARE) | E35: Сеть для оценки мероприятий на основе концепции «Единое здоровье» (NEOH) | G35: Инструмент Afyadata
C36: Национальная программа стандартизации системы общественного здравоохранения для повышения ее эффективности (NPHPSP): Инструмент оценки эффективности местной системы общественного здравоохранения (2-я версия) | E36: Анализ пробелов ПВС МЭБ | G36: Районная информационная система здравоохранения, версия 2 (DHIS2)
E37: Разработка стратегического плана на основе концепции «Единое здоровье» | G37: Электронная интегрированная система эпиднадзора за болезнями (EIDSS)
C38: О-4 Картирование инфраструктуры | E38: Инструментарий для картирования и анализа систем «Единое здоровье» (OH-SMART) | G38: Лабораторная информационная менеджмент-система для африканских ветеринарных служб (SILABFA)
E39: Поэтапный инструмент по искоренению бруцеллеза (STEB) | G39: Лабораторная информационная менеджмент-система, облегченная версия (МиниЛИМС)
C40: Инструмент самооценки информатизации лабораторий (разработка Ассоциации лабораторий общественного здравоохранения (APHL)) | E40: Поэтапный подход к ликвидации бешенства (SARE) | G40: Приложение для оценки воздействия бешенства и выявления контактных лиц (REACT)
C41: Инструмент оценки информатизации лабораторий (разработка APHL) | E41: Инструмент оценки систем здравоохранения на предмет предотвращения приоритетных зоонозов и борьбы с ними в соответствии с подходом «Единое здоровье» (OH-SAPZ) | G41: Система анализа и управления мерами эпиднадзора и реагирования на вспышки (SORMAS)
C42: Оценка сотрудничества в рамках межотраслевой системы эпиднадзора (ECoSur) | E42: Программа ВОЗ «WHO-CHOICE» | G42: Пакет программного обеспечения для проведения автоматического глобального электронного биомониторинга (SAGES)
C43: Национальный семинар по выстраиванию связей ММСП-ПВС
C44: Анализ инфраструктуры лабораторной сети (LINA) | E44: ПЛ-4 Национальные оперативные планы | G44: В-5 Меры по обеспечению конфиденциальности и безопасности данных
C45: Национальный план действий по обеспечению безопасности в области здравоохранения (NAPHS)
C46: Сеть для оценки мероприятий на основе концепции «Единое здоровье» (NEOH) | E46: Рамочная программа Африканских ЦКПЗ по надзору на основе сигнальных событий | G46: Инструмент самооценки информатизации лабораторий (разработка Ассоциации лабораторий общественного здравоохранения (APHL))
C47: Анализ пробелов ПВС МЭБ | E47: Руководство для сбора данных о потенциале страны в отношении охраны здоровья в пограничных районах (BHCDG) | G47: Районная информационная система здравоохранения, версия 2 (DHIS2)
C48: Инструментарий для картирования и анализа систем «Единое здоровье» (OH-SMART) | E48: Оценка системы эпиднадзора и мониторинга качества данных Европейского ЦКПЗ — справочник методов и применений | G48: Электронная интегрированная система эпиднадзора за болезнями (EIDSS)
C49: Анализ политического поля (PFA) | E49: Инструмент эпидемиологического картирования (EMT) | G49: Глобальная информационная система болезней животных (EMPRES-i)
C50: Инструментарий для обеспечения готовности и планирования ответных действий | E50: Оценка сотрудничества в рамках межотраслевой системы эпиднадзора (ECoSur) | G50: Лабораторная информационная менеджмент-система для африканских ветеринарных служб (SILABFA)
C51: Инструмент оценки систем здравоохранения на предмет предотвращения приоритетных зоонозов и борьбы с ними в соответствии с подходом «Единое здоровье» (OH-SAPZ) | E51: Инструмент ФАО для оценки эффективности эпиднадзора (SET) | G51: Лабораторная информационная менеджмент-система, облегченная версия (МиниЛИМС)
C52: Инструмент ВОЗ для оценки качества лабораторий | E52: Рамочная программа для укрепления мер профилактики и борьбы с сибирской язвой | G52: Приложение для оценки воздействия бешенства и выявления контактных лиц (REACT)
E53: Руководство для разработки планов эпиднадзора за болезнями животных | G53: Система анализа и управления мерами эпиднадзора и реагирования на вспышки (SORMAS)
C54: О-5 Оценка экономических потребностей | E54: Национальный семинар по выстраиванию связей ММСП-ПВС | G54: Пакет программного обеспечения для проведения автоматического глобального электронного биомониторинга (SAGES)
E55: Комплексная система эпиднадзора и мер реагирования (IDSR)
C56: SurvCost: Инструмент для оценки стоимости комплексной системы эпиднадзора и мер реагирования | E56: Методология для анализа законодательства, относящегося к УПП, в продовольственном и сельскохозяйственном секторе | G56: В-6 Внедрение координированной системы эпиднадзора
C57: Инструмент оценки экономической эффективности системы эпиднадзора за бешенством у животных | E57: Национальный план действий по обеспечению безопасности в области здравоохранения (NAPHS)
C58: Оценка сотрудничества в рамках межотраслевой системы эпиднадзора (ECoSur) | E58: Инструмент для оценки требований и готовности к эпиднадзору на основе концепции «Единое здоровье» (OHSRRT) | G58: Рамочная программа Африканских ЦКПЗ по надзору на основе сигнальных событий
C59: Инструмент расчета затрат для соответствия Международным медико-санитарным правилам (ММСП) (разработка Джорджтаунского университета) | E59: Инструментарий для обеспечения готовности и планирования ответных действий | G59: Инструмент Afyadata
C60: Глобальный механизм ликвидации бешенства у собак (GDREP) | E60: Поэтапный подход к ликвидации бешенства (SARE) | G60: Электронная интегрированная система эпиднадзора за болезнями (EIDSS)
C61: Национальный план действий по обеспечению безопасности в области здравоохранения (NAPHS) | E61: Рамочная программа по оценке эпиднадзора за здоровьем животных (SERVAL) | G61: Лабораторная информационная менеджмент-система для африканских ветеринарных служб (SILABFA)
C62: Сеть для оценки мероприятий на основе концепции «Единое здоровье» (NEOH) | E62: Онлайн-инструменты для разработки и оценки систем эпиднадзора (SURVTOOLS) | G62: Лабораторная информационная менеджмент-система, облегченная версия (МиниЛИМС)
C63: Анализ пробелов ПВС МЭБ | G63: Анализ инфраструктуры лабораторной сети (LINA)
C64: Инструмент для расчета затрат на вспышки болезней животных | G64: Приложение для оценки воздействия бешенства и выявления контактных лиц (REACT)
C65: Инструмент для оценки стоимости программ вакцинации от бешенства | E65: ПЛ-5 Финансовое планирование | G65: Пакет программного обеспечения для проведения автоматического глобального электронного биомониторинга (SAGES)
C66: Рамочная программа по оценке эпиднадзора за здоровьем животных (SERVAL) | G66: Инструмент для оценки прогресса на пути к ликвидации бешенства (TAPER)
C67: Онлайн-инструменты для разработки и оценки систем эпиднадзора (SURVTOOLS) | E67: Рамочная программа Африканских ЦКПЗ по надзору на основе сигнальных событий
C68: Инструментарий для реализации стратегии устойчивого финансирования в рамках концепции «Единое здоровье» | E68: Оценка системы эпиднадзора и мониторинга качества данных Европейского ЦКПЗ — справочник методов и применений | G68: В-7 Обмен данными эпиднадзора
C69: Программа ВОЗ «WHO-CHOICE» | E69: Рамочная программа для укрепления мер профилактики и борьбы с сибирской язвой
E70: Инструмент расчета затрат для соответствия Международным медико-санитарным правилам (ММСП) (разработка Джорджтаунского университета) | G70: Инструмент Afyadata
C71: О-6 Оценка лабораторного потенциала | E71: Руководство для разработки планов эпиднадзора за болезнями животных | G71: Районная информационная система здравоохранения, версия 2 (DHIS2)
E72: Комплексная система эпиднадзора и мер реагирования (IDSR) | G72: Электронная интегрированная система эпиднадзора за болезнями (EIDSS)
C73: Оценка сотрудничества в рамках межотраслевой системы эпиднадзора (ECoSur) | G73: Комплексная система эпиднадзора и мер реагирования (IDSR)
C74: Инструмент картирования лабораторий ФАО (LMT) | E74: ПЛ-6 Планирование в области кадровых ресурсов | G74: Инструментарий для обеспечения готовности и планирования ответных действий
C75: Анализ инфраструктуры лабораторной сети (LINA) | G75: Приложение для оценки воздействия бешенства и выявления контактных лиц (REACT)
C76: Инструмент для оценки сети эпиднадзора (OASIS) | E76: Комплексная система эпиднадзора и мер реагирования (IDSR) | G76: Инициатива по выявлению эпидемиологических угроз с использованием открытых источников (EIOS)
C77: Инструмент ВОЗ для оценки качества лабораторий | E77: Глобальный механизм ликвидации бешенства у собак (GDREP) | G77: Пакет программного обеспечения для проведения автоматического глобального электронного биомониторинга (SAGES)
C78: Рамочная программа для укрепления мер профилактики и борьбы с сибирской язвой | E78: Модель компетенций для лидеров/руководителей лабораторий (GLLP)
C79: Комплексная система эпиднадзора и мер реагирования (IDSR) | G79: В-8 Коммуникация и обмен информацией
C80: Инструмент совместной внешней оценки (СВО) | E80: ПЛ-7 Обеспечение нормативно-правовой базы
C81: Инструмент оценки систем здравоохранения на предмет предотвращения приоритетных зоонозов и борьбы с ними в соответствии с подходом «Единое здоровье» (OH-SAPZ) | G81: Инструмент Afyadata
C82: Миссия ПВС МЭБ по лабораториям | E82: Стратегии трансграничной межотраслевой коммуникации и координации | G82: Районная информационная система здравоохранения, версия 2 (DHIS2)
C83: Инструментарий для обеспечения готовности и планирования ответных действий | E83: Глобальный механизм ликвидации бешенства у собак (GDREP) | G83: Глобальная информационная система болезней животных (EMPRES-i)
C84: Поэтапный инструмент по искоренению бруцеллеза (STEB) | E84: Методология для анализа законодательства, относящегося к УПП, в продовольственном и сельскохозяйственном секторе | G84: Комплексная система эпиднадзора и мер реагирования (IDSR)
C85: Поэтапный подход к ликвидации бешенства (SARE) | E85: Анализ пробелов ПВС МЭБ | G85: Приложение для оценки воздействия бешенства и выявления контактных лиц (REACT)
E86: Сборник материалов для организации единых пунктов пограничного контроля | G86: Инициатива по выявлению эпидемиологических угроз с использованием открытых источников (EIOS)
C87: О-7 Лабораторная логистика и интерпретация результатов исследований | E87: Поэтапный подход к ликвидации бешенства (SARE)
G88: В-9 Международные требования в отношении оповещений
C89: Инструмент оценки информатизации лабораторий (разработка APHL) | E89: ПЛ-8 Планирование скоординированной коммуникации
C90: Оценка сотрудничества в рамках межотраслевой системы эпиднадзора (ECoSur) | G90: Мобильное приложение EMA-i для обмена данными о болезнях животных
C91: Анализ инфраструктуры лабораторной сети (LINA) | E91: Стратегии трансграничной межотраслевой коммуникации и координации | G91: Комплексная система эпиднадзора и мер реагирования (IDSR)
C92: Анализ пробелов ПВС МЭБ | E92: Глоссарий Общеевропейской программы «Единое здоровье» (OHEJP) | G92: Инструмент совместной внешней оценки (СВО)
C93: Инструментарий для обеспечения готовности и планирования ответных действий | E93: Кодекс по эпиднадзору на основе концепции «Единое здоровье» (OHS) | G93: Приложение для получения оповещений от ВАХИС МЭБ (OIE WAHIS Alerts)
C94: Инструмент для оценки сети эпиднадзора (OASIS) | E94: Инструментарий для обеспечения готовности и планирования ответных действий
G95: В-10 Визуализация и анализ данных координированного эпиднадзора
C96: О-8 Оценка кадровых ресурсов
G97: Инструмент Afyadata
C98: Рамочная программа Африканских ЦКПЗ по надзору на основе сигнальных событий | G98: Районная информационная система здравоохранения, версия 2 (DHIS2)
C99: Руководство для сбора данных о потенциале страны в отношении охраны здоровья в пограничных районах (BHCDG) | G99: Электронная интегрированная система эпиднадзора за болезнями (EIDSS)
C100: Руководящие принципы в отношении уровня компетенции специалистов, работающих в лабораториях общественного здравоохранения: ЦКПЗ и Ассоциация лабораторий общественного здравоохранения | G100: Приложение FoodChain-Lab (FCL)
C101: Инструмент эпидемиологического картирования (EMT) | G101: Комплексная система эпиднадзора и мер реагирования (IDSR)
C102: Оценка сотрудничества в рамках межотраслевой системы эпиднадзора (ECoSur) | G102: Анализ инфраструктуры лабораторной сети (LINA)
C103: Глобальный механизм ликвидации бешенства у собак (GDREP) | G103: Приложение для получения оповещений от ВАХИС МЭБ (OIE WAHIS Alerts)
C104: Комплексная система эпиднадзора и мер реагирования (IDSR) | G104: Приложение для оценки воздействия бешенства и выявления контактных лиц (REACT)
C105: Модель компетенций для лидеров/руководителей лабораторий (GLLP) | G105: Система анализа и управления мерами эпиднадзора и реагирования на вспышки (SORMAS)
C106: Национальный план действий по обеспечению безопасности в области здравоохранения (NAPHS) | G106: Пакет программного обеспечения для проведения автоматического глобального электронного биомониторинга (SAGES)
C107: Инструментарий для картирования и анализа систем «Единое здоровье» (OH-SMART)
C108: Инструмент для оценки сети эпиднадзора (OASIS)

Sheet Backbone
A1: НАЗВАНИЕ РЕСУРСА | B1: Область | C1: Месторасположение в инструменте | D1: Описание | E1: Уровень У1-Уровень 1 У2-Уровень 2 У3-Уровень 3 | F1: Наиболее подходящие или Другие полезные ресурсы | G1: Статус | H1: Доступность | I1: Язык | J1: Простота использования | K1: Гибкость | L1: Потребности в данных | M1: Анализ данных | N1: Приемлемость | O1: «Единое здоровье» | P1: Воздействие | Q1: ОЦЕНКА | R1: Вид ресурса | S1: Общая направленность ресурса
A2: Рамочная программа Африканских ЦКПЗ по надзору на основе сигнальных событий | B2: Предварительное планирование | C2: ПП-1.1 | D2: Во всех участвующих секторах на национальном уровне определены координаторы, «лидеры» или технические рабочие группы для планирования внедрения координированного эпиднадзора | E2: У1 | F2: ДРУГОЕ | G2: PASS | H2: 8 | I2: 6 | J2: 8.2 | K2: 8.3 | L2: 6.1 | M2: 3.5 | N2: 4 | O2: 7 | P2: 6 | Q2: 0.6322222222 | R2: Руководящий документ | S2: «Единое здоровье»; универсальный
C3: ПП-3.1 | D3: Цель(и), функции и обязанности всех участвующих секторов координированной системы эпиднадзора согласованы на национальном уровне | E3: У1 | F3: ДРУГОЕ
D4: Цель(и), функции и обязанности всех участвующих секторов координированной системы эпиднадзора согласованы и охватывают все уровни в стране | E4: У2 | F4: ДРУГОЕ
D5: Цель(и), функции и обязанности в рамках координированной системы эпиднадзора пересмотрены для учета текущих потребностей координированной системы эпиднадзора | E5: У3 | F5: ДРУГОЕ
B6: Оценка | C6: О-2.1 | D6: Оценка взаимосвязей между существующими системами эпиднадзора за приоритетными зоонозами проведена на межотраслевом уровне | E6: У1 | F6: ДРУГОЕ
C7: О-3.2 | D7: Существующие планы эпиднадзора (включая определения случаев, протоколы и стандартные операционные процедуры), относящиеся к координированной системе эпиднадзора, оценены на предмет их возможной консолидации и объединения на национальном уровне | E7: У1 | F7: ДРУГОЕ
D8: Существующие планы эпиднадзора (включая определения случаев, протоколы и стандартные операционные процедуры), относящиеся к координированной системе эпиднадзора, оценены на предмет их возможной консолидации и объединения на всех уровнях в стране | E8: У3 | F8: ДРУГОЕ
C9: О-6.1 | D9: Оценка кадровых ресурсов проведена для определения текущих требований, компетенций, потребностей и пробелов в области кадрового потенциала на всех уровнях в стране | E9: У3 | F9: ДРУГОЕ
B10: Планирование | C10: PLG | D10: Н/П | E10: Н/П | F10: Н/П
C11: ПЛ-3.1 | D11: В целях планирования проведен межотраслевой обзор национальных рамочных программ и стратегических планов, относящихся к координированной системе эпиднадзора. | E11: У1 | F11: ДРУГОЕ
D12: Рамочные программы и стратегические планы по координированной системе эпиднадзора сведены воедино и согласованы на основе результатов оценки на всех уровнях в стране | E12: У2 | F12: ДРУГОЕ
C13: ПЛ-3.2 | D13: В целях планирования проведен межотраслевой обзор национальных планов эпиднадзора (включая оперативные планы/планы действий, определения случаев, протоколы и стандартные операционные процедуры), относящихся к координированной системе эпиднадзора. | E13: У1 | F13: ДРУГОЕ
D14: Планы эпиднадзора (включая оперативные планы/планы действий, определения случаев, протоколы и стандартные операционные процедуры) по координированной системе эпиднадзора сведены воедино и согласованы в целях обмена данными на всех уровнях в стране | E14: У2 | F14: ДРУГОЕ
B15: Внедрение | C15: B-2.1 | D15: Координаторы или технические рабочие группы проводят совещания эпизодически | E15: У1 | F15: ДРУГОЕ
C16: B-2.1 | D16: Координаторы или технические рабочие группы встречаются на регулярной основе и для решения приоритетных вопросов по мере их возникновения | E16: У2 | F16: ДРУГОЕ
C17: B-2.1 | D17: Технические рабочие группы регулярно проводят обзоры мероприятий по координированному эпиднадзору и ее оптимизацию | E17: У3 | F17: ДРУГОЕ
C18: В-4.1 | D18: Запущен пилотный проект координированной системы эпиднадзора в целевых регионах | E18: У1 | F18: ДРУГОЕ
C19: В-4.1 | D19: Координированная система эпиднадзора расширена до дополнительных областей исходя из пилотных внедрений | E19: У2 | F19: ДРУГОЕ
C20: В-4.1 | D20: Координированная системы эпиднадзора является общегосударственной программой | E20: У3 | F20: ДРУГОЕ
A21: Инструмент AfyaData | B21: Внедрение | C21: B-3.1 | D21: Существует механизм обмена данными между секторами на национальном уровне | E21: У1 | F21: НАИБОЛЕЕ ПОДХОДЯЩИЙ | G21: PASS | H21: 7.3 | I21: 10 | J21: 8.2 | K21: 7.3 | L21: 7.6 | M21: 8.8 | N21: 5.5 | O21: 7.6 | P21: 7 | Q21: =SUM(H21:P21)/90 -> 0.77 | R21: Оборудование или программное обеспечение | S21: «Единое здоровье»; универсальный
C22: B-3.1 | D22: Существует механизм обмена данными между секторами на всех страновых уровнях | E22: У2 | F22: НАИБОЛЕЕ ПОДХОДЯЩИЙ | H22: 7.3 | I22: 10 | J22: 8.2 | K22: 7.3 | L22: 7.6 | M22: 8.8 | N22: 5.5 | O22: 7.6 | P22: 7 | Q22: 0.77
C23: B-3.2 | D23: Существуют структура и место для хранения и ведения данных, получаемых из различных секторов, на национальном уровне. | E23: У1 | F23: НАИБОЛЕЕ ПОДХОДЯЩИЙ | H23: 7.3 | I23: 10 | J23: 8.2 | K23: 7.3 | L23: 7.6 | M23: 8.8 | N23: 5.5 | O23: 7.6 | P23: 7 | Q23: 0.77
C24: B-3.2 | D24: Существуют структура и место для хранения и ведения данных, получаемых из различных секторов, на всех уровнях в стране | E24: У2 | F24: НАИБОЛЕЕ ПОДХОДЯЩИЙ | H24: 7.3 | I24: 10 | J24: 8.2 | K24: 7.3 | L24: 7.6 | M24: 8.8 | N24: 5.5 | O24: 7.6 | P24: 7 | Q24: 0.77
C25: В-4.1 | D25: Запущен пилотный проект координированной системы эпиднадзора в целевых регионах | E25: У1 | F25: ДРУГОЕ | H25: 7.3 | I25: 10 | J25: 8.2 | K25: 7.3 | L25: 7.6 | M25: 8.8 | N25: 5.5 | O25: 7.6 | P25: 7 | Q25: 0.77
C26: В-4.1 | D26: Координированная система эпиднадзора расширена до дополнительных областей исходя из пилотных внедрений | E26: У2 | F26: ДРУГОЕ | H26: 7.3 | I26: 10 | J26: 8.2 | K26: 7.3 | L26: 7.6 | M26: 8.8 | N26: 5.5 | O26: 7.6 | P26: 7 | Q26: 0.77
C27: B-4.2 | D27: Обмен данными осуществляется неофициально или официально эпизодически на национальном уровне | E27: У1 | F27: НАИБОЛЕЕ ПОДХОДЯЩИЙ | H27: 7.3 | I27: 10 | J27: 8.2 | K27: 7.3 | L27: 7.6 | M27: 8.8 | N27: 5.5 | O27: 7.6 | P27: 7 | Q27: 0.77
C28: B-4.2 | D28: Обмен данными осуществляется неофициально или официально регулярно и своевременно на всех уровнях в стране | E28: У2 | F28: НАИБОЛЕЕ ПОДХОДЯЩИЙ | H28: 7.3 | I28: 10 | J28: 8.2 | K28: 7.3 | L28: 7.6 | M28: 8.8 | N28: 5.5 | O28: 7.6 | P28: 7 | Q28: 0.77
C29: B-5.1 | D29: Осуществляется эпизодический обмен информацией с соответствующими заинтересованными сторонами | E29: У1 | F29: НАИБОЛЕЕ ПОДХОДЯЩИЙ | H29: 7.3 | I29: 10 | J29: 8.2 | K29: 7.3 | L29: 7.6 | M29: 8.8 | N29: 5.5 | O29: 7.6 | P29: 7 | Q29: 0.77
C30: B-5.3 | D30: Данные координированного эпиднадзора позволяют получить выходные материалы (например: рисунки, графики, отчеты или бюллетени), которые распространяются на национальном уровне | E30: У1 | F30: НАИБОЛЕЕ ПОДХОДЯЩИЙ | H30: 7.3 | I30: 10 | J30: 8.2 | K30: 7.3 | L30: 7.6 | M30: 8.8 | N30: 5.5 | O30: 7.6 | P30: 7 | Q30: 0.77
A31: Интегрированная система эпиднадзора за устойчивостью к противомикробным препаратам (консультативная группа AGISAR) | B31: Планирование | C31: PLG | D31: Н/П | E31: Н/П | F31: Н/П | G31: PASS | H31: 8.5 | I31: 6 | J31: 5.3 | K31: 3 | L31: 6.8 | M31: 2 | N31: 5.5 | O31: 10 | P31: 5 | Q31: 0.5788888889 | R31: Руководящий документ | S31: «Единое здоровье»; ориентированный на конкретную болезнь/угрозу
B32: Внедрение | C32: IG | D32: Н/П | E32: Н/П | F32: Н/П
A33: Рамочная программа для укрепления мер профилактики и борьбы с сибирской язвой | B33: Оценка | C33: О-5.1 | D33: В результате проведения оценок лабораторного потенциала были определены квалифицированные национальные или международные референс-лаборатории, которые могут проводить тестирование для поддержки деятельности в рамках координированного эпиднадзора | E33: У1 | F33: ДРУГОЕ | G33: PASS | H33: 9.1 | I33: 10 | J33: 8.6 | K33: 4.7 | L33: 9.2 | M33: 2 | N33: 6.3 | O33: 4.3 | P33: 6 | Q33: =SUM(H33:P33)/90 -> 0.6688888889 | R33: Руководящий документ | S33: «Единое здоровье»; ориентированный на конкретную болезнь/угрозу
B34: Планирование | C34: ПЛ-2.1 | D34: В каждом участвующем секторе общие элементы данных для достижения общих аналитических целей координированной системы эпиднадзора определены и согласованы на национальном уровне | E34: У1 | F34: ДРУГОЕ
C35: ПЛ-3.1 | D35: В целях планирования проведен межотраслевой обзор национальных рамочных программ и стратегических планов, относящихся к координированной системе эпиднадзора. | E35: У1 | F35: ДРУГОЕ
C36: ПЛ-3.2 | D36: В целях планирования проведен межотраслевой обзор национальных планов эпиднадзора (включая оперативные планы/планы действий, определения случаев, протоколы и стандартные операционные процедуры), относящихся к координированной системе эпиднадзора. | E36: У1 | F36: ДРУГОЕ
B37: Мониторинг и оценка | C37: МО-3.1 | D37: Существует методология управления качеством данных | E37: У1 | F37: ДРУГОЕ
A38: Инструмент оценки информатизации лабораторий (разработка APHL) | B38: Оценка | C38: О-3.4 | D38: В результате проведения базового картирования инфраструктуры (в соответствие с ТРЗ, гл. 4.1) описаны структура и взаимосвязи внутри секторов и между ними | E38: У1 | F38: ДРУГОЕ | G38: 1 EVAL | H38: 8.4 | I38: 6 | J38: 8 | K38: 10 | L38: 6 | M38: 4.5 | N38: 2 | O38: 2.8 | P38: 6 | Q38: =SUM(H38:P38)/90 -> 0.5966666667 | R38: Инструмент или процесс с методическим руководством/пояснениями | S38: Ориентированный на конкретный сектор; универсальный
D39: В ходе картирования инфраструктуры описано большинство подлежащих картированию областей (в соответствие с ТРЗ, гл. 4.1) | E39: У2 | F39: ДРУГОЕ | J39: 8 | K39: 10 | L39: 6 | M39: 4.5 | N39: 2 | O39: 2.8 | P39: 6 | Q39: 0.4366666667
C40: О-5.2 | D40: Поставки лабораторных материалов, транспортные цепочки и методы интерпретации результатов оцениваются на предмет согласования между участвующими секторами на национальном уровне | E40: У1 | F40: ДРУГОЕ | J40: 8 | K40: 10 | L40: 6 | M40: 4.5 | N40: 2 | O40: 2.8 | P40: 6 | Q40: 0.4366666667
D41: Поставки лабораторных материалов, транспортные цепочки и методы интерпретации результатов оценены на предмет согласования между участвующими секторами на всех уровнях в стране | E41: У2 | F41: ДРУГОЕ | J41: 8 | K41: 10 | L41: 6 | M41: 4.5 | N41: 2 | O41: 2.8 | P41: 6 | Q41: 0.4366666667
A42: Инструмент самооценки информатизации лабораторий (разработка Ассоциации лабораторий общественного здравоохранения (APHL)) | B42: Оценка | C42: О-3.4 | D42: В результате проведения базового картирования инфраструктуры (в соответствие с ТРЗ, гл. 4.1) описаны структура и взаимосвязи внутри секторов и между ними | E42: У1 | F42: ДРУГОЕ | G42: PASS | H42: 9.1 | I42: 6.7 | J42: 8.3 | K42: 8.4 | L42: 8.1 | M42: 8.5 | N42: 5 | O42: 6.1 | P42: 4.3 | Q42: 0.7166666667 | R42: Руководящий документ | S42: Ориентированный на конкретный сектор; универсальный
D43: В ходе картирования инфраструктуры описано большинство подлежащих картированию областей (в соответствие с ТРЗ, гл. 4.1) | E43: У2 | F43: ДРУГОЕ | I43: 6.7 | J43: 8.3 | K43: 8.4 | L43: 8.1 | M43: 8.5 | N43: 5 | O43: 6.1 | P43: 4.3 | Q43: 0.6155555556
B44: Внедрение | C44: B-3.3 | D44: Меры по обеспечению конфиденциальности и безопасности данных для защиты данных координированного эпиднадзора применяются на национальном уровне | E44: У1 | F44: ДРУГОЕ | I44: 6.7 | J44: 8.3 | K44: 8.4 | L44: 8.1 | M44: 8.5 | N44: 5 | O44: 6.1 | P44: 4.3 | Q44: 0.6155555556
C45: B-3.3 | D45: Меры по обеспечению конфиденциальности и безопасности данных для защиты данных координированного эпиднадзора применяются на всех страновых уровнях | E45: У2 | F45: ДРУГОЕ | I45: 6.7 | J45: 8.3 | K45: 8.4 | L45: 8.1 | M45: 8.5 | N45: 5 | O45: 6.1 | P45: 4.3 | Q45: 0.6155555556
C46: B-3.3 | D46: Меры по обеспечению конфиденциальности и безопасности данных для защиты данных координированного эпиднадзора прошли оценку и соответствуют целям координированной системы эпиднадзора | E46: У3 | F46: ДРУГОЕ | I46: 6.7 | J46: 8.3 | K46: 8.4 | L46: 8.1 | M46: 8.5 | N46: 5 | O46: 6.1 | P46: 4.3 | Q46: 0.6155555556
A47: Инструмент ФАО для оценки работы лабораторий и систем надзора за устойчивостью к противомикробным препаратам (ФАО-АТЛАСС) | B47: Оценка | C47: AG | D47: Н/П | E47: Н/П | F47: Н/П | G47: PASS | H47: 7.2 | I47: 10 | J47: 5.6 | K47: 7.3 | L47: 7.3 | M47: 5.2 | N47: 8.7 | O47: 5.6 | P47: 7 | Q47: =SUM(H47:P47)/90 -> 0.71 | R47: Инструмент или процесс с методическим руководством/пояснениями | S47: «Единое здоровье»; ориентированный на конкретную болезнь/угрозу
C48: О-2.1 | D48: Оценка взаимосвязей между существующими системами эпиднадзора за приоритетными зоонозами проведена на межотраслевом уровне | E48: У1 | F48: ДРУГОЕ
D49: Оценка взаимосвязей между существующими системами эпиднадзора проведена на межотраслевом уровне и на всех уровнях в стране | E49: У2 | F49: ДРУГОЕ
D50: Взаимосвязи между существующими системами эпиднадзора проанализированы и признаны соответствующими целям координированной системы эпиднадзора. | E50: У3 | F50: ДРУГОЕ
A51: Руководство для сбора данных о потенциале страны в отношении охраны здоровья в пограничных районах (BHCDG) | B51: Оценка | C51: О-1.1 | D51: Заинтересованные стороны в области эпиднадзора, эпидемиологии, лабораторных исследований и обмена информацией выявлены | E51: У1 | F51: НАИБОЛЕЕ ПОДХОДЯЩИЙ | G51: PASS | H51: 8.8 | I51: 6.7 | J51: 7.6 | K51: 9 | L51: 7 | M51: 3.8 | N51: 8 | O51: 8.4 | P51: 6 | Q51: =SUM(H51:P58)/90 -> 0.7255555556 | R51: Руководящий документ | S51: «Единое здоровье»; ориентированный на конкретную болезнь/угрозу
D52: В ходе анализа заинтересованных сторон определены участники на всех уровнях в стране | E52: У2 | F52: НАИБОЛЕЕ ПОДХОДЯЩИЙ
C53: О-2.1 | D53: Оценка взаимосвязей между существующими системами эпиднадзора за приоритетными зоонозами проведена на межотраслевом уровне | E53: У1 | F53: ДРУГОЕ
D54: Оценка взаимосвязей между существующими системами эпиднадзора проведена на межотраслевом уровне и на всех уровнях в стране | E54: У2 | F54: ДРУГОЕ
C55: О-3.1 | D55: Рамочные программы и стратегические планы, относящиеся к координированной системе эпиднадзора, оценены на предмет их возможной консолидации и объединения на национальном уровне | E55: У1 | F55: НАИБОЛЕЕ ПОДХОДЯЩИЙ
C56: О-3.2 | D56: Существующие планы эпиднадзора (включая определения случаев, протоколы и стандартные операционные процедуры), относящиеся к координированной системе эпиднадзора, оценены на предмет их возможной консолидации и объединения на национальном уровне | E56: У1 | F56: НАИБОЛЕЕ ПОДХОДЯЩИЙ
C57: О-3.3 | D57: Существующие планы действий/оперативные планы, относящиеся к координированной системе эпиднадзора, оценены на предмет их возможной консолидации и объединения на национальном уровне | E57: У1 | F57: ДРУГОЕ
C58: О-6.1 | D58: Оценки кадровых ресурсов проведены для определения текущих требований, компетенций, потребностей и пробелов в области кадрового потенциала на национальном уровне | E58: У1 | F58: НАИБОЛЕЕ ПОДХОДЯЩИЙ
A59: Руководящие принципы в отношении уровня компетенции специалистов, работающих в лабораториях общественного здравоохранения: ЦКПЗ и Ассоциация лабораторий общественного здравоохранения | B59: Оценка | C59: О-6.1 | D59: Оценки кадровых ресурсов проведены для определения текущих требований, компетенций, потребностей и пробелов в области кадрового потенциала на национальном уровне | E59: У1 | F59: ДРУГОЕ | G59: PASS | H59: 9 | I59: 7.8 | J59: 9.2 | K59: 9.1 | L59: 6.3 | M59: 3 | N59: 2 | O59: 7.8 | P59: 4 | Q59: =SUM(H59:P59)/90 -> 0.6466666667 | R59: Руководящий документ | S59: Ориентированный на конкретный сектор; универсальный
D60: Оценка кадровых ресурсов проведена для определения текущих требований, компетенций, потребностей и пробелов в области кадрового потенциала на всех уровнях в стране | E60: У3 | F60: ДРУГОЕ
A61: Стратегии трансграничной межотраслевой коммуникации и координации | B61: Планирование | C61: ПЛ-2.1 | D61: Общие элементы данных стандартизированы во всех участвующих секторах на основе общих аналитических целей координированной системы эпиднадзора и отвечают международным стандартам данных | E61: У3 | F61: ДРУГОЕ | H61: 8.9 | I61: 6 | J61: 7.6 | K61: 9 | L61: 5.6 | M61: 3.5 | N61: 4 | O61: 8.3 | P61: 8 | Q61: =SUM(H61:P61)/90 -> 0.6766666667 | R61: Инструмент или процесс с методическим руководством/пояснениями | S61: «Единое здоровье»; универсальный
C62: ПЛ-3.1 | D62: Пересмотренные рамочные программы и стратегические планы по координированной системе эпиднадзора приведены в соответствие с международными стандартами и рекомендациями. | E62: У3 | F62: ДРУГОЕ
C63: ПЛ-6.1 | D63: Пересмотренные нормативно-правовые рамки для координированной системы эпиднадзора приведены в соответствие с международными стандартами и рекомендациями. | E63: У3 | F63: НАИБОЛЕЕ ПОДХОДЯЩИЙ
C64: ПЛ-7.1 | D64: Существует стратегия коммуникации и/или план коммуникации (включающий терминологию и формы сообщений), на основе которых осуществляется коммуникация с заинтересованными сторонами и населением в рамках координированной системы эпиднадзора | E64: У3 | F64: НАИБОЛЕЕ ПОДХОДЯЩИЙ
A65: Районная информационная система здравоохранения, версия 2 (DHIS2) | B65: Внедрение | C65: B-3.1 | D65: Существует механизм обмена данными между секторами на национальном уровне | E65: У1 | F65: НАИБОЛЕЕ ПОДХОДЯЩИЙ | G65: PASS | H65: 8.8 | I65: 8.7 | J65: 8 | K65: 8.7 | L65: 9.3 | M65: 9 | N65: 10 | O65: 7.8 | P65: 7 | Q65: =SUM(H65:P65)/90 -> 0.8588888889 | R65: Оборудование или программное обеспечение | S65: Ориентированный на конкретный сектор; универсальный
C66: B-3.1 | D66: Существует механизм обмена данными между секторами на всех страновых уровнях | E66: У2 | F66: НАИБОЛЕЕ ПОДХОДЯЩИЙ
C67: B-3.1 | D67: Существует доступный, функциональный и удобный для использования всеми участвующими секторами механизм обмена данными | E67: У3 | F67: ДРУГОЕ
C68: B-3.2 | D68: Существуют структура и место для хранения и ведения данных, получаемых из различных секторов, на национальном уровне. | E68: У1 | F68: ДРУГОЕ
C69: B-3.2 | D69: Существуют структура и место для хранения и ведения данных, получаемых из различных секторов, на всех уровнях в стране | E69: У2 | F69: ДРУГОЕ
C70: B-3.2 | D70: Существуют доступная, функциональная и используемая всеми участвующими секторами структура и место для хранения и ведения данных, получаемых из всех соответствующих секторов | E70: У3 | F70: ДРУГОЕ
C71: B-3.3 | D71: Для защиты данных координированного эпиднадзора применяются меры по обеспечению конфиденциальности и безопасности данных на национальном уровне | E71: У1 | F71: НАИБОЛЕЕ ПОДХОДЯЩИЙ
C72: B-3.3 | D72: Для защиты данных координированного эпиднадзора применяются меры по обеспечению конфиденциальности и безопасности данных на всех уровнях в стране | E72: У2 | F72: НАИБОЛЕЕ ПОДХОДЯЩИЙ
C73: B-3.3 | D73: Для защиты данных координированного эпиднадзора, прошедших оценку и соответствующих целям координированной системы эпиднадзора, применяются меры по обеспечению конфиденциальности и безопасности данных | E73: У3 | F73: НАИБОЛЕЕ ПОДХОДЯЩИЙ
C74: B-4.2 | D74: Обмен данными осуществляется неофициально или официально эпизодически на национальном уровне | E74: У1 | F74: НАИБОЛЕЕ ПОДХОДЯЩИЙ
C75: B-4.2 | D75: Обмен данными осуществляется неофициально или официально регулярно и своевременно на всех уровнях в стране | E75: У2 | F75: НАИБОЛЕЕ ПОДХОДЯЩИЙ
C76: B-4.2 | D76: Данные систематически, регулярно и своевременно предоставляются всем участвующим секторам через универсальную или объединенную платформу(платформы) | E76: У3 | F76: НАИБОЛЕЕ ПОДХОДЯЩИЙ
C77: B-5.1 | D77: Осуществляется эпизодический обмен информацией с соответствующими заинтересованными сторонами | E77: У1 | F77: НАИБОЛЕЕ ПОДХОДЯЩИЙ
C78: B-5.1 | D78: Осуществляется регулярный обмен информацией с соответствующими заинтересованными сторонами | E78: У2 | F78: НАИБОЛЕЕ ПОДХОДЯЩИЙ
C79: B-5.1 | D79: Осуществляется регулярный и своевременный обмен информацией с соответствующими заинтересованными сторонами, включая трансграничные, региональные и международные структуры | E79: У3 | F79: ДРУГОЕ
C80: B-5.3 | D80: Данные координированного эпиднадзора позволяют получить выходные материалы (например: рисунки, графики, отчеты или бюллетени), которые распространяются на национальном уровне | E80: У1 | F80: НАИБОЛЕЕ ПОДХОДЯЩИЙ
D81: Данные координированного эпиднадзора позволяют получить выходные материалы (например: рисунки, графики, отчеты или бюллетени), которые распространяются среди заинтересованных сторон на всех уровнях в стране | E81: У2 | F81: НАИБОЛЕЕ ПОДХОДЯЩИЙ
D82: Данные координированного эпиднадзора, включая отчеты о результатах мониторинга и оценки, позволяют получить выходные материалы, которые используются при разработке ответных мер, политики и программ | E82: У3 | F82: НАИБОЛЕЕ ПОДХОДЯЩИЙ
A83: Оценка системы эпиднадзора и мониторинга качества данных Европейского ЦКПЗ — справочник методов и применений | B83: Оценка | C83: О-2.1 | D83: Оценка взаимосвязей между существующими системами эпиднадзора за приоритетными зоонозами проведена на межотраслевом уровне | E83: У1 | F83: ДРУГОЕ | G83: PASS | H83: 8.2 | I83: 6 | J83: 6.4 | K83: 7.3 | L83: 7.7 | M83: 4.5 | N83: 5.3 | O83: 6.2 | P83: 8 | Q83: =SUM(H83:P83)/90 -> 0.6622222222 | R83: Руководящий документ | S83: Ориентированный на конкретный сектор; универсальный
D84: Оценка взаимосвязей между существующими системами эпиднадзора проведена на межотраслевом уровне и на всех уровнях в стране | E84: У2 | F84: ДРУГОЕ
D85: Взаимосвязи между существующими системами эпиднадзора проанализированы и признаны соответствующими целям координированной системы эпиднадзора. | E85: У3 | F85: ДРУГОЕ
C86: О-3.2 | D86: Существующие планы эпиднадзора (включая определения случаев, протоколы и стандартные операционные процедуры), относящиеся к координированной системе эпиднадзора, оценены на предмет их возможной консолидации и объединения на национальном уровне | E86: У1 | F86: ДРУГОЕ
D87: Существующие планы эпиднадзора (включая определения случаев, протоколы и стандартные операционные процедуры), относящиеся к координированной системе эпиднадзора, оценены на предмет их возможной консолидации и объединения на всех уровнях в стране | E87: У3 | F87: ДРУГОЕ
B88: Планирование | C88: ПЛ-3.2 | D88: В целях планирования проведен межотраслевой обзор национальных планов эпиднадзора (включая оперативные планы/планы действий, определения случаев, протоколы и стандартные операционные процедуры), относящихся к координированной системе эпиднадзора. | E88: У1 | F88: ДРУГОЕ
D89: Планы эпиднадзора (включая оперативные планы/планы действий, определения случаев, протоколы и стандартные операционные процедуры) по координированной системе эпиднадзора сведены воедино и согласованы в целях обмена данными на всех уровнях в стране | E89: У2 | F89: ДРУГОЕ
D90: Пересмотренные планы эпиднадзора (включая оперативные планы/планы действий, определения случаев, протоколы и стандартные операционные процедуры) по координированной системе эпиднадзора приведены в соответствие с международными стандартами и рекомендациями. | E90: У3 | F90: ДРУГОЕ
B91: Мониторинг и оценка | C91: МО-2.1 | D91: Существует план мониторинга и оценки, отвечающий целям координированной системы эпиднадзора | E91: У1 | F91: ДРУГОЕ
C92: МО-2.1 | D92: С помощью плана мониторинга и оценки оценивается эффективность деятельности и достигнутый прогресс в рамках координированной системы эпиднадзора | E92: У2 | F92: ДРУГОЕ
C93: МО-2.1 | D93: Результаты мониторинга и оценки позволяют последовательно совершенствовать или расширять координированную систему эпиднадзора и приводить ее в соответствие с международными стандартами и рекомендациями | E93: У3 | F93: ДРУГОЕ
C94: МО-3.1 | D94: Существует методология управления качеством данных | E94: У1 | F94: НАИБОЛЕЕ ПОДХОДЯЩИЙ
C95: МО-3.1 | D95: Качество данных проверено и признано соответствующим целям координированной системы эпиднадзора | E95: У2 | F95: ДРУГОЕ
C96: МО-3.1 | D96: Качество данных соответствует международным стандартам и рекомендациям | E96: У3 | F96: ДРУГОЕ
A97: Инструмент Европейского ЦКПЗ для приоритизации угроз инфекционных заболеваний | B97: Предварительное планирование | C97: ПП-2.1 | D97: Существует список приоритетных зоонозов, подлежащих включению в координированную систему эпиднадзора | E97: У1 | F97: НАИБОЛЕЕ ПОДХОДЯЩИЙ | G97: PASS | H97: 9.8 | I97: 10 | J97: 8 | K97: 8.7 | L97: 7.1 | M97: 4.5 | N97: 8 | O97: 8.5 | P97: 9 | Q97: =SUM(H97:P97)/90 -> 0.8177777778 | R97: Инструмент самооценки | S97: Ориентированный на конкретный сектор; универсальный
D98: Список зоонозов широко распространен на субнациональном уровне и уровне сообществ | E98: У2 | F98: НАИБОЛЕЕ ПОДХОДЯЩИЙ
D99: Список зоонозов составляется с использованием межотраслевого подхода «Единое здоровье». Такой подход предполагает участие всех соответствующих секторов в основанном на фактических данных, прозрачном и воспроизводимом процессе определения приоритетов. | E99: У3 | F99: НАИБОЛЕЕ ПОДХОДЯЩИЙ
A100: Оценка сотрудничества в рамках межотраслевой системы эпиднадзора (ECoSur) | B100: Предварительное планирование | C100: PPG | D100: Н/П | E100: Н/П | F100: Н/П | G100: PASS | H100: 8.3 | I100: 6 | J100: 8.5 | K100: 7.8 | L100: 8.3 | M100: 6.7 | N100: 3.3 | O100: 9.1 | P100: 4.7 | Q100: =SUM(H100:P100)/90 -> 0.6966666667 | R100: Инструмент или процесс с методическим руководством/пояснениями | S100: «Единое здоровье»; универсальный
C101: ПП-1.1 | D101: Во всех участвующих секторах на национальном уровне определены координаторы, «лидеры» или технические рабочие группы для планирования внедрения координированного эпиднадзора | E101: У1 | F101: ДРУГОЕ
D102: Во всех участвующих секторах на всех уровнях в стране определены координаторы, «лидеры» или технические рабочие группы для планирования внедрения координированного эпиднадзора | E102: У2 | F102: ДРУГОЕ
D103: Координаторы, «лидеры» или технические рабочие группы (включая выявленных координаторов или «лидеров») в области координированного эпиднадзора институализированы (например: в рамках руководящего органа, такого как МКМ) | E103: У3 | F103: ДРУГОЕ
C104: ПП-3.1 | D104: Цель(и), функции и обязанности всех участвующих секторов координированной системы эпиднадзора согласованы и охватывают все уровни в стране | E104: У2 | F104: НАИБОЛЕЕ ПОДХОДЯЩИЙ
C105: ПП-3.1 | D105: Цель(и), функции и обязанности в рамках координированной системы эпиднадзора пересмотрены для учета текущих потребностей координированной системы эпиднадзора | E105: У3 | F105: НАИБОЛЕЕ ПОДХОДЯЩИЙ
B106: Оценка | C106: AG | D106: Н/П | E106: Н/П | F106: Н/П
C107: О-1.1 | D107: Заинтересованные стороны в области эпиднадзора, эпидемиологии, лабораторных исследований и обмена информацией выявлены | E107: У1 | F107: ДРУГОЕ
D108: В ходе анализа заинтересованных сторон определены участники на всех уровнях в стране | E108: У2 | F108: ДРУГОЕ
D109: Функции и обязанности заинтересованных сторон институционализированы и включены в политические документы | E109: У3 | F109: ДРУГОЕ
C110: О-2.1 | D110: Оценка взаимосвязей между существующими системами эпиднадзора за приоритетными зоонозами проведена на межотраслевом уровне | E110: У1 | F110: ДРУГОЕ
D111: Оценка взаимосвязей между существующими системами эпиднадзора проведена на межотраслевом уровне и на всех уровнях в стране | E111: У2 | F111: ДРУГОЕ
D112: Взаимосвязи между существующими системами эпиднадзора проанализированы и признаны соответствующими целям координированной системы эпиднадзора. | E112: У3 | F112: ДРУГОЕ
C113: О-2.2 | D113: Оценка нормативно-правовой базы (правил, политики, руководящих принципов и положений, включая международные стандарты), регулирующей стандарты этики и конфиденциальности в области эпиднадзора и обмена данными, проведена. | E113: У1 | F113: НАИБОЛЕЕ ПОДХОДЯЩИЙ
D114: Оценка нормативно-правовой базы (правил, политики, руководящих принципов и положений, включая международные стандарты), регулирующей стандарты этики и конфиденциальности в области эпиднадзора и обмена данными, проводится на всех уровнях в стране | E114: У3 | F114: НАИБОЛЕЕ ПОДХОДЯЩИЙ
C115: О-3.1 | D115: Рамочные программы и стратегические планы, относящиеся к координированной системе эпиднадзора, оценены на предмет их возможной консолидации и объединения на национальном уровне | E115: У1 | F115: ДРУГОЕ
D116: Рамочные программы и стратегические планы, относящиеся к координированной системе эпиднадзора, оценены на предмет их возможной консолидации и объединения на всех уровнях в стране | E116: У3 | F116: ДРУГОЕ
C117: О-3.2 | D117: Существующие планы эпиднадзора (включая определения случаев, протоколы и стандартные операционные процедуры), относящиеся к координированной системе эпиднадзора, оценены на предмет их возможной консолидации и объединения на национальном уровне | E117: У1 | F117: ДРУГОЕ
D118: Существующие планы эпиднадзора (включая определения случаев, протоколы и стандартные операционные процедуры), относящиеся к координированной системе эпиднадзора, оценены на предмет их возможной консолидации и объединения на всех уровнях в стране | E118: У3 | F118: ДРУГОЕ
C119: О-3.3 | D119: Существующие планы действий/оперативные планы, относящиеся к координированной системе эпиднадзора, оценены на предмет их возможной консолидации и объединения на национальном уровне | E119: У1 | F119: ДРУГОЕ
D120: Существующие планы действий/оперативные планы, относящиеся к координированной системе эпиднадзора, оценены на предмет их возможной консолидации и объединения на всех уровнях в стране | E120: У3 | F120: ДРУГОЕ
C121: О-3.4 | D121: В результате проведения базового картирования инфраструктуры (в соответствие с ТРЗ, гл. 4.1) описаны структура и взаимосвязи внутри секторов и между ними | E121: У1 | F121: ДРУГОЕ
D122: В ходе картирования инфраструктуры описано большинство подлежащих картированию областей (в соответствие с ТРЗ, гл. 4.1) | E122: У2 | F122: ДРУГОЕ
D123: Полное картирование инфраструктуры использовано для описания всех подлежащих картированию областей (в соответствие с ТРЗ, гл. 4.1). | E123: У3 | F123: ДРУГОЕ
C124: О-4.1 | D124: Экономические оценки были использованы для определения национальных финансовых потребностей координированной системы эпиднадзора | E124: У1 | F124: НАИБОЛЕЕ ПОДХОДЯЩИЙ
D125: Экономические оценки проведены для определения финансовых потребностей на всех уровнях в стране в отношении координированной системы эпиднадзора | E125: У3 | F125: НАИБОЛЕЕ ПОДХОДЯЩИЙ
C126: О-5.1 | D126: В результате проведения оценок лабораторного потенциала были определены квалифицированные национальные или международные референс-лаборатории, которые могут проводить тестирование для поддержки деятельности в рамках координированного эпиднадзора | E126: У1 | F126: НАИБОЛЕЕ ПОДХОДЯЩИЙ
D127: В результате проведения оценок лабораторного потенциала были определены квалифицированные лаборатории на всех уровнях (включая международный), которые могут проводить тестирование для поддержки мероприятий в рамках координированного эпиднадзора | E127: У2 | F127: НАИБОЛЕЕ ПОДХОДЯЩИЙ
D128: В результате проведения оценок лабораторного потенциала выявлена сеть квалифицированных лабораторий, которые могут проводить тестирование для поддержки мероприятий в рамках координированного эпиднадзора | E128: У3 | F128: НАИБОЛЕЕ ПОДХОДЯЩИЙ
C129: О-5.2 | D129: Поставки лабораторных материалов, транспортные цепочки и методы интерпретации результатов оцениваются на предмет согласования между участвующими секторами на национальном уровне | E129: У1 | F129: НАИБОЛЕЕ ПОДХОДЯЩИЙ
D130: Поставки лабораторных материалов, транспортные цепочки и методы интерпретации результатов оценены на предмет согласования между участвующими секторами на всех уровнях в стране | E130: У2 | F130: НАИБОЛЕЕ ПОДХОДЯЩИЙ
D131: Степень согласованности способов поставок лабораторных материалов, транспортных цепочек и методов интерпретации результатов между участвующими секторами оценена и признана соответствующей целям координированной системы эпиднадзора | E131: У3 | F131: НАИБОЛЕЕ ПОДХОДЯЩИЙ
C132: О-6.1 | D132: Оценки кадровых ресурсов проведены для определения текущих требований, компетенций, потребностей и пробелов в области кадрового потенциала на национальном уровне | E132: У1 | F132: НАИБОЛЕЕ ПОДХОДЯЩИЙ
C133: О-6.1 | D133: Оценка кадровых ресурсов проведена для определения текущих требований, компетенций, потребностей и пробелов в области кадрового потенциала на всех уровнях в стране | E133: У3 | F133: НАИБОЛЕЕ ПОДХОДЯЩИЙ
B134: Планирование | C134: ПЛ-1.1 | D134: Определены лица, принимающие решения в отношении координированной системы эпиднадзора | E134: У1 | F134: ДРУГОЕ
C135: ПЛ-2.1 | D135: В каждом участвующем секторе общие элементы данных для достижения общих аналитических целей координированной системы эпиднадзора определены и согласованы на национальном уровне | E135: У1 | F135: ДРУГОЕ
C136: ПЛ-2.1 | D136: В каждом участвующем секторе общие элементы данных для достижения общих аналитических целей координированной системы эпиднадзора определены и согласованы на всех уровнях в стране | E136: У2 | F136: ДРУГОЕ
A137: Рамочная программа ЕФСА для сбора данных | B137: Планирование | C137: ПЛ-2.1 | D137: В каждом участвующем секторе общие элементы данных для достижения общих аналитических целей координированной системы эпиднадзора определены и согласованы на всех уровнях в стране | E137: У2 | F137: ДРУГОЕ | G137: PASS | H137: 8.5 | I137: 4 | J137: 6.8 | K137: 9.3 | L137: 7.1 | M137: 5.5 | N137: 5 | O137: 8.3 | P137: 10 | Q137: =SUM(H137:P137)/90 -> 0.7166666667 | R137: Оборудование или программное обеспечение | S137: «Единое здоровье»; универсальный
A138: Электронная интегрированная система эпиднадзора за болезнями (EIDSS) | B138: Внедрение | C138: B-3.1 | D138: Существует механизм обмена данными между секторами на национальном уровне | E138: У1 | F138: НАИБОЛЕЕ ПОДХОДЯЩИЙ | G138: PASS | H138: 6.8 | I138: 10 | J138: 8.4 | K138: 8.7 | L138: 9.1 | M138: 8 | N138: 7 | O138: 7.2 | P138: 10 | Q138: =SUM(H138:P138)/90 -> 0.8355555556 | R138: Оборудование или программное обеспечение | S138: «Единое здоровье»; универсальный
C139: B-3.1 | D139: Существует механизм обмена данными между секторами на всех страновых уровнях | E139: У2 | F139: НАИБОЛЕЕ ПОДХОДЯЩИЙ
C140: B-3.1 | D140: Существует доступный, функциональный и удобный для использования всеми участвующими секторами механизм обмена данными | E140: У3 | F140: НАИБОЛЕЕ ПОДХОДЯЩИЙ
C141: B-3.2 | D141: Существуют структура и место для хранения и ведения данных, получаемых из различных секторов, на национальном уровне. | E141: У1 | F141: НАИБОЛЕЕ ПОДХОДЯЩИЙ
C142: B-3.2 | D142: Существуют структура и место для хранения и ведения данных, получаемых из различных секторов, на всех уровнях в стране | E142: У2 | F142: НАИБОЛЕЕ ПОДХОДЯЩИЙ
C143: B-3.2 | D143: Существуют доступная, функциональная и используемая всеми участвующими секторами структура и место для хранения и ведения данных, получаемых из всех соответствующих секторов | E143: У3 | F143: НАИБОЛЕЕ ПОДХОДЯЩИЙ
C144: B-3.3 | D144: Для защиты данных координированного эпиднадзора применяются меры по обеспечению конфиденциальности и безопасности данных на национальном уровне | E144: У1 | F144: НАИБОЛЕЕ ПОДХОДЯЩИЙ
C145: B-3.3 | D145: Для защиты данных координированного эпиднадзора применяются меры по обеспечению конфиденциальности и безопасности данных на всех уровнях в стране | E145: У2 | F145: НАИБОЛЕЕ ПОДХОДЯЩИЙ
C146: B-3.3 | D146: Для защиты данных координированного эпиднадзора, прошедших оценку и соответствующих целям координированной системы эпиднадзора, применяются меры по обеспечению конфиденциальности и безопасности данных | E146: У3 | F146: НАИБОЛЕЕ ПОДХОДЯЩИЙ
C147: В-4.1 | D147: Запущен пилотный проект координированной системы эпиднадзора в целевых регионах | E147: У1 | F147: ДРУГОЕ
C148: В-4.1 | D148: Координированная система эпиднадзора расширена до дополнительных областей исходя из пилотных внедрений | E148: У2 | F148: ДРУГОЕ
C149: В-4.1 | D149: Координированная системы эпиднадзора является общегосударственной программой | E149: У3 | F149: ДРУГОЕ
C150: B-4.2 | D150: Обмен данными осуществляется неофициально или официально эпизодически на национальном уровне | E150: У1 | F150: НАИБОЛЕЕ ПОДХОДЯЩИЙ
C151: B-4.2 | D151: Обмен данными осуществляется неофициально или официально регулярно и своевременно на всех уровнях в стране | E151: У2 | F151: НАИБОЛЕЕ ПОДХОДЯЩИЙ
C152: B-4.2 | D152: Данные систематически, регулярно и своевременно предоставляются всем участвующим секторам через универсальную или объединенную платформу(платформы) | E152: У3 | F152: НАИБОЛЕЕ ПОДХОДЯЩИЙ
C153: B-5.3 | D153: Данные координированного эпиднадзора позволяют получить выходные материалы (например: рисунки, графики, отчеты или бюллетени), которые распространяются на национальном уровне | E153: У1 | F153: НАИБОЛЕЕ ПОДХОДЯЩИЙ
D154: Данные координированного эпиднадзора, включая отчеты о результатах мониторинга и оценки, позволяют получить выходные материалы, которые используются при разработке ответных мер, политики и программ | E154: У3 | F154: ДРУГОЕ
A155: Инициатива по выявлению эпидемиологических угроз с использованием открытых источников (EIOS) | B155: Внедрение | C155: B-3.1 | D155: Существует механизм обмена данными между секторами на национальном уровне | E155: У1 | F155: ДРУГОЕ | G155: PASS | H155: 8.4 | I155: 9 | J155: 7.4 | K155: 9 | L155: 8.8 | M155: 8 | N155: 5.5 | O155: 9.2 | P155: 6 | Q155: =SUM(H155:P155)/90 -> 0.7922222222 | R155: Оборудование или программное обеспечение | S155: «Единое здоровье»; универсальный
C156: B-3.1 | D156: Существует доступный, функциональный и удобный для использования всеми участвующими секторами механизм обмена данными | E156: У3 | F156: ДРУГОЕ
C157: B-4.2 | D157: Обмен данными осуществляется неофициально или официально эпизодически на национальном уровне | E157: У1 | F157: ДРУГОЕ
C158: B-4.2 | D158: Обмен данными осуществляется неофициально или официально регулярно и своевременно на всех уровнях в стране | E158: У2 | F158: ДРУГОЕ
C159: B-4.2 | D159: Данные систематически, регулярно и своевременно предоставляются всем участвующим секторам через универсальную или объединенную платформу(платформы) | E159: У3 | F159: ДРУГОЕ
C160: B-5.1 | D160: Осуществляется эпизодический обмен информацией с соответствующими заинтересованными сторонами | E160: У1 | F160: ДРУГОЕ
C161: B-5.1 | D161: Осуществляется регулярный обмен информацией с соответствующими заинтересованными сторонами | E161: У2 | F161: ДРУГОЕ
C162: B-5.1 | D162: Осуществляется регулярный и своевременный обмен информацией с соответствующими заинтересованными сторонами, включая трансграничные, региональные и международные структуры | E162: У3 | F162: ДРУГОЕ
A163: Мобильное приложение EMA-i для обмена данными о болезнях животных | B163: Внедрение | C163: B-3.1 | D163: Существует механизм обмена данными между секторами на национальном уровне | E163: У1 | F163: ДРУГОЕ | G163: PASS | H163: 8.9 | I163: 7.7 | J163: 9.1 | K163: 6 | L163: 8.3 | M163: 9.3 | N163: 6.7 | O163: 4.5 | P163: 5.7 | Q163: =SUM(H163:P163)/90 -> 0.7355555556 | R163: Оборудование или программное обеспечение | S163: Ориентированный на конкретный сектор; универсальный
D164: Существует механизм обмена данными между секторами на всех страновых уровнях | E164: У2 | F164: ДРУГОЕ
C165: B-5.2 | D165: Соблюдение международных требований в отношении оповещения обо всех случаях зоонозов | E165: У1 | F165: ДРУГОЕ
A166: Глобальная информационная система болезней животных (EMPRES-i) | B166: Внедрение | C166: B-3.1 | D166: Существует механизм обмена данными между секторами на национальном уровне | E166: У1 | F166: ДРУГОЕ | G166: PASS | H166: 9 | I166: 8.3 | J166: 8.9 | K166: 8.7 | L166: 8 | M166: 7.8 | N166: 7.4 | O166: 4.8 | P166: 4.7 | Q166: =SUM(H166:P166)/90 -> 0.7511111111 | R166: Оборудование или программное обеспечение | S166: Ориентированный на конкретный сектор; универсальный
C167: B-3.1 | D167: Существует механизм обмена данными между секторами на всех страновых уровнях | E167: У2 | F167: НАИБОЛЕЕ ПОДХОДЯЩИЙ
C168: B-3.2 | D168: Существуют структура и место для хранения и ведения данных, получаемых из различных секторов, на национальном уровне. | E168: У1 | F168: ДРУГОЕ
C169: B-3.2 | D169: Существуют структура и место для хранения и ведения данных, получаемых из различных секторов, на всех уровнях в стране | E169: У2 | F169: ДРУГОЕ
C170: B-3.2 | D170: Существуют доступная, функциональная и используемая всеми участвующими секторами структура и место для хранения и ведения данных, получаемых из всех соответствующих секторов | E170: У3 | F170: ДРУГОЕ
C171: B-3.3 | D171: Для защиты данных координированного эпиднадзора применяются меры по обеспечению конфиденциальности и безопасности данных на национальном уровне | E171: У1 | F171: ДРУГОЕ
C172: B-3.3 | D172: Для защиты данных координированного эпиднадзора применяются меры по обеспечению конфиденциальности и безопасности данных на всех уровнях в стране | E172: У2 | F172: ДРУГОЕ
C173: B-5.1 | D173: Осуществляется эпизодический обмен информацией с соответствующими заинтересованными сторонами | E173: У1 | F173: ДРУГОЕ
A174: Инструмент эпидемиологического картирования (EMT) | B174: Оценка | C174: О-3.2 | D174: Существующие планы эпиднадзора (включая определения случаев, протоколы и стандартные операционные процедуры), относящиеся к координированной системе эпиднадзора, оценены на предмет их возможной консолидации и объединения на национальном уровне | E174: У1 | F174: ДРУГОЕ | G174: PASS | H174: 6.6 | I174: 8 | J174: 7.4 | K174: 7.3 | L174: 6.9 | M174: 5 | N174: 3.5 | O174: 6.8 | P174: 5.5 | Q174: =SUM(H174:P174)/90 -> 0.6333333333 | R174: Инструмент или процесс с методическим руководством/пояснениями | S174: Ориентированный на конкретный сектор; универсальный
C175: О-6.1 | D175: Оценки кадровых ресурсов проведены для определения текущих требований, компетенций, потребностей и пробелов в области кадрового потенциала на национальном уровне | E175: У1 | F175: НАИБОЛЕЕ ПОДХОДЯЩИЙ
A176: Руководство для разработки планов эпиднадзора за болезнями животных | C176: ПЛ-3.2 | D176: В целях планирования проведен межотраслевой обзор национальных планов эпиднадзора (включая оперативные планы/планы действий, определения случаев, протоколы и стандартные операционные процедуры), относящихся к координированной системе эпиднадзора. | E176: У1 | F176: ДРУГОЕ | G176: PASS | H176: 9.2 | I176: 10 | J176: 7.5 | K176: 8.7 | L176: 5.7 | M176: 2.5 | N176: 3.3 | O176: 5.1 | P176: 4 | Q176: =SUM(H176:P176)/90 -> 0.6222222222 | R176: Шаблон | S176: Ориентированный на конкретный сектор; универсальный
C177: ПЛ-3.2 | D177: Планы эпиднадзора (включая оперативные планы/планы действий, определения случаев, протоколы и стандартные операционные процедуры) по координированной системе эпиднадзора сведены воедино и согласованы в целях обмена данными на всех уровнях в стране | E177: У2 | F177: ДРУГОЕ
C178: ПЛ-3.2 | D178: Пересмотренные планы эпиднадзора (включая оперативные планы/планы действий, определения случаев, протоколы и стандартные операционные процедуры) по координированной системе эпиднадзора приведены в соответствие с международными стандартами и рекомендациями. | E178: У3 | F178: ДРУГОЕ
A179: Приложение FoodChain-Lab (FCL) | B179: Внедрение | C179: B-3.1 | D179: Существует механизм обмена данными между секторами на национальном уровне | E179: У1 | F179: ДРУГОЕ | G179: PASS | H179: 9.7 | I179: 6 | J179: 7.9 | K179: 7.8 | L179: 8.1 | M179: 8 | N179: 7.9 | O179: 8.4 | P179: 9.7 | Q179: =SUM(H179:P179)/90 -> 0.8166666667 | R179: Оборудование или программное обеспечение | S179: «Единое здоровье»; ориентированный на конкретную болезнь/угрозу
C180: B-5.3 | D180: Данные координированного эпиднадзора позволяют получить выходные материалы (например: рисунки, графики, отчеты или бюллетени), которые распространяются на национальном уровне | E180: У1 | F180: ДРУГОЕ
D181: Данные координированного эпиднадзора позволяют получить выходные материалы (например: рисунки, графики, отчеты или бюллетени), которые распространяются среди заинтересованных сторон на всех уровнях в стране | E181: У2 | F181: ДРУГОЕ
D182: Данные координированного эпиднадзора, включая отчеты о результатах мониторинга и оценки, позволяют получить выходные материалы, которые используются при разработке ответных мер, политики и программ | E182: У3 | F182: ДРУГОЕ
A183: Рамочная программа для оценки систем эпиднадзора за здоровьем человека с целью раннего обнаружения вспышек заболеваний | B183: Оценка | C183: О-3.1 | D183: Рамочные программы и стратегические планы, относящиеся к координированной системе эпиднадзора, оценены на предмет их возможной консолидации и объединения на национальном уровне | E183: У1 | F183: ДРУГОЕ | H183: 9.2 | I183: 6.7 | J183: 8.4 | K183: 8.7 | L183: 7.1 | M183: 2 | N183: 2.5 | O183: 8.2 | P183: 6 | Q183: =SUM(H183:P183)/90 -> 0.6533333333 | R183: Руководящий документ | S183: Ориентированный на конкретный сектор; универсальный
A184: Глобальный механизм ликвидации бешенства у собак (GDREP) | B184: Оценка | C184: О-4.1 | D184: Экономические оценки были использованы для определения национальных финансовых потребностей координированной системы эпиднадзора | E184: У1 | F184: НАИБОЛЕЕ ПОДХОДЯЩИЙ | G184: PASS | H184: 9.1 | I184: 7.3 | J184: 8.7 | K184: 6 | L184: 7.9 | M184: 6 | N184: 7 | O184: 6.3 | P184: 7 | Q184: =SUM(H184:P184)/90 -> 0.7255555556 | R184: Инструмент самооценки | S184: «Единое здоровье»; ориентированный на конкретную болезнь/угрозу
D185: Экономические оценки проведены для определения финансовых потребностей на всех уровнях в стране в отношении координированной системы эпиднадзора | E185: У3 | F185: НАИБОЛЕЕ ПОДХОДЯЩИЙ
C186: О-6.1 | D186: Оценки кадровых ресурсов проведены для определения текущих требований, компетенций, потребностей и пробелов в области кадрового потенциала на национальном уровне | E186: У1 | F186: НАИБОЛЕЕ ПОДХОДЯЩИЙ
D187: Оценка кадровых ресурсов проведена для определения текущих требований, компетенций, потребностей и пробелов в области кадрового потенциала на всех уровнях в стране | E187: У3 | F187: ДРУГОЕ
C188: ПЛ-5.1 | D188: План обучения и профессиональной подготовки кадров для координированной системы эпиднадзора разработан на основе оценки кадровых ресурсов на национальном уровне | E188: У1 | F188: ДРУГОЕ
D189: План обучения и профессиональной подготовки кадров для координированной системы эпиднадзора разработан на основе оценки кадровых ресурсов для всех страновых уровней | E189: У2 | F189: ДРУГОЕ
D190: Образование и профессиональная подготовка кадров включены в процесс национального межотраслевого кадрового планирования с учетом международных компетенций и оценок | E190: У3 | F190: ДРУГОЕ
B191: Планирование | C191: ПЛ-6.1 | D191: По результатам оценки необходимые нормативно-правовые рамки (правила, стратегии, руководства и положения, включая международные стандарты) стандартизированы во всех секторах на национальном уровне | E191: У1 | F191: ДРУГОЕ
D192: По результатам оценки необходимые нормативно-правовые рамки (правила, стратегии, руководства и положения, включая международные стандарты) стандартизированы во всех секторах на всех страновых уровнях | E192: У2 | F192: ДРУГОЕ
D193: Пересмотренные нормативно-правовые рамки для координированной системы эпиднадзора приведены в соответствие с международными стандартами и рекомендациями. | E193: У3 | F193: ДРУГОЕ
A194: Подход к оценке систем здравоохранения (HSAA) | B194: Оценка | C194: AG | D194: Н/П | E194: Н/П | F194: Н/П | G194: 1 EVAL | H194: 10 | I194: 10 | J194: 6.4 | K194: 4.7 | L194: 8.3 | M194: 2 | N194: 3 | O194: 6 | P194: 4 | Q194: =SUM(H194:P194)/90 -> 0.6044444444 | R194: Руководящий документ | S194: Ориентированный на конкретный сектор; универсальный
A195: Комплексная система эпиднадзора и мер реагирования (IDSR) | B195: Предварительное планирование | C195: ПП-1.1 | D195: Во всех участвующих секторах на национальном уровне определены координаторы, «лидеры» или технические рабочие группы для планирования внедрения координированного эпиднадзора | E195: У1 | F195: ДРУГОЕ | G195: PASS | H195: 7.4 | I195: 10 | J195: 7.4 | K195: 8.7 | L195: 6.7 | M195: 4.5 | N195: 8 | O195: 7.2 | P195: 8.5 | Q195: =SUM(H195:P195)/90 -> 0.76 | R195: Руководящий документ | S195: Ориентированный на конкретный сектор; универсальный
D196: Во всех участвующих секторах на всех уровнях в стране определены координаторы, «лидеры» или технические рабочие группы для планирования внедрения координированного эпиднадзора | E196: У2 | F196: ДРУГОЕ
D197: Координаторы, «лидеры» или технические рабочие группы (включая выявленных координаторов или «лидеров») в области координированного эпиднадзора институализированы (например: в рамках руководящего органа, такого как МКМ) | E197: У3 | F197: ДРУГОЕ
C198: ПП-3.1 | D198: Цель(и), функции и обязанности всех участвующих секторов координированной системы эпиднадзора согласованы на национальном уровне | E198: У1 | F198: НАИБОЛЕЕ ПОДХОДЯЩИЙ
D199: Цель(и), функции и обязанности всех участвующих секторов координированной системы эпиднадзора согласованы и охватывают все уровни в стране | E199: У2 | F199: НАИБОЛЕЕ ПОДХОДЯЩИЙ
B200: Оценка | C200: О-1.1 | D200: Заинтересованные стороны в области эпиднадзора, эпидемиологии, лабораторных исследований и обмена информацией выявлены | E200: У1 | F200: ДРУГОЕ
... 478 more rows

Sheet Section I
B3: РАЗДЕЛ I: ПРЕДВАРИТЕЛЬНОЕ ПЛАНИРОВАНИЕ
B8: В данном разделе инструмента будут представлены первые пять этапов процесса построения координированного эпиднадзора: Предварительное планирование. Вам предстоит оценить в общей сложности три мероприятия по трем областям.
B17: Обзор этапа предварительного планирования
B21: Этап предварительного планирования включает подготовительные шаги, предшествующие работе по созданию или укреплению координированной системы эпиднадзора за зоонозами. Они включают такие мероприятия, как предварительное выявление заинтересованных сторон, определение приоритетных зоонозов для включения в систему, а также определение задач и постановка целей для системы. Эти шаги важны для создания прочного основания для построения или укрепления функциональной координированной системы эпиднадзора. Ресурсы, представленные в данном разделе, следует выбирать на данном подготовительном этапе, предшествующем созданию или укреплению национальной координированной системы эпиднадзора за зоонозами, при помощи РИ ЭОИ.

Sheet Focal Points
B3: Координаторы
B8: Исходя из имеющегося уровня потенциала в вашей стране, выберите «1», если каждое мероприятие ниже выполнено, или «0», если процесс еще не завершен.
B12: ВАЖНЫЕ ЗАМЕЧАНИЯ: ·Выберите «1», если данный уровень потенциала достигнут, и «0», если мероприятие не было выполнено или находится в процессе выполнения. ·Если данный уровень потенциала достигнут и выбран ответ «1», то для мероприятия становится активным следующий уровень потенциала. ·Если такой уровень потенциала не применим к вашей ситуации, выберите «0». ·Если вы не знаете ответ, выберите «0». ·Если уровень потенциала состоит из двух элементов, и они объединены предлогом «И», то ОБА элементы должны быть выполнены, чтобы можно было выбрать ответ «1». ОСНОВНОЕ ДОПУЩЕНИЕ: ·Поскольку РИ ЭОИ относится к развитию системы координированного эпиднадзора и обмена информацией, ответ «1» подразумевает, что данный уровень потенциала достигнут во всех секторах на основе концепции «Единое здоровье», относящихся к данному мероприятию. Если это нет так, выберите «0».
AK20: 1
AK21: 0
B28: ЭТАП | F28: МЕРОПРИЯТИЕ | K28: УРОВЕНЬ 1 | T28: УРОВЕНЬ 2 | AC28: УРОВЕНЬ 3
B31: Предварительное планирование | F31: =Activities!B2 -> ПП-1 Предварительное выявление заинтересованных сторон | K31: =Activities!C2 -> Во всех участвующих секторах на национальном уровне определены координаторы, «лидеры» или технические рабочие группы для планирования внедрения координированного эпиднадзора | T31: =Activities!C3 -> Во всех участвующих секторах на всех уровнях в стране определены координаторы, «лидеры» или технические рабочие группы для планирования внедрения координированного эпиднадзора | AC31: =Activities!C4 -> Координаторы, «лидеры» или технические рабочие группы (включая выявленных координаторов или «лидеров») в области координированного эпиднадзора институализированы (например: в рамках руководящего органа, такого как МКМ) | AJ31: КОММЕНТАРИИ:
R37: (если да) | AA37: (если да)
K44: ОТВЕТ: | R44: =IF(O44="Yes",1,0) -> 0 | T44: ОТВЕТ: | AA44: =IF(X44="Yes",1,0) -> 0 | AC44: ОТВЕТ:

Sheet Prioritization
B3: Приоритизация
B8: Исходя из имеющегося уровня потенциала в вашей стране, выберите «1», если каждое мероприятие ниже выполнено, или «0», если мероприятие не выполнено / процесс еще не завершен.
B12: ВАЖНЫЕ ЗАМЕЧАНИЯ: ·Выберите «1», если данный уровень потенциала достигнут, и «0», если мероприятие не было выполнено или находится в процессе выполнения. ·Если данный уровень потенциала достигнут и выбран ответ «1», то для мероприятия становится активным следующий уровень потенциала. ·Если такой уровень потенциала не применим к вашей ситуации, выберите «0». ·Если вы не знаете ответ, выберите «0». ·Если уровень потенциала состоит из двух элементов, и они объединены предлогом «И», то ОБА элементы должны быть выполнены, чтобы можно было выбрать ответ «1». ОСНОВНОЕ ДОПУЩЕНИЕ: ·Поскольку РИ ЭОИ относится к развитию системы координированного эпиднадзора и обмена информацией, ответ «1» подразумевает, что данный уровень потенциала достигнут во всех секторах на основе концепции «Единое здоровье», относящихся к данному мероприятию. Если это нет так, выберите «0».
AK20: 1
AK21: 0
B28: ЭТАП | F28: МЕРОПРИЯТИЕ | K28: УРОВЕНЬ 1 | T28: УРОВЕНЬ 2 | AC28: УРОВЕНЬ 3
B31: Предварительное планирование | F31: =Activities!B5 -> ПП-2 Приоритизация | K31: =Activities!C5 -> Существует список приоритетных зоонозов, подлежащих включению в координированную систему эпиднадзора | T31: =Activities!C6 -> Список зоонозов широко распространен на субнациональном уровне и уровне сообществ | AC31: =Activities!C7 -> Список зоонозов составляется с использованием межотраслевого подхода «Единое здоровье». Такой подход предполагает участие всех соответствующих секторов в основанном на фактических данных, прозрачном и воспроизводимом процессе определения приоритетов | AJ31: КОММЕНТАРИИ:
R37: (если да) | AA37: (если да)
K44: ОТВЕТ: | R44: =IF(O44="Yes",1,0) -> 0 | T44: ОТВЕТ: | AA44: =IF(X44="Yes",1,0) -> 0 | AC44: ОТВЕТ:

Sheet Goal Setting
B3: Постановка целей
B8: Исходя из имеющегося уровня потенциала в вашей стране, выберите «1», если каждое мероприятие ниже выполнено, или «0», если мероприятие не выполнено / процесс еще не завершен.
B12: ВАЖНЫЕ ЗАМЕЧАНИЯ: ·Выберите «1», если данный уровень потенциала достигнут, и «0», если мероприятие не было выполнено или находится в процессе выполнения. ·Если данный уровень потенциала достигнут и выбран ответ «1», то для мероприятия становится активным следующий уровень потенциала. ·Если такой уровень потенциала не применим к вашей ситуации, выберите «0». ·Если вы не знаете ответ, выберите «0». ·Если уровень потенциала состоит из двух элементов, и они объединены предлогом «И», то ОБА элементы должны быть выполнены, чтобы можно было выбрать ответ «1». ОСНОВНОЕ ДОПУЩЕНИЕ: ·Поскольку РИ ЭОИ относится к развитию системы координированного эпиднадзора и обмена информацией, ответ «1» подразумевает, что данный уровень потенциала достигнут во всех секторах на основе концепции «Единое здоровье», относящихся к данному мероприятию. Если это нет так, выберите «0».
AK20: 1
AK21: 0
B28: ЭТАП | F28: МЕРОПРИЯТИЕ | K28: УРОВЕНЬ 1 | T28: УРОВЕНЬ 2 | AC28: УРОВЕНЬ 3
B31: Предварительное планирование | F31: =Activities!B8 -> ПП-3 Постановка целей | K31: =Activities!C8 -> Цель(и), функции и обязанности всех участвующих секторов координированной системы эпиднадзора согласованы на национальном уровне | T31: =Activities!C9 -> Цель(и), функции и обязанности всех участвующих секторов координированной системы эпиднадзора согласованы и охватывают все уровни в стране | AC31: =Activities!C10 -> Цель(и), функции и обязанности в рамках координированной системы эпиднадзора пересмотрены для учета текущих потребностей координированной системы эпиднадзора | AJ31: КОММЕНТАРИИ:
R37: (если да) | AA37: (если да)
K44: ОТВЕТ: | R44: =IF(O44="Yes",1,0) -> 0 | T44: ОТВЕТ: | AA44: =IF(X44="Yes",1,0) -> 0 | AC44: ОТВЕТ: | AI44: =IF(AG44="Yes",1,0) -> 0

Sheet Section II
B3: РАЗДЕЛ II: ОЦЕНКА, ПЛАНИРОВАНИЕ и ВНЕДРЕНИЕ
B8: Вы закончили раздел «Предварительное планирование», и сейчас в данном разделе вы переходите к следующим трем этапам, необходимым для построения координированного эпиднадзора: оценка, планирование и внедрение. Вам предстоит оценить двадцать девять мероприятий по восьми областям.
B17: Обзор этапа оценки
B21: Этап оценки охватывает мероприятия по определению потребностей или пробелов в существующей координированной системе ЭОИ и ее инфраструктуре или системе эпиднадзора за состоянием здоровья населения и инфраструктуре отдельных задействованных секторов с учетом текущего положения дел и желаемых изменений. В них входят такие мероприятия, как картирование заинтересованных сторон, оценки стратегических и оперативных планов, оценки экономических потребностей и картирование инфраструктуры. Ресурсы, представленные в данном разделе, следует выбирать при помощи РИ ЭОИ, чтобы выполнить мероприятия на данном этапе оценки для создания или укрепления национальной координированной системы эпиднадзора за зоонозами.
B31: Обзор этапа планирования
B35: Этап планирования подразумевает подготовку оперативных или ориентированных на конкретные действия описаний мероприятий, которые участвующие сектора должны выполнить отдельно или вместе, а также других действий, осуществляемых в ходе подготовки к развитию или укреплению потенциала координированного эпиднадзора. Он включает такие мероприятия, как создание необходимой политической и правовой базы, разработка стратегий и планов эпиднадзора, подготовка бюджетов и определение необходимых объемов финансирования, а также планирование координации коммуникационной работы. Ресурсы, представленные в данном разделе, следует выбирать при помощи РИ ЭОИ, чтобы выполнить мероприятия на данном этапе планирования для создания или укрепления национальной координированной системы эпиднадзора за зоонозами.
B45: Обзор этапа внедрения
B49: Этап внедрения включает мероприятия, которые участвующие сектора должны выполнить отдельно или вместе, и требования, подлежащие выполнению до реализации планов и развития координированной системы ЭОИ, например: внедрение мер по обеспечению конфиденциальности и безопасности данных, использование механизмов для обмена данными и хранения данных, обмен информацией и привлечение финансовых ресурсов. Ресурсы, представленные в данном разделе, следует выбирать при помощи РИ ЭОИ, чтобы выполнить мероприятия на данном этапе внедрения для создания или укрепления национальной координированной системы эпиднадзора за зоонозами.

Sheet Stakeholders
B3: Заинтересованные стороны
B8: Исходя из имеющегося уровня потенциала в вашей стране, выберите «1», если каждое мероприятие ниже выполнено, или «0», если мероприятие не выполнено / процесс еще не завершен.
B12: ВАЖНЫЕ ЗАМЕЧАНИЯ: ·Выберите «1», если данный уровень потенциала достигнут, и «0», если мероприятие не было выполнено или находится в процессе выполнения. ·Если данный уровень потенциала достигнут и выбран ответ «1», то для мероприятия становится активным следующий уровень потенциала. ·Если такой уровень потенциала не применим к вашей ситуации, выберите «0». ·Если вы не знаете ответ, выберите «0». ·Если уровень потенциала состоит из двух элементов, и они объединены предлогом «И», то ОБА элементы должны быть выполнены, чтобы можно было выбрать ответ «1». ОСНОВНОЕ ДОПУЩЕНИЕ: ·Поскольку РИ ЭОИ относится к развитию системы координированного эпиднадзора и обмена информацией, ответ «1» подразумевает, что данный уровень потенциала достигнут во всех секторах на основе концепции «Единое здоровье», относящихся к данному мероприятию. Если это нет так, выберите «0».
AK20: 1
AK21: 0
B28: ЭТАП | F28: МЕРОПРИЯТИЕ | K28: УРОВЕНЬ 1 | T28: УРОВЕНЬ 2 | AC28: УРОВЕНЬ 3
B31: Оценка | F31: =Activities!G2 -> О-1 Картирование заинтересованных сторон | K31: =Activities!H2 -> Заинтересованные стороны в области эпиднадзора, эпидемиологии, лабораторных исследований и обмена информацией выявлены | T31: =Activities!H3 -> В ходе анализа заинтересованных сторон определены участники на всех уровнях в стране | AC31: =Activities!H4 -> Функции и обязанности заинтересованных сторон институционализированы и включены в политические документы | AJ31: КОММЕНТАРИИ:
R37: (если да) | AA37: (если да)
K44: ОТВЕТ: | R44: =IF(O44="Yes",1,0) -> 0 | T44: ОТВЕТ: | AA44: =IF(X44="Yes",1,0) -> 0 | AC44: ОТВЕТ: | AI44: =IF(AG44="Yes",1,0) -> 0
B50: ЭТАП | F50: МЕРОПРИЯТИЕ | K50: УРОВЕНЬ 1 | T50: УРОВЕНЬ 2 | AC50: УРОВЕНЬ 3
B53: Планирование | F53: =Activities!L2 -> ПЛ-1 Политическая воля | K53: =Activities!M2 -> Определены лица, принимающие решения в отношении создания координированной системы эпиднадзора | T53: =Activities!M3 -> Политическая поддержка координированной системы эпиднадзора сформирована, и ее сторонники имеются на всех страновых уровнях | AC53: =Activities!M4 -> Имеется стратегия информационно-разъяснительной работы, которая служит основой для коммуникации с лицами, принимающими решения, по вопросам координированной системы эпиднадзора | AJ53: КОММЕНТАРИИ:
R59: (если да) | AA59: (если да)
K66: ОТВЕТ: | R66: =IF(O66="Yes",1,0) -> 0 | T66: ОТВЕТ: | AA66: =IF(X66="Yes",1,0) -> 0 | AC66: ОТВЕТ:
B72: ЭТАП | F72: МЕРОПРИЯТИЕ | K72: УРОВЕНЬ 1 | T72: УРОВЕНЬ 2 | AC72: УРОВЕНЬ 3
B75: Внедрение | F75: =Activities!Q5 -> В-2 Привлечение кадровых ресурсов и заинтересованных сторон | K75: =Activities!R5 -> Координаторы или технические рабочие группы проводят совещания эпизодически | T75: =Activities!R6 -> Координаторы или технические рабочие группы встречаются на регулярной основе и для решения приоритетных вопросов по мере их возникновения | AC75: =Activities!R7 -> Технические рабочие группы регулярно проводят обзоры мероприятий по координированному эпиднадзору и ее оптимизацию | AJ75: КОММЕНТАРИИ:
R81: (если да) | AA81: (если да)
K88: ОТВЕТ: | R88: =IF(O88="Yes",1,0) -> 0 | T88: ОТВЕТ: | AA88: =IF(X88="Yes",1,0) -> 0 | AC88: ОТВЕТ:

Sheet Plans & Organization
B3: Планы и организация
B8: Исходя из имеющегося уровня потенциала в вашей стране, выберите «1», если каждое мероприятие ниже выполнено, или «0», если мероприятие не выполнено / процесс еще не завершен.
B12: ВАЖНЫЕ ЗАМЕЧАНИЯ: ·Выберите «1», если данный уровень потенциала достигнут, и «0», если мероприятие не было выполнено или находится в процессе выполнения. ·Если данный уровень потенциала достигнут и выбран ответ «1», то для мероприятия становится активным следующий уровень потенциала. ·Если такой уровень потенциала не применим к вашей ситуации, выберите «0». ·Если вы не знаете ответ, выберите «0». ·Если уровень потенциала состоит из двух элементов, и они объединены предлогом «И», то ОБА элементы должны быть выполнены, чтобы можно было выбрать ответ «1». ОСНОВНОЕ ДОПУЩЕНИЕ: ·Поскольку РИ ЭОИ относится к развитию системы координированного эпиднадзора и обмена информацией, ответ «1» подразумевает, что данный уровень потенциала достигнут во всех секторах на основе концепции «Единое здоровье», относящихся к данному мероприятию. Если это нет так, выберите «0».
AK20: 1
AK21: 0
B28: ЭТАП | F28: МЕРОПРИЯТИЕ | K28: УРОВЕНЬ 1 | T28: УРОВЕНЬ 2 | AC28: УРОВЕНЬ 3
B31: Оценка | F31: =Activities!G5 -> О-2 Оценка взаимосвязей в системе эпиднадзора | K31: =Activities!H5 -> Оценка взаимосвязей между существующими системами эпиднадзора за приоритетными зоонозами проведена на межотраслевом уровне | T31: =Activities!H6 -> Оценка взаимосвязей между существующими системами эпиднадзора проведена на межотраслевом уровне и на всех уровнях в стране | AC31: =Activities!H7 -> Взаимосвязи между существующими системами эпиднадзора проанализированы и признаны соответствующими целям координированной системы эпиднадзора | AJ31: КОММЕНТАРИИ:
R37: (если да) | AA37: (если да)
K44: ОТВЕТ: | R44: =IF(O44="Yes",1,0) -> 0 | T44: ОТВЕТ: | AA44: =IF(X44="Yes",1,0) -> 0 | AC44: ОТВЕТ: | AI44: =IF(AG44="Yes",1,0) -> 0
F47: =Activities!G16 -> О-4 Картирование инфраструктуры | K47: =Activities!H16 -> В результате проведения базового картирования инфраструктуры (в соответствие с ТРЗ, гл. 4.1) были описаны структура и взаимосвязи внутри секторов и между ними | T47: =Activities!H17 -> В ходе картирования инфраструктуры описано большинство подлежащих картированию областей (в соответствие с ТРЗ, гл. 4.1) | AC47: =Activities!H18 -> Полное картирование инфраструктуры использовано для описания всех подлежащих картированию областей (в соответствие с ТРЗ, гл. 4.1). | AJ47: КОММЕНТАРИИ:
R53: (если да) | AA53: (если да)
K60: ОТВЕТ: | R60: =IF(O60="Yes",1,0) -> 0 | T60: ОТВЕТ: | AA60: =IF(X60="Yes",1,0) -> 0 | AC60: ОТВЕТ:
B66: ЭТАП | F66: МЕРОПРИЯТИЕ | K66: УРОВЕНЬ 1 | T66: УРОВЕНЬ 2 | AC66: УРОВЕНЬ 3
B69: Планирование | F69: =Activities!L8 -> ПЛ-3 Стратегические планы и рамочные документы по координированному эпиднадзору | K69: =Activities!M8 -> В целях планирования проведен межотраслевой сбор и обзор национальных стратегических документов (стратегий, рамочных программ и стратегических планов), относящихся к координированной системе эпиднадзора | T69: =Activities!M9 -> Национальные стратегические документы (стратегии, рамочные программы и стратегические планы) по координированной системе эпиднадзора сведены воедино и согласованы на основе результатов оценки на всех уровнях в стране | AC69: =Activities!M10 -> Пересмотренные стратегические документы (стратегии, рамочные программы и стратегические планы) по координированной системе эпиднадзора приведены в соответствие с международными стандартами и рекомендациями | AJ69: КОММЕНТАРИИ:
R75: (если да) | AA75: (если да)
K82: ОТВЕТ: | R82: =IF(O82="Yes",1,0) -> 0 | T82: ОТВЕТ: | AA82: =IF(X82="Yes",1,0) -> 0 | AC82: ОТВЕТ:
F85: =Activities!L11 -> ПЛ-4 Национальные оперативные планы | K85: =Activities!M11 -> В целях планирования проведен межотраслевой сбор и обзор национальных оперативных планов и других важные документов (включая планы эпиднадзора, определения случаев, протоколы и стандартные операционные процедуры), относящихся к координированной системе эпиднадзора | T85: =Activities!M12 -> Пересмотренные оперативные планы и другие важные документы (включая планы эпиднадзора, определения случаев, протоколы и стандартные операционные процедуры), относящиеся к координированной системе эпиднадзора и обмена информацией, утверждены всеми ведомствами, осуществляющими эпиднадзор на всех уровнях в стране | AC85: =Activities!M13 -> Пересмотренные оперативные планы (включая планы эпиднадзора, определения случаев, протоколы и стандартные операционные процедуры), относящиеся к координированной системе эпиднадзора, приведены в соответствие с международными руководящими указаниями и рекомендациями | AJ85: КОММЕНТАРИИ:
R91: (если да) | AA91: (если да)
K98: ОТВЕТ: | R98: =IF(O98="Yes",1,0) -> 0 | T98: ОТВЕТ: | AA98: =IF(X98="Yes",1,0) -> 0 | AC98: ОТВЕТ:
B104: ЭТАП | F104: МЕРОПРИЯТИЕ | K104: УРОВЕНЬ 1 | T104: УРОВЕНЬ 2 | AC104: УРОВЕНЬ 3
B107: Внедрение | F107: =Activities!Q17 -> В-6 Внедрение координированной системы эпиднадзора | K107: =Activities!R17 -> Запущен пилотный проект координированной системы эпиднадзора в целевых регионах | T107: =Activities!R18 -> Координированная система эпиднадзора расширена до дополнительных областей исходя из пилотных внедрений | AC107: =Activities!R19 -> Координированная системы эпиднадзора является общегосударственной программой | AJ107: КОММЕНТАРИИ:
R113: (если да) | AA113: (если да)
K120: ОТВЕТ: | R120: =IF(O120="Yes",1,0) -> 0 | T120: ОТВЕТ: | AA120: =IF(X120="Yes",1,0) -> 0 | AC120: ОТВЕТ:

Sheet Policy & Legal
B3: Политика и право
B8: Исходя из имеющегося уровня потенциала в вашей стране, выберите «1», если каждое мероприятие ниже выполнено, или «0», если мероприятие не выполнено / процесс еще не завершен.
B12: ВАЖНЫЕ ЗАМЕЧАНИЯ: ·Выберите «1», если данный уровень потенциала достигнут, и «0», если мероприятие не было выполнено или находится в процессе выполнения. ·Если данный уровень потенциала достигнут и выбран ответ «1», то для мероприятия становится активным следующий уровень потенциала. ·Если такой уровень потенциала не применим к вашей ситуации, выберите «0». ·Если вы не знаете ответ, выберите «0». ·Если уровень потенциала состоит из двух элементов, и они объединены предлогом «И», то ОБА элементы должны быть выполнены, чтобы можно было выбрать ответ «1». ОСНОВНОЕ ДОПУЩЕНИЕ: ·Поскольку РИ ЭОИ относится к развитию системы координированного эпиднадзора и обмена информацией, ответ «1» подразумевает, что данный уровень потенциала достигнут во всех секторах на основе концепции «Единое здоровье», относящихся к данному мероприятию. Если это нет так, выберите «0».
AK20: 1
AK21: 0
B28: ЭТАП | F28: МЕРОПРИЯТИЕ | K28: УРОВЕНЬ 1 | AC28: УРОВЕНЬ 3
B31: Оценка | F31: =Activities!G8 -> О-3 Оценка нормативно-правовой базы | K31: =Activities!H8 -> Оценка нормативно-правовой базы (правил, политики, руководящих принципов и положений, включая международные стандарты), регулирующей стандарты этики и конфиденциальности в области эпиднадзора и обмена данными, проведена | AC31: =Activities!H9 -> Оценка нормативно-правовой базы (правил, политики, руководящих принципов и положений, включая международные стандарты), регулирующей стандарты этики и конфиденциальности в области эпиднадзора и обмена данными, проводится на всех уровнях в стране | AJ31: КОММЕНТАРИИ:
U35: (если да)
K44: ОТВЕТ: | AA44: =IF(X44="Yes",1,0) -> 0 | AC44: ОТВЕТ: | AI44: =IF(AG44="Yes",1,0) -> 0
B50: ЭТАП | F50: МЕРОПРИЯТИЕ | K50: УРОВЕНЬ 1 | T50: УРОВЕНЬ 2 | AC50: УРОВЕНЬ 3
B53: Планирование | F53: =Activities!L20 -> ПЛ-7 Обеспечение нормативно-правовой базы | K53: =Activities!M20 -> По результатам оценки необходимые нормативно-правовые рамки (правила, стратегии, руководства и положения, включая международные стандарты) стандартизированы во всех секторах на национальном уровне | T53: =Activities!M21 -> По результатам оценки необходимые нормативно-правовые рамки (правила, стратегии, руководства и положения, включая международные стандарты) стандартизированы во всех секторах на всех страновых уровнях | AC53: =Activities!M22 -> Пересмотренные нормативно-правовые рамки для координированной системы эпиднадзора приведены в соответствие с международными стандартами и рекомендациями. | AJ53: КОММЕНТАРИИ:
R59: (если да) | AA59: (если да)
K66: ОТВЕТ: | R66: =IF(O66="Yes",1,0) -> 0 | T66: ОТВЕТ: | AA66: =IF(X66="Yes",1,0) -> 0 | AC66: ОТВЕТ:

Sheet Budgets & Finances
B3: Бюджеты и финансы
B8: Исходя из имеющегося уровня потенциала в вашей стране, выберите «1», если каждое мероприятие ниже выполнено, или «0», если мероприятие не выполнено / процесс еще не завершен.
B12: ВАЖНЫЕ ЗАМЕЧАНИЯ: ·Выберите «1», если данный уровень потенциала достигнут, и «0», если мероприятие не было выполнено или находится в процессе выполнения. ·Если данный уровень потенциала достигнут и выбран ответ «1», то для мероприятия становится активным следующий уровень потенциала. ·Если такой уровень потенциала не применим к вашей ситуации, выберите «0». ·Если вы не знаете ответ, выберите «0». ·Если уровень потенциала состоит из двух элементов, и они объединены предлогом «И», то ОБА элементы должны быть выполнены, чтобы можно было выбрать ответ «1». ОСНОВНОЕ ДОПУЩЕНИЕ: ·Поскольку РИ ЭОИ относится к развитию системы координированного эпиднадзора и обмена информацией, ответ «1» подразумевает, что данный уровень потенциала достигнут во всех секторах на основе концепции «Единое здоровье», относящихся к данному мероприятию. Если это нет так, выберите «0».
AK20: 1
AK21: 0
B28: ЭТАП | F28: МЕРОПРИЯТИЕ | K28: УРОВЕНЬ 1 | AC28: УРОВЕНЬ 3
B31: Оценка | F31: =Activities!G19 -> О-5 Оценка экономических потребностей | K31: =Activities!H19 -> Экономические оценки были использованы для определения национальных финансовых потребностей координированной системы эпиднадзора | AC31: =Activities!H20 -> Экономические оценки проведены для определения финансовых потребностей на всех уровнях в стране в отношении координированной системы эпиднадзора | AJ31: КОММЕНТАРИИ:
U35: (если да)
K44: ОТВЕТ: | AA44: =IF(X44="Yes",1,0) -> 0 | AC44: ОТВЕТ: | AI44: =IF(AG44="Yes",1,0) -> 0
B50: ЭТАП | F50: МЕРОПРИЯТИЕ | K50: УРОВЕНЬ 1 | T50: УРОВЕНЬ 2 | AC50: УРОВЕНЬ 3
B53: Планирование | F53: =Activities!L14 -> ПЛ-5 Финансовое планирование | K53: =Activities!M14 -> Имеются бюджетный план и механизм распределения средств для осуществления координированного эпиднадзора на национальном уровне | T53: =Activities!M15 -> Имеются бюджетный план и механизм распределения средств для осуществления координированного эпиднадзора на всех страновых уровнях | AC53: =Activities!M16 -> Бюджетный план и механизм распределения средств подвергнуты оценке и признаны соответствующими целям координированной системы эпиднадзора | AJ53: КОММЕНТАРИИ:
R59: (если да) | AA59: (если да)
K66: ОТВЕТ: | R66: =IF(O66="Yes",1,0) -> 0 | T66: ОТВЕТ: | AA66: =IF(X66="Yes",1,0) -> 0 | AC66: ОТВЕТ:
B72: ЭТАП | F72: МЕРОПРИЯТИЕ | K72: УРОВЕНЬ 1 | T72: УРОВЕНЬ 2 | AC72: УРОВЕНЬ 3
B75: Внедрение | F75: =Activities!Q2 -> В-1 Привлечение финансовых ресурсов | K75: =Activities!R2 -> Имеется финансирование для осуществления координированного эпиднадзора на национальном уровне | T75: =Activities!R3 -> Финансирование для осуществления координированного эпиднадзора имеется на всех уровнях в стране | AC75: =Activities!R4 -> Устойчивое финансирование (т. е. заложенное в национальный бюджет) выделено на мероприятия по координированному эпиднадзору, оценено и признано соответствующим целям координированной системы эпиднадзора | AJ75: КОММЕНТАРИИ:
R81: (если да) | AA81: (если да)
K88: ОТВЕТ: | R88: =IF(O88="Yes",1,0) -> 0 | T88: ОТВЕТ: | AA88: =IF(X88="Yes",1,0) -> 0 | AC88: ОТВЕТ:

Sheet Workforce
B3: Кадровые ресурсы
B8: Исходя из имеющегося уровня потенциала в вашей стране, выберите «1», если каждое мероприятие ниже выполнено, или «0», если мероприятие не выполнено / процесс еще не завершен.
B12: ВАЖНЫЕ ЗАМЕЧАНИЯ: ·Выберите «1», если данный уровень потенциала достигнут, и «0», если мероприятие не было выполнено или находится в процессе выполнения. ·Если данный уровень потенциала достигнут и выбран ответ «1», то для мероприятия становится активным следующий уровень потенциала. ·Если такой уровень потенциала не применим к вашей ситуации, выберите «0». ·Если вы не знаете ответ, выберите «0». ·Если уровень потенциала состоит из двух элементов, и они объединены предлогом «И», то ОБА элементы должны быть выполнены, чтобы можно было выбрать ответ «1». ОСНОВНОЕ ДОПУЩЕНИЕ: ·Поскольку РИ ЭОИ относится к развитию системы координированного эпиднадзора и обмена информацией, ответ «1» подразумевает, что данный уровень потенциала достигнут во всех секторах на основе концепции «Единое здоровье», относящихся к данному мероприятию. Если это нет так, выберите «0».
AK20: 1
AK21: 0
B28: ЭТАП | F28: МЕРОПРИЯТИЕ | K28: УРОВЕНЬ 1 | AC28: УРОВЕНЬ 3
B31: Оценка | F31: =Activities!G27 -> О-8 Оценка кадровых ресурсов | K31: =Activities!H27 -> Оценки кадровых ресурсов проведены для определения текущих требований, компетенций, потребностей и пробелов в области кадрового потенциала на национальном уровне | AC31: =Activities!H28 -> Оценка кадровых ресурсов проведена для определения текущих требований, компетенций, потребностей и пробелов в области кадрового потенциала на всех уровнях в стране | AJ31: КОММЕНТАРИИ:
U35: (если да)
K44: ОТВЕТ: | AA44: =IF(X44="Yes",1,0) -> 0 | AC44: ОТВЕТ: | AI44: =IF(AG44="Yes",1,0) -> 0
B50: ЭТАП | F50: МЕРОПРИЯТИЕ | K50: УРОВЕНЬ 1 | T50: УРОВЕНЬ 2 | AC50: УРОВЕНЬ 3
B53: Планирование | F53: =Activities!L17 -> ПЛ-6 Планирование в области кадровых ресурсов | K53: =Activities!M17 -> План обучения и профессиональной подготовки кадров для координированной системы эпиднадзора разработан на основе оценки кадровых ресурсов на национальном уровне | T53: =Activities!M18 -> План обучения и профессиональной подготовки кадров для координированной системы эпиднадзора разработан на основе оценки кадровых ресурсов для всех страновых уровней | AC53: =Activities!M19 -> Образование и профессиональная подготовка кадров включены в процесс национального межотраслевого кадрового планирования с учетом международных компетенций и оценок | AJ53: КОММЕНТАРИИ:
R59: (если да) | AA59: (если да)
K66: ОТВЕТ: | R66: =IF(O66="Yes",1,0) -> 0 | T66: ОТВЕТ: | AA66: =IF(X66="Yes",1,0) -> 0 | AC66: ОТВЕТ:

Sheet Laboratory
B3: Лаборатория
B8: Исходя из имеющегося уровня потенциала в вашей стране, выберите «1», если каждое мероприятие ниже выполнено, или «0», если мероприятие не выполнено / процесс еще не завершен.
B12: ВАЖНЫЕ ЗАМЕЧАНИЯ: ·Выберите «1», если данный уровень потенциала достигнут, и «0», если мероприятие не было выполнено или находится в процессе выполнения. ·Если данный уровень потенциала достигнут и выбран ответ «1», то для мероприятия становится активным следующий уровень потенциала. ·Если такой уровень потенциала не применим к вашей ситуации, выберите «0». ·Если вы не знаете ответ, выберите «0». ·Если уровень потенциала состоит из двух элементов, и они объединены предлогом «И», то ОБА элементы должны быть выполнены, чтобы можно было выбрать ответ «1». ОСНОВНОЕ ДОПУЩЕНИЕ: ·Поскольку РИ ЭОИ относится к развитию системы координированного эпиднадзора и обмена информацией, ответ «1» подразумевает, что данный уровень потенциала достигнут во всех секторах на основе концепции «Единое здоровье», относящихся к данному мероприятию. Если это нет так, выберите «0».
AK20: 1
AK21: 0
B28: ЭТАП | F28: МЕРОПРИЯТИЕ | K28: УРОВЕНЬ 1 | T28: УРОВЕНЬ 2 | AC28: УРОВЕНЬ 3
B31: Оценка | F31: =Activities!G21 -> О-6 Оценка лабораторного потенциала | K31: =Activities!H21 -> В результате проведения оценок лабораторного потенциала были определены квалифицированные национальные или международные референс-лаборатории, которые могут проводить тестирование для поддержки деятельности в рамках координированного эпиднадзора | T31: =Activities!H22 -> В результате проведения оценок лабораторного потенциала были определены квалифицированные лаборатории на всех уровнях (включая международный), которые могут проводить тестирование для поддержки мероприятий в рамках координированного эпиднадзора | AC31: =Activities!H23 -> В результате проведения оценок лабораторного потенциала выявлена сеть квалифицированных лабораторий, которые могут проводить тестирование для поддержки мероприятий в рамках координированного эпиднадзора | AJ31: КОММЕНТАРИИ:
R37: (если да) | AA37: (если да)
K44: ОТВЕТ: | R44: =IF(O44="Yes",1,0) -> 0 | T44: ОТВЕТ: | AA44: =IF(X44="Yes",1,0) -> 0 | AC44: ОТВЕТ: | AI44: =IF(AG44="Yes",1,0) -> 0
F49: =Activities!G24 -> О-7 Лабораторная логистика и интерпретация результатов исследований | K49: =Activities!H24 -> Поставки лабораторных материалов, транспортные цепочки и методы интерпретации результатов оценены на предмет согласования между участвующими секторами на национальном уровне | T49: =Activities!H25 -> Поставки лабораторных материалов, транспортные цепочки и методы интерпретации результатов оценены на предмет согласования между участвующими секторами на всех уровнях в стране | AC49: =Activities!H26 -> Степень согласованности способов поставок лабораторных материалов, транспортных цепочек и методов интерпретации результатов между участвующими секторами оценена и признана соответствующей целям координированной системы эпиднадзора | AJ49: КОММЕНТАРИИ:
R55: (если да) | AA55: (если да)
K62: ОТВЕТ: | R62: =IF(O62="Yes",1,0) -> 0 | T62: ОТВЕТ: | AA62: =IF(X62="Yes",1,0) -> 0 | AC62: ОТВЕТ:

Sheet Data Storage & Sharing
B3: Хранение и обмен данными
B8: Исходя из имеющегося уровня потенциала в вашей стране, выберите «1», если каждое мероприятие ниже выполнено, или «0», если мероприятие не выполнено / процесс еще не завершен.
B12: ВАЖНЫЕ ЗАМЕЧАНИЯ: ·Выберите «1», если данный уровень потенциала достигнут, и «0», если мероприятие не было выполнено или находится в процессе выполнения. ·Если данный уровень потенциала достигнут и выбран ответ «1», то для мероприятия становится активным следующий уровень потенциала. ·Если такой уровень потенциала не применим к вашей ситуации, выберите «0». ·Если вы не знаете ответ, выберите «0». ·Если уровень потенциала состоит из двух элементов, и они объединены предлогом «И», то ОБА элементы должны быть выполнены, чтобы можно было выбрать ответ «1». ОСНОВНОЕ ДОПУЩЕНИЕ: ·Поскольку РИ ЭОИ относится к развитию координированноq системы эпиднадзора и обмена информацией, ответ «1» подразумевает, что данный уровень потенциала достигнут КАК МИНИМУМ В ДВУХ СЕКТОРАХ, ОТНОСЯЩИХСЯ К КОНЦЕПЦИИ «ЕДИНОЕ ЗДОРОВЬЕ». Если уровень потенциала достигнут лишь в одном секторе, выберите «0».
AK20: 1
AK21: 0
B28: ЭТАП | F28: МЕРОПРИЯТИЕ | K28: УРОВЕНЬ 1 | T28: УРОВЕНЬ 2 | AC28: УРОВЕНЬ 3
B31: Планирование | F31: =Activities!L5 -> ПЛ-2 Общие элементы данных | K31: =Activities!M5 -> В каждом участвующем секторе общие элементы данных для достижения общих аналитических целей координированной системы эпиднадзора определены и согласованы на национальном уровне | T31: =Activities!M6 -> В каждом участвующем секторе общие элементы данных для достижения общих аналитических целей координированной системы эпиднадзора определены и согласованы на всех уровнях в стране | AC31: =Activities!M7 -> Общие элементы данных стандартизированы во всех участвующих секторах на основе общих аналитических целей координированной системы эпиднадзора и отвечают международным стандартам данных | AJ31: КОММЕНТАРИИ:
R37: (если да) | AA37: (если да)
K44: ОТВЕТ: | R44: =IF(O44="Yes",1,0) -> 0 | T44: ОТВЕТ: | AA44: =IF(X44="Yes",1,0) -> 0 | AC44: ОТВЕТ:
B49: ЭТАП | F49: МЕРОПРИЯТИЕ | K49: УРОВЕНЬ 1 | T49: УРОВЕНЬ 2 | AC49: УРОВЕНЬ 3
B52: Внедрение | F52: =Activities!Q8 -> В-3 Обмен данными и информацией | K52: =Activities!R8 -> Существует механизм обмена данными между секторами на национальном уровне | T52: =Activities!R9 -> Существует механизм обмена данными между секторами на всех страновых уровнях | AC52: =Activities!R10 -> Существует доступный, функциональный и удобный для использования всеми участвующими секторами механизм обмена данными | AJ52: КОММЕНТАРИИ:
R58: (если да) | AA58: (если да)
K65: ОТВЕТ: | R65: =IF(O65="Yes",1,0) -> 0 | T65: ОТВЕТ: | AA65: =IF(X65="Yes",1,0) -> 0 | AC65: ОТВЕТ:
F68: =Activities!Q11 -> В-4 Хранение данных | K68: =Activities!R11 -> Существуют структура и место для хранения и ведения данных, получаемых из различных секторов, на национальном уровне. | T68: =Activities!R12 -> Существуют структура и место для хранения и ведения данных, получаемых из различных секторов, на всех уровнях в стране | AC68: =Activities!R13 -> Существуют доступная, функциональная и используемая всеми участвующими секторами структура и место для хранения и ведения данных, получаемых из всех соответствующих секторов | AJ68: КОММЕНТАРИИ:
R74: (если да) | AA74: (если да)
K81: ОТВЕТ: | R81: =IF(O81="Yes",1,0) -> 0 | T81: ОТВЕТ: | AA81: =IF(X81="Yes",1,0) -> 0 | AC81: ОТВЕТ:
F84: =Activities!Q14 -> В-5 Меры по обеспечению конфиденциальности и безопасности данных | K84: =Activities!R14 -> Меры по обеспечению конфиденциальности и безопасности данных для защиты данных координированного эпиднадзора применяются на национальном уровне | T84: =Activities!R15 -> Меры по обеспечению конфиденциальности и безопасности данных для защиты данных координированного эпиднадзора применяются на всех страновых уровнях | AC84: =Activities!R16 -> Меры по обеспечению конфиденциальности и безопасности данных для защиты данных координированного эпиднадзора прошли оценку и соответствуют целям координированной системы эпиднадзора | AJ84: КОММЕНТАРИИ:
R90: (если да) | AA90: (если да)
K97: ОТВЕТ: | R97: =IF(O97="Yes",1,0) -> 0 | T97: ОТВЕТ: | AA97: =IF(X97="Yes",1,0) -> 0 | AC97: ОТВЕТ:
F100: =Activities!Q20 -> В-7 Обмен данными эпиднадзора | K100: =Activities!R20 -> Обмен данными эпиднадзора осуществляется неофициально или официально эпизодически на национальном уровне | T100: =Activities!R21 -> Обмен данными эпиднадзора осуществляется неофициально или официально регулярно и своевременно на всех уровнях в стране | AC100: =Activities!R22 -> Данные эпиднадзора систематически, регулярно и своевременно предоставляются всем участвующим секторам через универсальную или объединенную платформу (платформы) | AJ100: КОММЕНТАРИИ:
R106: (если да) | AA106: (если да)
K113: ОТВЕТ: | R113: =IF(O113="Yes",1,0) -> 0 | T113: ОТВЕТ: | AA113: =IF(X113="Yes",1,0) -> 0 | AC113: ОТВЕТ:

Sheet Communication & Reporting
B3: Коммуникация и отчетность
B8: Исходя из имеющегося уровня потенциала в вашей стране, выберите «1», если каждое мероприятие ниже выполнено, или «0», если мероприятие не выполнено / процесс еще не завершен.
B12: ВАЖНЫЕ ЗАМЕЧАНИЯ: ·Выберите «1», если данный уровень потенциала достигнут, и «0», если мероприятие не было выполнено или находится в процессе выполнения. ·Если данный уровень потенциала достигнут и выбран ответ «1», то для мероприятия становится активным следующий уровень потенциала. ·Если такой уровень потенциала не применим к вашей ситуации, выберите «0». ·Если вы не знаете ответ, выберите «0». ·Если уровень потенциала состоит из двух элементов, и они объединены предлогом «И», то ОБА элементы должны быть выполнены, чтобы можно было выбрать ответ «1». ОСНОВНОЕ ДОПУЩЕНИЕ: ·Поскольку РИ ЭОИ относится к развитию координированноq системы эпиднадзора и обмена информацией, ответ «1» подразумевает, что данный уровень потенциала достигнут КАК МИНИМУМ В ДВУХ СЕКТОРАХ, ОТНОСЯЩИХСЯ К КОНЦЕПЦИИ «ЕДИНОЕ ЗДОРОВЬЕ». Если уровень потенциала достигнут лишь в одном секторе, выберите «0».
AK20: 1
AK21: 0
B28: ЭТАП | F28: МЕРОПРИЯТИЕ | K28: УРОВЕНЬ 1 | T28: УРОВЕНЬ 2 | AC28: УРОВЕНЬ 3
B31: Планирование | F31: =Activities!L23 -> ПЛ-8 Планирование скоординированной коммуникации | K31: =Activities!M23 -> Проведено согласование коммуникационной терминологии и сообщений между всеми секторами, участвующими в координированной системе эпиднадзора на национальном уровне. | T31: =Activities!M24 -> Согласованная коммуникационная терминология и сообщения между всеми секторами, участвующими в координированной системе эпиднадзора, доведены до всех уровней в стране | AC31: =Activities!M25 -> Существует стратегия коммуникации и/или план коммуникации (включающий терминологию и формы сообщений), на основе которых осуществляется коммуникация с заинтересованными сторонами и населением в рамках координированной системы эпиднадзора | AJ31: КОММЕНТАРИИ:
R37: (если да) | AA37: (если да)
K44: ОТВЕТ: | R44: =IF(O44="Yes",1,0) -> 0 | T44: ОТВЕТ: | AA44: =IF(X44="Yes",1,0) -> 0 | AC44: ОТВЕТ:
B49: ЭТАП | F49: МЕРОПРИЯТИЕ | K49: УРОВЕНЬ 1 | T49: УРОВЕНЬ 2 | AC49: УРОВЕНЬ 3
B52: Внедрение | F52: =Activities!Q23 -> В-8 Коммуникация и обмен информацией | K52: =Activities!R23 -> Осуществляется эпизодический обмен информацией и коммуникация с соответствующими заинтересованными сторонами | T52: =Activities!R24 -> Осуществляется регулярный обмен информацией и коммуникация с соответствующими заинтересованными сторонами | AC52: =Activities!R25 -> Осуществляется регулярный и своевременный обмен информацией с соответствующими заинтересованными сторонами, включая трансграничные, региональные и международные структуры | AJ52: КОММЕНТАРИИ:
R58: (если да) | AA58: (если да)
K65: ОТВЕТ: | R65: =IF(O65="Yes",1,0) -> 0 | T65: ОТВЕТ: | AA65: =IF(X65="Yes",1,0) -> 0 | AC65: ОТВЕТ:
F68: =Activities!Q26 -> В-9 Международные требования в отношении оповещений | K68: =Activities!R26 -> Соблюдение международных требований в отношении оповещения обо всех случаях зоонозов | AJ68: КОММЕНТАРИИ:
K81: ОТВЕТ:
F84: =Activities!Q27 -> B-10 Визуализация и анализ данных координированного эпиднадзора | K84: =Activities!R27 -> Данные координированного эпиднадзора позволяют получить выходные материалы (например: рисунки, графики, отчеты или бюллетени), которые распространяются на национальном уровне | T84: =Activities!R28 -> Данные координированного эпиднадзора позволяют получить выходные материалы (например: рисунки, графики, отчеты или бюллетени), которые распространяются среди заинтересованных сторон на всех уровнях в стране | AC84: =Activities!R29 -> Данные координированного эпиднадзора, включая отчеты о результатах мониторинга и оценки, позволяют получить выходные материалы, которые используются при разработке ответных мер, политики и программ | AJ84: КОММЕНТАРИИ:
R90: (если да) | AA90: (если да)
K97: ОТВЕТ: | R97: =IF(O97="Yes",1,0) -> 0 | T97: ОТВЕТ: | AA97: =IF(X97="Yes",1,0) -> 0 | AC97: ОТВЕТ:

Sheet Section III
B3: РАЗДЕЛ III: МОНИТОРИНГ И ОЦЕНКА
B8: В данном разделе инструмента будут представлены заключительные пять этапов процесса построения координированного эпиднадзора: Мониторинг и оценка. Вам предстоит оценить в общей сложности три мероприятия по трем областям.
B17: Обзор этапа мониторинга и оценки
B21: Этап мониторинга и оценки включает мероприятия по измерению и оценке эффективности мероприятий в рамках координированного эпиднадзора и координированной системы ЭОИ, проводимые с целью постоянного, последовательного совершенствования системы. В них входят такие мероприятия, как имитационные учения, управление качеством данных, планирование деятельности по мониторингу и оценке. Ресурсы, представленные в данном разделе, следует выбирать при помощи РИ ЭОИ, чтобы выполнить мероприятия на данном этапе мониторинга и оценки для создания или укрепления национальной координированной системы эпиднадзора за зоонозами.

Sheet Simulation Exercises
B3: Имитационные учения
B8: Исходя из имеющегося уровня потенциала в вашей стране, выберите «1», если каждое мероприятие ниже выполнено, или «0», если мероприятие не выполнено / процесс еще не завершен.
B12: ВАЖНЫЕ ЗАМЕЧАНИЯ: ·Выберите «1», если данный уровень потенциала достигнут, и «0», если мероприятие не было выполнено или находится в процессе выполнения. ·Если данный уровень потенциала достигнут и выбран ответ «1», то для мероприятия становится активным следующий уровень потенциала. ·Если такой уровень потенциала не применим к вашей ситуации, выберите «0». ·Если вы не знаете ответ, выберите «0». ·Если уровень потенциала состоит из двух элементов, и они объединены предлогом «И», то ОБА элементы должны быть выполнены, чтобы можно было выбрать ответ «1». ОСНОВНОЕ ДОПУЩЕНИЕ: ·Поскольку РИ ЭОИ относится к развитию системы координированного эпиднадзора и обмена информацией, ответ «1» подразумевает, что данный уровень потенциала достигнут во всех секторах на основе концепции «Единое здоровье», относящихся к данному мероприятию. Если это нет так, выберите «0».
AK20: 1
AK21: 0
B28: ОБЛАСТЬ | F28: МЕРОПРИЯТИЕ | K28: УРОВЕНЬ 1 | T28: УРОВЕНЬ 2 | AC28: УРОВЕНЬ 3
B31: Мониторинг и оценка | F31: =Activities!V2 -> МО-1 Имитационные учения | K31: =Activities!W2 -> Имитационные учения проводятся для оценки эффективности и функциональности координированной системы эпиднадзора на национальном уровне | T31: =Activities!W3 -> Имитационные учения проводятся для оценки эффективности и функциональности координированной системы эпиднадзора на всех уровнях в стране | AC31: =Activities!W4 -> Результаты имитационных учений используются при составлении и пересмотре планов по координированному эпиднадзору | AJ31: КОММЕНТАРИИ:
R37: (если да) | AA37: (если да)
K44: ОТВЕТ: | R44: =IF(O44="Yes",1,0) -> 0 | T44: ОТВЕТ: | AA44: =IF(X44="Yes",1,0) -> 0 | AC44: ОТВЕТ: | AI44: =IF(AG44="Yes",1,0) -> 0

Sheet M & E Planning
B3: Планирование деятельности по мониторингу и оценке
B8: Исходя из имеющегося уровня потенциала в вашей стране, выберите «1», если каждое мероприятие ниже выполнено, или «0», если мероприятие не выполнено / процесс еще не завершен.
B12: ВАЖНЫЕ ЗАМЕЧАНИЯ: ·Выберите «1», если данный уровень потенциала достигнут, и «0», если мероприятие не было выполнено или находится в процессе выполнения. ·Если данный уровень потенциала достигнут и выбран ответ «1», то для мероприятия становится активным следующий уровень потенциала. ·Если такой уровень потенциала не применим к вашей ситуации, выберите «0». ·Если вы не знаете ответ, выберите «0». ·Если уровень потенциала состоит из двух элементов, и они объединены предлогом «И», то ОБА элементы должны быть выполнены, чтобы можно было выбрать ответ «1». ОСНОВНОЕ ДОПУЩЕНИЕ: ·Поскольку РИ ЭОИ относится к развитию системы координированного эпиднадзора и обмена информацией, ответ «1» подразумевает, что данный уровень потенциала достигнут во всех секторах на основе концепции «Единое здоровье», относящихся к данному мероприятию. Если это нет так, выберите «0».
AK20: 1
AK21: 0
B28: ЭТАП | F28: МЕРОПРИЯТИЕ | K28: УРОВЕНЬ 1 | T28: УРОВЕНЬ 2 | AC28: УРОВЕНЬ 3
B31: Мониторинг и оценка | F31: =Activities!V5 -> МО-2 Планирование деятельности по мониторингу и оценке | K31: =Activities!W5 -> Существует план мониторинга и оценки, отвечающий целям координированной системы эпиднадзора | T31: =Activities!W6 -> С помощью плана мониторинга и оценки оценивается эффективность деятельности и достигнутый прогресс в рамках координированной системы эпиднадзора | AC31: =Activities!W7 -> Результаты мониторинга и оценки позволяют последовательно совершенствовать или расширять координированную систему эпиднадзора и приводить ее в соответствие с международными стандартами и рекомендациями | AJ31: КОММЕНТАРИИ:
R37: (если да) | AA37: (если да)
K44: ОТВЕТ: | R44: =IF(O44="Yes",1,0) -> 0 | T44: ОТВЕТ: | AA44: =IF(X44="Yes",1,0) -> 0 | AC44: ОТВЕТ: | AI44: =IF(AG44="Yes",1,0) -> 0

Sheet Data Quality Standards
B3: Стандарты качества данных
B8: Исходя из имеющегося уровня потенциала в вашей стране, выберите «1», если каждое мероприятие ниже выполнено, или «0», если мероприятие не выполнено / процесс еще не завершен.
B12: ВАЖНЫЕ ЗАМЕЧАНИЯ: ·Выберите «1», если данный уровень потенциала достигнут, и «0», если мероприятие не было выполнено или находится в процессе выполнения. ·Если данный уровень потенциала достигнут и выбран ответ «1», то для мероприятия становится активным следующий уровень потенциала. ·Если такой уровень потенциала не применим к вашей ситуации, выберите «0». ·Если вы не знаете ответ, выберите «0». ·Если уровень потенциала состоит из двух элементов, и они объединены предлогом «И», то ОБА элементы должны быть выполнены, чтобы можно было выбрать ответ «1». ОСНОВНОЕ ДОПУЩЕНИЕ: ·Поскольку РИ ЭОИ относится к развитию системы координированного эпиднадзора и обмена информацией, ответ «1» подразумевает, что данный уровень потенциала достигнут во всех секторах на основе концепции «Единое здоровье», относящихся к данному мероприятию. Если это нет так, выберите «0».
AK20: 1
AK21: 0
B28: ЭТАП | F28: МЕРОПРИЯТИЕ | K28: УРОВЕНЬ 1 | T28: УРОВЕНЬ 2 | AC28: УРОВЕНЬ 3
AJ30: КОММЕНТАРИИ:
B31: Мониторинг и оценка | F31: =Activities!V8 -> МО-3 Стандарты качества данных | K31: =Activities!W8 -> Существует методология управления качеством данных | T31: =Activities!W9 -> Качество данных проверено и признано соответствующим целям координированной системы эпиднадзора | AC31: =Activities!W10 -> Качество данных соответствует международным стандартам и рекомендациям
R37: (если да) | AA37: (если да)
K44: ОТВЕТ: | R44: =IF(O44="Yes",1,0) -> 0 | T44: ОТВЕТ: | AA44: =IF(X44="Yes",1,0) -> 0 | AC44: ОТВЕТ: | AI44: =IF(AG44="Yes",1,0) -> 0

Sheet Toolbox
B1: Номер | C1: НАЗВАНИЕ РЕСУРСА | D1: КРАТКОЕ ОПИСАНИЕ | E1: ССЫЛКА НА РЕСУРС | F1: ЗАМЕЧАНИЕ | G1: ПОЛЕЗНЫЕ МАТЕРИАЛЫ и ВИДЕО | H1: ПУБЛИКАЦИИ | K1: $A$1
B2: 1 | C2: =Backbone!A567 -> SurvCost: Инструмент для оценки стоимости комплексной системы эпиднадзора и мер реагирования | D2: Инструмент SurvCost создан для оценки стоимости Комплексной системы эпиднадзора и мер реагирования (IDSR). Он разработан на базе Microsoft Excel и предназначен для стран, внедряющих и укрепляющих свои системы эпиднадзора за инфекционными заболеваниями. | E2: https://www.cdc.gov/globalhealth/healthprotection/idsr/pdf/survcost2.xls | G2: https://www.cdc.gov/globalhealth/healthprotection/idsr/pdf/SurvCost-Manual-Jan-2008.pdf | J2: $A$1 | K2: $G$80 | L2: $A$1
B3: 2 | C3: =Backbone!A271 -> Анализ инфраструктуры лабораторной сети (LINA) | D3: LINA — это простое в использовании веб-приложение с функциями сложного компьютерного моделирования и анализа данных. В нем визуально, в форме карт, представлены возможности и потенциал национальной сети лабораторий и каждой лаборатории в отдельности. Оно может использоваться как при создании сети лабораторий в стране, так и для регулярной, основанной на потребностях оценки (прогнозирование разных ситуаций, особенно на случай вспышек). Настоящий инструмент помогает оптимизировать сеть перевозки проб, развитие потенциала лабораторий, планирование программ по борьбе с заболеваниями, поддержку для быстрого реагирования (например, во время вспышек: определение имеющегося потенциала, равномерное распределение нагрузки в лаборатории). | F3: Более подробно о возможности доступа к инструменту можно узнать у Патрика Финли (pdfinle@sandia.gov) и Уолтера Бейлера (webeyel@sandia.gov) | L3: =ADDRESS(ROW(B1),COLUMN(B1)) -> $B$1
B4: 3 | C4: =Backbone!A437 -> Анализ политического поля (PFA) | D4: Анализ политического поля (PFA) — это специализированное картирование заинтересованных сторон с целью визуального представления системы организаций и их взаимодействия по конкретному вопросу политики. С помощью PFA можно определить организации (государственные, частные или некоммерческие) на разных уровнях системы (местном, национальном, региональном и международном) и картировать созданные этими организациями структуры (политику, рамочные программы, руководящие принципы, физические и технологические инфраструктуры). Это позволяет отдельным лицам внимательно ориентироваться в этих структурах для надлежащего распределения ресурсов и вовлечения заинтересованных лиц. С его помощью можно также определить критически важные точки в межотраслевой системе, где отдельные участники способны оказать какое-либо влияние или вызвать необходимые изменения. В ролике PFA объясняется простой процесс картирования, а специальные шаблоны помогают пользователям анализировать свои карты, чтобы полученная информация послужила основой для разработки программ и политики. | E4: Ролик: https://www.youtube.com/watch?v=v26_j72svjM&feature=youtu.be | F4: Данный ресурс представляют разработанные для РИ ЭОИ видеоролик и шаблон PFA. Если у вас есть вопросы или вы хотите использовать PFA, свяжитесь с Кейли Мюре Эррикаборд (myhre044@umn.edu) | H4: https://www.researchgate.net/publication/242456068_Analyzing_Policy_Fields_Helping_Students_Understand_Complex_State_and_Local_Contexts http://www.jodisandfort.org/uploads/4/5/0/9/45098387/policy_field_audit.pdf
B5: 4 | C5: =Backbone!A420 -> Анализ пробелов ПВС, разработанный Всемирной организацией охраны здоровья животных (МЭБ) | D5: Страны-члены МЭБ могут направить запрос на Анализ пробелов ПВС, который поможет им составить подробный план исходя из результатов оценки ПВС. Анализ пробелов ПВС (с использованием инструмента расчета затрат ПВС) — это тщательно структурированные учения, проводимые с национальными ветеринарными службами для определения их приоритетных целей, а также стратегий, мероприятий и объема инвестиций, необходимых для достижения этих целей. В ходе миссии ветеринарные службы страны, при помощи группы сертифицированных экспертов МЭБ и используя результаты оценки ПВС в качестве исходных данных, разрабатывают стратегические и рассчитанные по стоимости меры по улучшению эффективности своей работы и достижению национальных целей. | E5: https://www.woah.org/en/what-we-offer/improving-veterinary-services/pvs-pathway/ | F5: Миссию по оценке пробелов ПВС можно запросить после получения одобренного отчета по миссии ПВС. | G5: http://www.oie.int/solidarity/pvs-pathway/planning-gap-analysis/
B6: 5 | C6: =Backbone!A166 -> Глобальная информационная система болезней животных (EMPRES-i) | D6: Защищенная информационная онлайн-система, созданная в помощь национальным ветеринарным службам. Она обеспечивает сбор глобальных и региональных данных о заболеваниях и является глобальной справочной базой данных о болезнях животных, включая зоонозы. | E6: Общедоступный вебсайт: http://empres-i.fao.org/eipws3g/ Внутренний сайт ФАО: https://caf.fao.org/login?service=http%3A%2F%2Fempres-i.fao.org%2Fempresi3g%2Findex.html%3Fwsid%3Dempresi%26lang%3DEN-en%26proxy%3Dfalse | F6: Ссылка на публичный ресурс имеется в открытом доступе. Для доступа к внутренней версии ФАО необходимо получить разрешение от менеджера проектов, зарегистрировать свою личную электронную почту и получить пароль от ИТ-департамента ФАО. | G6: http://empres-i.fao.org/eipws3g/assets/docs/EMPRES-i_Manual.pdf https://youtu.be/oLa5MRe3qDw https://youtu.be/5WkB4q5DR6k https://youtu.be/6tef0goSBlY https://youtu.be/Ew9TukjBbB0 | H6: http://www.fao.org/3/a-i4386e.pdf http://www.fao.org/publications/card/fr/c/4296b6d5-14c9-5e72-b467-15f09baa29de/ https://www.ijidonline.com/article/S1201-9712(18)34603-4/fulltext https://www.researchgate.net/publication/311821964 http://www.fao.org/3/a-i4386e.pdf
B7: 6 | C7: =Backbone!A184 -> Глобальный механизм ликвидации бешенства у собак (GDREP) | D7: Инструмент на базе Excel с простым в использовании интерфейсом, включающим разные аспекты программы по ликвидации бешенства у собак, разбит на две основные категории: эпидемиологические/логистические и финансовые аспекты соответственно | E7: https://rabiesalliance.org/app/gdrep https://rabiesalliance.org/capacity-building/gdrep | F7: Инструмент можно скачать в качестве отдельного Excel-файла в данной публикации: https://www.ncbi.nlm.nih.gov/pmc/articles/PMC5300989/ или по ссылке: https://rabiesalliance.org/capacity-building/gdrep | G7: https://rabiesalliance.org/capacity-building/gdrep | H7: https://www.ncbi.nlm.nih.gov/pmc/articles/PMC5300989/ https://journals.plos.org/plosntds/article?id=10.1371/journal.pntd.0006756 https://wwwnc.cdc.gov/eid/article/23/12/17-1148_article
B8: 7 | C8: =Backbone!A433 -> Глоссарий Общеевропейской программы «Единое здоровье» (OHEJP) | D8: Онлайн-глоссарий OHEJP, создаваемый в рамках концепции «Единое здоровье» силами сообщества, включает более 1000 различных терминов по темам здравоохранения человека, охраны здоровья животных и безопасности пищевых продуктов, относящихся к «Единому здоровью» или конкретному сектору. Более того, глоссарий OHEJP позволяет подчеркнуть сходства и различия между секторами. | E8: https://foodrisklabs.bfr.bund.de/oh-collaboration/ | G8: https://foodrisklabs.bfr.bund.de/oh-collaboration/ https://data.d4science.net/nPk4 https://oh-surveillance-codex.readthedocs.io/en/latest/2-the-collaboration-principle.html#ohejp-glossary
B9: 8 | C9: =Backbone!A155 -> Инициатива по выявлению эпидемиологических угроз с использованием открытых источников (EIOS) | D9: Инициатива EIOS — это уникальное сотрудничество между ВОЗ и различными заинтересованными сторонами, объединяющее новые и существующие инициативы, сети и системы для создания унифицированного подхода «Единое здоровье», учитывающего все угрозы, к раннему обнаружению, проверке и оценке рисков и угроз для здоровья людей с использованием открытых источников. | E9: https://portal.who.int/eios/Login | F9: Более подробно об этой инициативе или об участие в ней можно узнать у Основной группы EIOS: eios@who.int
B10: 9 | C10: =Backbone!A21 -> Инструмент AfyaData | D10: AfyaData — это инструмент эпиднадзора, основанный на концепции «Единое здоровье» и разработанный для эпиднадзора в области здравоохранения человека, охраны здоровья животных и окружающей среды. Он включает (а) мобильное приложение для сбора данных и получения обратной связи (обмена сообщениями), и (б) веб-приложение для управления данными, пользователями и бланками эпиднадзора, которые могут распространяться среди сборщиков данных на основе набора протоколов авторизации доступа. | E10: https://github.com/sacids/afyadata1.2 https://github.com/sacids/AfyaDataApp | G10: http://www.sacids.org/news/one-health-community-afyadata-tool/ | H10: https://publichealth.jmir.org/2017/4/e94/ https://www.openaccessgovernment.org/one-health-surveillance-systems/62354/
B11: 10 | C11: =Backbone!A598 -> Инструмент ВОЗ для оценки качества лабораторий | D11: Настоящий инструмент включает пошаговое руководство и рабочие таблицы для сбора данных с целью оценки: 1. стратегической организации и правительственной поддержки на национальном уровне (структура, организация и регламент национальной лабораторной системы (систем)); 2. конкретных технических возможностей на уровне лабораторий (избранные, репрезентативные для страны лаборатории). Инструмент состоит из двух частей: одна используется для оценки лабораторной системы (ИОЛ/система), другая — для оценки отдельных лабораторий (ИОЛ/объект). В каждой части имеется PDF-файл и Excel-файл. Excel-файл упрощает сбор данных благодаря автоматическим расчетам, подсчету баллов и агрегации данных. Оба вопросника можно использовать вместе или отдельно друг от друга. | E11: https://www.who.int/ihr/publications/laboratory_tool/en/ | F11: Доступны версии на английском, французском, испанском и русском языках.
B12: 11 | C12: =Backbone!A450 -> Инструмент для оценки прогресса на пути к ликвидации бешенства (TAPER) | D12: Настоящий инструмент позволяет анализировать регулярно собираемые данные эпиднадзора за бешенством, чтобы давать актуальные рекомендации для контроля за ситуацией в каждом конкретном случае и чтобы преодолевать препятствия и продолжать двигаться по пути искоренения бешенства. | E12: https://boydorr.shinyapps.io/paho_rabies/ https://github.com/katiehampson1978/paho_rabies | F12: Алгоритм простой и может быть реализован при помощи кода из Github-репозитория; более подробно в манускрипте, который в настоящий момент на пересмотре. Чтобы узнать, как адаптироваться к другим настройкам, свяжитесь с Исти Рысава (istyrysava@gmail.com) или Кейти Хэмпсон (Katie.Hampson@glasgow.ac.uk) | H12: https://doi.org/10.1186/s12879-020-05457-x
B13: 12 | C13: =Backbone!A351 -> Инструмент для оценки сети эпиднадзора (OASIS) | D13: Настоящий стандартизированный полуколичественный инструмент предназначен для оценки систем эпиднадзора за зоонозами и болезнями животных. Он включает 78 критериев оценки, которые сгруппированы по десяти разделам, представляющим функциональные элементы системы эпиднадзора. Каждому критерию присваивается балл согласно предписанию в руководстве по оценке. В итоге получается три графических оценки. OASIS следует использовать с участием лиц, ответственных за оцениваемую систему | E13: https://www.plateforme-esa.fr/article/l-outil-d-evaluation-oasis | F13: Доступны версии на английском и французском языках | H13: https://www.cambridge.org/core/journals/epidemiology-and-infection/article/oasis-an-assessment-tool-of-epidemiological-surveillance-systems-in-animal-health-and-food-safety/845374EB93FAE51055A5354A02C4BE33/core-reader
B14: 13 | C14: =Backbone!A445 -> Инструмент для оценки стоимости программ вакцинации от бешенства | D14: Инструмент на базе Excel для оценки эпидемиологического бремени бешенства у собак и возможного эпидемиологического и экономического эффекта программы вакцинации собак от бешенства. | E14: https://www.ncbi.nlm.nih.gov/pubmed/29791440 | F14: Файл Excel может быть загружен дополнительно.
B15: 14 | C15: =Backbone!A400 -> Инструмент для оценки требований и готовности к эпиднадзору на основе концепции «Единое здоровье» (OHSRRT) | D15: OHSRRT — это инструмент оценки требований и готовности к эпиднадзору, позволяющий определить уровень готовности страны и собрать требования для развития системы эпиднадзора на основе концепции «Единое здоровье» исходя из важнейших факторов успеха. Он содержит руководство по взаимодействию с заинтересованными сторонами и анкету, шаблон для сбора и классификации данных и описывает процесс оценки готовности и требований OHSRRT. Инструмент структурирован таким образом, что полученные благодаря ему результаты служат основанием для составления Отчета об анализе требований и разработки функциональных требований к рабочей системе эпиднадзора «Единое здоровье». | F15: Для получения информации по инструменту свяжитесь с Сектором ЦКПЗ по экстренному реагированию и восстановлению, Офисом ЦКПЗ «Единое здоровье» или Лабораторией прикладной физики Университета Джонса Хопкинса Контактное лицо в Лаборатории прикладной физики Университета Джонса Хопкинса: Карен Мейденбауэр, д.в.н., магистр общественного здравоохранения Karen.meidenbauer@jhuapl.edu
B16: 15 | C16: =Backbone!A430 -> Инструмент для расчета затрат на вспышки болезней животных | D16: Инструмент сбора данных на базе Excel для расчета затрат в стране на проведение стандартных расследований вспышек и меры борьбы с ними. С его помощью можно стандартизировать сбор данных по ресурсам, используемым при расследовании вспышек и борьбе с ними, установить основные факторы, определяющие величину затрат, и подготовить годовые бюджеты. | F16: Если вы хотите использовать данный инструмент для расчета затрат (OCT), получить доступ к справочным материалам или ответы на вопросы, свяжитесь с доктором Синтией Х. Кассел (chcassell@cdc.gov) или доктором Махалейт А. Вулдесадик (mwoldetsadik@cdc.gov)
B17: 16 | C17: =Backbone!A97 -> Инструмент Европейского ЦКПЗ для приоритизации угроз инфекционных заболеваний | D17: Настоящий инструмент на базе Excel обеспечивает приоритизацию угроз инфекционных заболеваний при помощи прозрачного, сопоставимого подхода и с возможностью методологического воспроизведения. Он проводит относительное ранжирование различных угроз инфекционных заболеваний. Его следует использовать как дополнение к другим методам, также способствующим принятию решений в вопросе планирования готовности. | E17: https://www.ecdc.europa.eu/en/publications-data/ecdc-tool-prioritisation-infectious-disease-threats | F17: Электронная почта для связи: publications@ecdc.europa.eu; info@ecdc.europa.eu | G17: https://www.ecdc.europa.eu/sites/default/files/documents/Tool-for-disease-priority-ranking_handbook-update-dec-18.pdf | H17: https://www.ecdc.europa.eu/en/publications-data/literature-review-best-practices-ranking-emerging-infectious-disease-threats https://www.eurosurveillance.org/content/10.2807/1560-7917.ES.2016.21.17.30212
B18: 17 | C18: =Backbone!A268 -> Инструмент картирования лабораторий ФАО (LMT) | D18: Инструмент LMT предназначен для оценки функциональности ветеринарных лабораторий при помощи двухуровневого процесса: i) при помощи подробного и стандартизированного вопросника, с участием внешнего эксперта или путем самооценки, проводится оценка функциональности лаборатории; ii) полученные данные загружаются в цифровое приложение, которое создает на их основе графики и таблицы, и в итоге получается срез с уровнем функциональности данной лаборатории и ее развитием во времени — срез можно делать на ежегодной основе. Данный инструмент также позволяет оценить исходное состояние лаборатории перед каким-либо вмешательством, чтобы можно было точно измерить прогресс и результаты такого вмешательства. | E18: http://www.fao.org/ag/againfo/programmes/en/empres/news_130514.html | F18: Английская и французская версии доступны онлайн, другие языки по запросу: китайский, тайский, азербайджанский, русский, индонезийский Для связи: EMPRES-Lab-Unit@fao.org LMT — это линейка инструментов, и Ядро LMT можно расширить с помощью модулей: на данный момент имеются Модуль LMT-безопасность и Модуль LMT-УПП. | H18: https://www.ncbi.nlm.nih.gov/pmc/articles/PMC6136606/
B19: 18 | C19: =Backbone!A38 -> Инструмент оценки информатизации лабораторий (разработка APHL) | D19: Инструмент для сбора исходной информации от лабораторий для регистрации потока данных, рабочих процессов, инфраструктуры, кадровых ресурсов и программ обучения, доступного оборудования, процессов управления данными, в том числе их учет и отчетность. В инструмент внесены изменения в зависимости от типа оцениваемой лаборатории. | E19: https://www.aphl.org/aboutAPHL/publications/Documents/GH-2018Nov-LIS-Guidebook-web.pdf | F19: Инструмент находится в Приложение «Е» (F) указанного документа.
B20: 19 | C20: =Backbone!A367 -> Инструмент оценки систем здравоохранения на предмет предотвращения приоритетных зоонозов и борьбы с ними в соответствии с подходом «Единое здоровье» (OH-SAPZ) | D20: Настоящий инструмент призван упростить планомерные оценки национальных структур для координации в рамках подхода «Единое здоровье» с точки зрения профилактики и выявления зоонозов и мер борьбы с ними. Пользователям будет предложено пройти процесс, состоящий из трех этапов: приоритизация заболеваний, картирование систем в учреждениях эпиднадзора и лабораториях, анализ и рекомендации. В целом, процесс OH-SAPZ предназначен для выявления сильных и слабых сторон страны с точки зрения межотраслевой коммуникации и координации, где в то же время даны четкие шаги для устранения выявленных пробелов. | E20: https://ghss.georgetown.edu/oh-sapz/ | F20: Запросы на шаблоны, слайды и сценарии направлять по электронной почте. Erin.Sorrell@georgetown.edu, Claire.Standley@georgetown.edu | G20: Руководство пользователя OH-SAPZ: https://ghss.georgetown.edu/oh-sapz/ | H20: https://www.ncbi.nlm.nih.gov/pmc/articles/PMC4600904/ https://www.ncbi.nlm.nih.gov/pmc/articles/PMC6479159/
B21: 20 | C21: =Backbone!A447 -> Инструмент оценки экономической эффективности системы эпиднадзора за бешенством у животных | D21: Инструмент на базе Excel для расчета затрат и эффективности программ профилактики бешенства. | E21: https://www.ncbi.nlm.nih.gov/pubmed/28719253 | F21: Файл Excel может быть загружен дополнительно.
B22: 21 | C22: =Backbone!A234 -> Инструмент расчета затрат для соответствия Международным медико-санитарным правилам (ММСП) (разработка Джорджтаунского университета) | D22: Инструмент расчета затрат для соответствия ММСП позволяет пользователям разработать смету расходов на развитие устойчивого потенциала согласно Международным медико-санитарные правилам (ММСП). Интуитивно-понятный интерфейс рассчитывает расходы на улучшения, необходимые для достижения нужного потенциала, исходя из полевых практик и руководства для достижения определенного технического потенциала, указанных в Совместной внешней оценке. | E22: https://ghscosting.org/ | H22: https://pubmed.ncbi.nlm.nih.gov/30167334/ https://www.liebertpub.com/doi/pdf/10.1089/hs.2019.0063 https://ghscosting.org/export/IHR%20Costing%20Tool%20-%20Definitions%20and%20References.pdf
B23: 22 | C23: =Backbone!A42 -> Инструмент самооценки информатизации лабораторий (разработка Ассоциации лабораторий общественного здравоохранения (APHL)) | D23: Настоящий инструмент позволяет лабораториям общественного здравоохранения оценить свои сильные стороны и пробелы в вопросе потенциала информатизации по 19 функциональным направлениям работы лабораторий. Данные собираются в течение длительного времени, что позволяет лабораториям измерять рост и использовать полученные результаты, чтобы эффективно добиваться выполнения своих потребностей. | E23: https://www.aphl.org/programs/informatics/Documents/LEI_2013Jun_Informatics-Self-Assessment-Tool-for-PHLs.pdf | F23: Инструмент самооценки информатизации лабораторий доступен как в формате PDF, так и онлайн. Онлайн-версия позволяет зарегистрированным пользователям сохранять проделанную работу и сравнивать предыдущие оценки. Кроме того, благодаря большим графическим возможностям системы обеспечивается наглядное отображение данных. Информацию по доступу к веб-версии можно запросить по электронной почте: rachel.sheperd@aphl.org
B24: 23 | C24: =Backbone!A256 -> Инструмент совместной внешней оценки (СВО) | D24: Данный инструмент предназначен для оценки потенциала страны в отношении профилактики и выявления угроз здоровью населения и быстрого реагирования на них вне зависимости от того, произошли ли они естественно, в результате умышленных действий или случайно. Оценка стран при помощи СВО происходит по 19 индикаторам, отражающим разный уровень потенциала страны, начиная от «не реализовано» до «полностью реализовано, испытано и осуществляется». | E24: https://www.who.int/publications/i/item/joint-external-evaluation-tool-(jee-tool)---second-edition https://apps.who.int/iris/bitstream/handle/10665/204368/9789241510172_eng.pdf?sequence=1 | F24: Для поддержки свяжитесь с национальным или региональным бюро ВОЗ. | G24: https://www.who.int/publications/i/item/handbook-for-the-integration-of-the-oie-pvs-results-into-the-jee-process
B25: 24 | C25: =Backbone!A47 -> Инструмент ФАО для оценки работы лабораторий и систем надзора за устойчивостью к противомикробным препаратам (ФАО-АТЛАСС) | D25: Инструмент ФАО для оценки работы лабораторий и систем надзора за устойчивостью к противомикробным препаратам (ФАО-АТЛАСС) увеличивает потенциал страны для надзора за УПП, способствуя более унифицированному и координированному надзору за УПП на национальном, региональном и глобальном уровнях.Он предназначен для генерирования исходных данных и адаптированных рекомендаций для увеличения потенциала национальных служб по выявлению УПП и общенациональной системы эпиднадзора за УПП для продовольственного и сельскохозяйственного секторов при помощи внешних оценок и самооценок (проводимых квалифицированными внешними или национальными экспертами АТЛАСС). ФАО-АТЛАСС состоит из двух основных модулей: ФАО-АТЛАСС Надзор и ФАО-АТЛАСС Лаборатория. Он рассчитан на работу в нескольких направлениях: получение данных по УПП (сеть лабораторий), сбор и анализ данных по УПП, управление, коммуникация и устойчивое развитие в целом | E25: http://www.fao.org/antimicrobial-resistance/resources/tools/fao-atlass/en/ | F25: Сделать запрос на миссию АТЛАСС можно в национальном/региональном офисе ФАО и/или по электронной почте EMPRES-Lab-Unit@fao.org | H25: http://www.fao.org/antimicrobial-resistance/resources/tools/fao-atlass/en/
B26: 25 | C26: =Backbone!A517 -> Инструмент ФАО для оценки эффективности эпиднадзора (SET) | D26: Инструмент для оценки эффективности эпиднадзора (SET) используется для оценки национальных систем надзора за болезнями животных с помощью комплексной и повторяемой методологии. Для генерирования графиков, отображающих сильные и слабые стороны систем, проводятся собеседования, начиная с основных ответственных лиц в центральном аппарате власти до животноводов на местах. Затем эти графики используются для разработки совместно с ветеринарными службами планов по улучшению этих систем. | F26: Доступ к инструменту можно получить у разработчиков, и, если SET представляет для вас интерес, следует связаться с ними заранее, чтобы они прислали вам последние версии документов и нужную методологию. Контакты координаторов можно найти на странице проекта здесь: http://www.fao.org/ag/againfo/programmes/en/empres/tools_SET.html | G26: http://www.fao.org/ag/againfo/programmes/en/empres/tools_SET.html https://fao.adobeconnect.com/_a1026619000/faoset/ https://fao.adobeconnect.com/_a1026619000/p6w4mnvs0d2f/?proto=true | H26: http://www.fao.org/3/CA1770EN/ca1770en.pdf http://www.fao.org/3/CA1832FR/ca1832fr.pdf http://www.fao.org/3/CA1778EN/ca1778en.pdf http://www.fao.org/3/CA2917FR/ca2917fr.pdf http://www.fao.org/3/ca3754en/ca3754en.pdf http://www.fao.org/3/ca5753fr/ca5753fr.pdf http://www.fao.org/3/ca7549en/ca7549en.pdf
B27: 26 | C27: =Backbone!A174 -> Инструмент эпидемиологического картирования (EMT) | D27: Инструмент на базе Excel для оценки национального эпидемиологического потенциала ветеринарных служб. Он предназначен для комплексных оценок эпидемиологического потенциала ветеринарных служб на национальном, субнациональном и местном уровнях с участием различных заинтересованных сторон. Задачей EMT является оценка эпидемиологического потенциала с точки зрения разных секторов и дисциплин, таких как охрана здоровья животных, здравоохранение человека, охрана окружающей среды, эпидемиология, лаборатория. Акцент делается на 3 основных технических направления (организационный, задействованные в эпидемиологии кадры и области применения эпидемиологического потенциала). | F27: Для получения более подробной информации по EMT отправьте запрос в региональное представительство ФАО по Азиатско-тихоокеанскому региону: Kachen.Wongsathapornchai@fao.org
B28: 27 | C28: =Backbone!A675 -> Инструментарий для включения концепции «Единое здоровье» в директивные документы и технические руководства | D28: Настоящий инструментарий описывает процесс включения концепции «Единое здоровье» в новые или существующие отраслевые и межотраслевые директивные и технические руководящие документы, включая руководства, стандартные операционные процедуры (СОП), протоколы и планы, как часть более масштабной работы, направленной на пропаганду политики «Единое здоровье» и обеспечение межотраслевой готовности и мер реагирования. | E28: https://www.onehealthapp.org/ | F28: Раздел «Ресурсы "Единое здоровье"»
B29: 28 | C29: =Backbone!A624 -> Инструментарий для картирования заинтересованных сторон на основе концепции «Единое здоровье» | D29: Настоящий инструментарий описывает процесс планирования и осуществления картирования заинтересованных сторон. В нем дан обзор каждого этапа пошагового процесса картирования заинтересованных сторон. Целью такого процесса является выявление и анализ всех важнейших участников, которые будут задействованы в создании платформы «Единое здоровье» (ЕЗ) и реализации ее функций, а также содействие развитию и внедрению мероприятий ЕЗ, таких как разработка технических руководств и политики. Инструменты в данном инструментарии можно адаптировать к контексту конкретной страны. | E29: https://www.onehealthapp.org/ | F29: См. раздел «Ресурсы "Единое здоровье"» Программы OH-APP
B30: 29 | C30: =Backbone!A383 -> Инструментарий для картирования и анализа систем «Единое здоровье» (OH-SMART) | D30: Процесс OH-SMART состоит из шести этапов, которые позволяют заинтересованным сторонам из разных секторов картировать, анализировать и улучшать существующую систему, требующую междисциплинарного и межотраслевого взаимодействия. Его можно использовать для укрепления систем, основанных на концепции «Единое здоровье», на общинном, местном, субнациональном, национальном и региональном уровнях, для реализации любых межотраслевых задач, включая пересмотр рамочных программ по экстренному реагированию, улучшение планов действий в отношении устойчивости к противомикробным препаратам, создание межведомственных протоколов о сотрудничестве в борьбе с инфекционными заболеваниями, а также поддержку совместного управления рисками на уровне общин. | F30: Руководство координатора OH-SMART доступно для тех, кто прошел обучение на Исполнителя или Старшего координатора. Исполнители OH-SMART проходят обучение для исполнителей и получают поддержку в рамках семинара OH-SMART, после чего они могут применять инструментарий самостоятельно. Обучение инструкторов проходит на регулярной основе онлайн или в очном формате в рамках внедрения OH-SMART. При оплате онлайн-обучения исполнителям будет предоставлен наставник и помощь в адаптировании и внедрении инструмента для конкретного применения. Для связи: Кейти Пеликан, pelicank@umn.edu | G30: https://oh-smart.umn.edu/ | H30: Публикации OH-SMART: https://oh-smart.umn.edu/oh-smart-action/oh-smart-publications
B31: 30 | C31: =Backbone!A685 -> Инструментарий для моделирования политики «Единое здоровье» | D31: Настоящий инструментарий позволяет ответственным лицам понять характер и масштаб того, как изменения в поголовье скота и популяции человека могут повлиять на здоровье животных, людей и окружающей среды, а также предлагает им некоторые варианты политики. | E31: https://www.onehealthapp.org/ | F31: См. раздел «Ресурсы "Единое здоровье"» Программы OH-APP
B32: 31 | C32: =Backbone!A648 -> Инструментарий для обеспечения готовности и планирования ответных действий | D32: Настоящий инструментарий предназначен для разработки странами их межотраслевых планов по обеспечению готовности и ответных действий в отношении событий общественного здравоохранения, включая события с изначально невыясненной этиологией; он может использоваться как странами, у которых нет таких планов, так и странами, которые хотят укрепить уже существующие планы, техническую документацию или стандартные операционные процедуры. Созданный на базе рамочной программы Африканского региона ВОЗ по планированию в отношении событий с изначально невыясненной этиологией, настоящий инструментарий дает подробное техническое описание процесса развития межотраслевого потенциала по обеспечению готовности и планированию ответных действий. | E32: https://www.onehealthapp.org/ | F32: См. раздел «Ресурсы "Единое здоровье"» Программы OH-APP
B33: 32 | C33: =Backbone!A595 -> Инструментарий для оценки качества данных (DQR) | D33: Инструментарий для оценки качества данных (DQR) предлагает комплексный подход к качеству данных. Он включает руководящие принципы и инструменты, закладывающие основу для стандартизированного и целостного подхода к качеству данных, который призывает к институционализации регулярных оценок качества данных в странах. Данный инструментарий разбит на три модуля, каждый из которых содержит свои методы и инструменты: (1) Рамочная программа и показатели; (2) Теоретический обзор качества данных; (3) Верификация данных и оценка системы. | E33: https://www.measureevaluation.org/our-work/data-quality/data-quality-review
B34: 33 | C34: =Backbone!A677 -> Инструментарий для проведения имитационных учений | D34: Имитационные учения моделируют реальные ситуации с целью оценки или укрепления протоколов и потенциала по обеспечению готовности. Они позволяют организациям выявить пробелы и слабые стороны в квалификации и способностях сотрудников. Как правило, имитационные учения проводятся платформами для изучения и укрепления уровня взаимодействия между секторами, реализующими принцип «Единое здоровье», в их работе по обеспечению готовности. Настоящий инструментарий позволяет платформам и другим заинтересованным сторонам выбрать нужный тип моделирования, а также спроектировать и внедрить эффективное моделирование. Он создан с целью предоставления высокоуровневого обзора имитационных учений. | E34: https://www.onehealthapp.org/ | F34: Раздел «Ресурсы "Единое здоровье"»
B35: 34 | C35: =Backbone!A680 -> Инструментарий для проведения обзора принятых мер после вспышки заболевания | D35: Настоящий инструментарий помогает представителям платформы «Единое здоровье» в пошаговом процессе планирования и проведения Обзора принятых мер (ОПМ) после вспышки заболевания. | E35: https://www.onehealthapp.org/ | F35: См. раздел «Ресурсы "Единое здоровье"» Программы OH-APP
B36: 35 | C36: =Backbone!A683 -> Инструментарий для пропаганды политики «Единое здоровье» | D36: Настоящий инструментарий позволяет заинтересованным сторонам разрабатывать и внедрять стратегию пропаганды политики «Единое здоровье», которая помогает им доносить информацию до нужных лиц и получать поддержку тех, кто принимает решения, определять пропагандистские инструменты и мероприятия для укрепления сотрудничества и политики, а также готовить союзников и лидеров для реализации целей «Единое здоровье». | E36: https://www.onehealthapp.org/ | F36: См. раздел «Ресурсы "Единое здоровье"» Программы OH-APP
B37: 36 | C37: =Backbone!A686 -> Инструментарий для реализации стратегии устойчивого финансирования в рамках концепции «Единое здоровье» | D37: Данный инструментарий призван поддерживать платформы «Единое здоровье» и другие координационные механизмы в их работе по привлечению и получению средств на организацию работы платформы и ее мероприятий в долгосрочной перспективе. | E37: https://www.onehealthapp.org/ | F37: См. раздел «Ресурсы "Единое здоровье"» Программы OH-APP
B38: 37 | C38: =Backbone!A628 -> Инструментарий для создания организационной структуры и определения круга ведения | D38: Настоящий инструментарий описывает общий процесс и инструменты, которые нужны стране для создания или пересмотра организационной структуры платформы «Единое здоровье», включая схему организационной структуры и круг ведения. В ходе создания или пересмотра организационных структур платформы, следует поставить цель добиться признания платформы «Единое здоровье», ее официального одобрения всеми необходимыми ведомствами и высокопоставленными чиновниками. | E38: https://www.onehealthapp.org/ | F38: Раздел «Ресурсы "Единое здоровье"»
B39: 38 | C39: =Backbone!A634 -> Инструментарий для создания руководства по управлению | D39: Для целей эффективности национальным платформам «Единое здоровье» следует разрабатывать и согласовывать процессы управления, четко определяющие принципы функционирования платформы. Данный инструментарий описывает процесс разработки руководства по управлению, отражающее цель платформы, ее функции и обязанности, протоколы встреч и коммуникаций, распределение кадровых, финансовых и технических ресурсов, а также методы оценки и отчетности по эффективности работы. | E39: https://www.onehealthapp.org/ | F39: Раздел «Ресурсы "Единое здоровье"»
B40: 39 | C40: =Backbone!A31 -> Интегрированная система эпиднадзора за устойчивостью к противомикробным препаратам (консультативная группа AGISAR) | D40: Настоящее руководство разработано в помощь странам-членам ВОЗ и другим заинтересованным сторонам в создании и развитии программ интегрированного эпиднадзора за устойчивостью к противомикробным препаратам у пищевых бактерий (т.е. бактерий, обычно передаваемых с пищей). В нем содержатся подробные примеры из некоторых стран. | E40: https://apps.who.int/iris/bitstream/handle/10665/255747/9789241512411-eng.pdf?sequence=1 | F40: Ресурс может быть адаптирован для разработки системы координированного эпиднадзора за зоонозами.
B41: 40 | C41: =Backbone!A482 -> Картирование ресурсов для соблюдения ММСП и обеспечения санитарно-эпидемиологической безопасности (REMAP) | D41: Картирование ресурсов и анализ воздействия на инвестиции в области обеспечения санитарно-эпидемиологической безопасности (REMAP) — это разработанный ВОЗ инструмент на базе Excel для картирования ресурсов (доступных и потенциальных), способствующих построению и поддержанию потенциала ММСП на уровне страны. ВОЗ помогает странам разрабатывать подходящие шаблоны и контрольные перечни для REMAP исходя из контекста страны. Это возможно благодаря консультациям с межотраслевыми национальными заинтересованными лицами, включая доноров и партнеров. | F41: Для получения более подробной информации или доступа, свяжитесь с командой SPH (Стратегическое партнерство по обеспечению санитарно-эпидемиологической безопасности и готовности к чрезвычайным ситуациям): sph@who.int | G41: https://apps.who.int/iris/bitstream/handle/10665/329385/WHO-WHE-CPI-2019.17-eng.pdf?sequence=1&isAllowed=y
B42: 41 | C42: =Backbone!A396 -> Кодекс по эпиднадзору на основе концепции «Единое здоровье» (OHS) | D42: Рамочная программа высокого уровня, поддерживающая взаимодействие, взаимопонимание, обмен знаниями и совместимость данных среди секторов, осуществляющих эпиднадзор в рамках концепции «Единое здоровье». В кодексе OHS представлен обзор практических ресурсов, а также даны ссылки на случаи успешного применения этих ресурсов. | E42: https://oh-surveillance-codex.readthedocs.io/en/latest/index.html
B43: 42 | C43: =Backbone!A195 -> Комплексная система эпиднадзора и мер реагирования (IDSR) | D43: Комплексная стратегия АФРБ ВОЗ с целью укрепить потенциал стран для выявления и подтверждения предполагаемых случаев заболевания и вспышек и реагирования на них, а также для использования информации для прогнозирования событий в области общественного здравоохранения и планирования мер реагирования на них на всех уровнях системы здравоохранения. | E43: https://www.afro.who.int/publications/technical-guidelines-integrated-disease-surveillance-and-response-african-region-third | G43: https://www.tephinet.org/integrated-disease-surveillance-and-response-idsr-elearning-course https://www.cdc.gov/globalhealth/healthprotection/idsr/pdf/idsr-matrix_28x18_english.pdf https://www.who.int/csr/labepidemiology/projects/diseasesurv/en/ https://www.afro.who.int/publications/guide-introduction-idsr-curricula-health-training-institutions
B44: 43 | C44: =Backbone!A522 -> Лабораторная информационная менеджмент-система для африканских ветеринарных служб (SILABFA) | D44: SILABFA — лабораторная информационная менеджмент-система (ЛИМС), разработанная итальянской государственной лабораторией (IZSAM) и внедряемая в странах Африки. Система позволяет отследить все этапы диагностирования от получения образцов до лабораторных заключений. Модули по статистике, инвентаризации, финансовому контролю и биобанкам полностью интегрированы. SILABFA совместима со внешними системами. | E44: https://demo.izs.it/silabfa_eth/ | F44: Доступ к бесплатной демоверсии можно запросить по электронной почте: silab.support@izs.it Демо-среда основана на используемых для разработки данных испытаний без привязки к реальным случаям. | H44: ЦИО: 10.1089/tmj.2018.0208 http://www.sidilv.org/index.php/component/docman/doc_download/123-volume-atti-sidilv-2016?Itemid= https://www.ncbi.nlm.nih.gov/pubmed/23038071
B45: 44 | C45: =Backbone!A531 -> Лабораторная информационная менеджмент-система, облегченная версия (МиниЛИМС) | D45: МиниЛИМС — информационная система для управления лабораторией анализов с простой организационной структурой. Собирается информация по местам отбора проб, типу выбранного материала и выбранному биологическому виду, проведенным анализам, полученным результатам и хранению проб. Имеется встроенный модуль по УПП. | E45: https://demo.izs.it/silabfa_mini/ | F45: Доступ к бесплатной демоверсии можно запросить по электронной почте: silab.support@izs.it Демо-среда основана на используемых для разработки данных испытаний без привязки к реальным случаям.
B46: 45 | C46: =Backbone!A552 -> Международные медико-санитарные правила (2005 г.): инструмент ежегодной отчетности государств-участников на основе самооценки (SPAR) | D46: Инструмент отчетности, помогающий государствам-участникам Международных медико-санитарных правил (ММСП) в выполнении их обязательств по представлению ежегодных докладов Всемирной ассамблее здравоохранения (ВАЗ) по выполнению ими требований в отношении потенциала в соответствие с ММСП, а также поощряющий прозрачность и взаимную подотчетность среди государств-участников на пути к глобальной безопасности в области общественного здравоохранения в соответствие с Рамочной программой ВОЗ по мониторингу и оценке выполнения ММСП. | E46: в формате PDF https://apps.who.int/iris/bitstream/handle/10665/272432/WHO-WHE-CPI-2018.16-eng.pdf?sequence=1 ; онлайн-инструмент https://extranet.who.int/e-spar | F46: Онлайн-платформа для отчетности SPAR доступна для национальных координаторов ММСП. | G46: https://extranet.who.int/sph/news/ihr-self-assessment-annual-reporting-tool-spar-2018
B47: 46 | C47: =Backbone!A435 -> Методика поэтапного решения проблемы устойчивости к противомикробным препаратам (МПР УПП) | D47: Методика ФАО поэтапного решения проблемы устойчивости к противомикробным препаратам (МПР УПП ФАО) — это рабочий инструмент самооценки, помогающий странам в разработке и внедрении межотраслевого национального плана действий на основе концепции «Единое здоровье» для борьбы с УПП. Он включает инструмент самооценки для количественного измерения уровня внедрения. | F47: Чтобы получить доступ к инструменту в электронном письме, отправьте запрос на FAO-AMR-PMP@fao.org | G47: http://www.fao.org/antimicrobial-resistance/resources/tools/fao-pmp-amr/en/ | H47: http://www.fao.org/antimicrobial-resistance/resources/tools/fao-pmp-amr/en/ http://www.fao.org/europe/news/detail-news/en/c/1200272/ http://www.fao.org/africa/news/detail-news/en/c/1190787
B48: 47 | C48: =Backbone!A291 -> Методология для анализа законодательства, относящегося к УПП, в продовольственном и сельскохозяйственном секторе | D48: Это инструмент, разработанный ФАО для проведения анализов государственного законодательства, относящегося к УПП в продовольственном и сельскохозяйственном секторах. Методология может использоваться в процессе правового анализа, помогающего выявить пробелы и слабые стороны в государственном законодательстве, относящемся к УПП и применению противомикробных препаратов, а также помочь оценить соответствие различных типов национальных и региональных правовых инструментов международным стандартам по решению проблемы УПП. | F48: Более подробно о возможности доступа к инструменту можно узнать в Службе по правовым вопросам развития при Управлении ФАО по правовым вопросам по электронной почте: LEGN-Chief@fao.org
B49: 48 | C49: =Backbone!A427 -> Миссия ПВС по лабораториям, разработанная Всемирной организацией охраны здоровья животных (МЭБ) | D49: Миссия ПВС по лабораториям является частью специальных программ МЭБ в поддержку стран. Данные миссии проводятся не только для определения ресурсов, необходимых национальной лабораторной сети, но и для оценки релевантности ее структуры и жизнеспособности в контексте страны, и делается это для представления ветеринарным службам элементов, необходимых для принятия стратегических решений. Кроме того, в ходе миссии проводится анализ взаимоотношений национальной лабораторной сети со всеми остальными поставщиками услуг. | E49: https://www.oie.int/fileadmin/Home/eng/Support_to_OIE_Members/pdf/OIE_PVS_Pathway_Laboratory_Manual_2014.pdf | F49: Запрос на проведение миссии ПВС следует направлять от делегата страны в МЭБ Генеральному директору МЭБ. | G49: https://rr-asia.oie.int/wp-content/uploads/2019/12/6a-managing-an-oie-pvs-evaluation-part-1_bangkok-dec-2019.pdf
B50: 49 | C50: =Backbone!A163 -> Мобильное приложение EMA-i для обмена данными о болезнях животных | D50: EMA-i — это разработанное ФАО приложение для передачи данных в реальном времени. Оно позволяет сотрудникам ветеринарных служб собирать информацию о болезнях животных на местах, передаваемую затем по сети. Приложение генерирует отчеты с географической привязкой, которые передаются на пользовательский интерфейс страны в Глобальной информационной системе болезней животных (EMPRES-i) для безопасного хранения и обработки данных. Инструмент адаптируется под требования каждой страны в отношении передачи информации о болезнях. | F50: Электронная почта для получения более подробной информации или получения доступа: Sabina.Ramazzotto@fao.org | H50: http://www.fao.org/3/a-i4853e.pdf http://www.fao.org/3/CA1078EN/ca1078en.pdf http://boutique.oie.int/extrait/24tekola657670.pdf
B51: 50 | C51: =Backbone!A265 -> Модель компетенций для лидеров/руководителей лабораторий (GLLP) | D51: Модель компетенций для лидеров/руководителей лабораторий обозначает девять важных компетенций, которыми должны обладать лидеры/руководители лабораторий для создания устойчивой «Национальной системы лабораторий здравоохранения» и управления ею, включающей лаборатории, проводящие исследования материалов от людей, животных, окружающей среды, сельского хозяйства, продуктов питания, и химические лаборатории, с целью выявления и профилактики заболеваний, и борьбы с ними силами систем здравоохранения по всему миру. | E51: https://www.who.int/ihr/publications/laboratory-leadership-competency-framework-first-edition/en/ https://www.who.int/ihr/publications/laboratory-leadership-competency-framework-first-edition/fr/ https://www.who.int/ihr/publications/laboratory-leadership-competency-framework-first-edition/ru/ https://www.who.int/ihr/publications/laboratory-leadership-competency-framework-first-edition/es/ | F51: Модель компетенций для лидеров/руководителей лабораторий доступна на английском, французском, русском и испанском языках. Модель компетенций для лидеров/руководителей лабораторий поддерживает развитие Глобальной программы для лидеров/руководителей лабораторий. | G51: https://www.who.int/ihr/lyon/global-laboratory-leadership-programme/en/ | H51: https://www.frontiersin.org/articles/10.3389/fpubh.2019.00199/full https://apps.who.int/iris/bitstream/handle/10665/325635/WER24may2019-xiv-xvii-eng-fre.pdf http://dx.doi.org/10.2471/BLT.17.195883
B52: 51 | C52: =Backbone!A346 -> Национальная программа стандартизации системы общественного здравоохранения для повышения ее эффективности (NPHPSP): Инструмент оценки эффективности местной системы общественного здравоохранения (2-я версия) | D52: Оценка эффективности проводится для укрепления и усовершенствования системы общественного здравоохранения. Инструмент NPHPSP основан на рамочной программе десяти основных функций общественного здравоохранения. По каждой из основных функций, типовые стандарты описывают главные мероприятия, проводимые на местном уровне, или соответствуют им. В ходе оценки участники с разных концов местной системы здравоохранения могут обсуждать и сравнивать результаты своей работы с каждым из 30 типовых стандартов. | E52: https://www.cdc.gov/publichealthgateway/nphps/index.html?CDC_AA_refVal=https%3A%2F%2Fwww.cdc.gov%2Fnphpsp%2Findex.html | F52: Инструмент разработан для систем общественного здравоохранения США. Может быть взят за основу для адаптации под местные реалии.
B53: 52 | C53: =Backbone!A303 -> Национальный план действий по обеспечению безопасности в области здравоохранения (NAPHS) | D53: Организуемый самими странами и охватывающий много лет процесс планирования, способный ускорить внедрение основных возможностей ММСП и основывающийся на концепции «Единое здоровье» и общегосударственном подходе ко всем видам опасностей. Этот план отражает национальные приоритеты в отношении обеспечения безопасности в области здравоохранения, объединяет секторы, выявляет партнеров и предусматривает выделение ресурсов на наращивание потенциала для обеспечения безопасности в области здравоохранения. Кроме того, NAPHS обеспечивает всеобъемлющий процесс, охватывающий все текущие инициативы в области обеспечения готовности в стране наряду с действующим в стране механизмом управления рисками в условиях чрезвычайных ситуаций в области здравоохранения и бедствий. | E53: https://apps.who.int/iris/bitstream/handle/10665/312220/WHO-WHE-CPI-19.5-eng.pdf?sequence=1 | F53: На сайте представлен большой объем информации, но странам, по всей видимости, необходимо в этом процессе тесно взаимодействовать с ВОЗ
B54: 53 | C54: =Backbone!A239 -> Национальный семинар по выстраиванию связей ММСП-ПВС | D54: Данный инструмент используется для проведения семинара для заинтересованных сторон, применяющих принцип «Единое здоровье» (ЕЗ), на котором обсуждаются требования ММСП, а также координация между сторонами ЕЗ и их действия, направленные на соблюдение требований Международных медико-санитарных правил (ММСП). Семинар предназначен для «диагностирования» межотраслевой координации по различным вопросам и создания дорожной карты по межотраслевой координации с точки зрения ее дальнейшего развития, чтобы продолжать двигаться в направлении соблюдения ММСП и высоких показателей на национальном уровне. | E54: https://extranet.who.int/sph/ihr-pvs-bridging-workshop | F54: Доступны версии на английском, русском, французском языках Организовано ВОЗ и МЭБ. Контактные лица для связи по вопросам оценки: Стефан де ла Рок де Северак (delarocques@who.int) и доктор Франсуа Кейя (f.caya@oie.int) | H54: https://www.ncbi.nlm.nih.gov/pubmed/31564739
B55: 54 | C55: =Backbone!A296 -> Обновленные руководящие принципы для оценки систем эпиднадзора за здоровьем человека | D55: Настоящий отчет предоставляет обновленные руководящие принципы для оценки систем эпиднадзора в соответствии с Рамочной программой ЦКПЗ для оценки программ в сфере общественного здравоохранения, исследование и обсуждение опасений, связанных с системами эпиднадзора за здоровьем человека, и отзывов, полученных от сообщества сектора общественного здравоохранения. Руководящие принципы в данном отчете описывают множество задач и связанных мероприятий, применимых к системе эпиднадзора за здоровьем человека | E55: https://www.cdc.gov/mmwr/preview/mmwrhtml/rr5013a1.htm
B56: 55 | C56: =Backbone!A483 -> Онлайн-инструменты для разработки и оценки систем эпиднадзора (SURVTOOLS) | D56: Объединенные инструменты для проектирования и оценки эпиднадзора предназначены для компетентных технических пользователей, проектирующих, внедряющих или оценивающих системы эпиднадзора за здоровьем животных. Они инструктируют пользователей для прохождения важных этапов цикла «проектирование – оценка – перепроектирование» с целью стратегического планирования системы эпиднадзора за здоровьем животных, а также позволяют разобраться в ключевых понятиях, методах и требованиях. | E56: https://survtools.org https://survtools.org/wiki/surveillance-design-framework/doku.php https://survtools.org/wiki/surveillance-evaluation/doku.php | F56: SURVTOOLS имеются в открытом онлайн-доступе (https://survtools.org/; необходима регистрация). | G56: https://www.youtube.com/watch?v=6bXBn-Kglp8&feature=youtu.be&list=PLPamJyFyCit8UGPOaEwr_bR0LCKkcKzJ6 https://www.youtube.com/watch?v=8aLKTw7z63U&feature=youtu.be | H56: https://doi.org/10.1016/j.prevetmed.2019.104777 https://www.researchgate.net/publication/299393001_RISKSUR_tools_taking_animal_health_surveillance_into_the_future_through_interdisciplinary_integration_of_scientific_evidence doi.org/10.1186/s12917-016-0822-5
B57: 56 | C57: =Backbone!A395 -> Оценка для улучшения планирования и повышения эффективности на основе принципа «Единое здоровье» (OH-APP) | D57: OH-APP — это рамочная программа мониторинга для межотраслевых координационных механизмов (МКМ) для ежегодной самооценки их организационного потенциала и эффективности, результаты которой будут использоваться для планирования и развития. OH-APP дополняет совместную внешнюю оценку ВОЗ (СВО) благодаря более конкретным индикаторам, имеющимся для измерения зрелости МКМ и отслеживания его развития в сторону устойчивого механизма, способного координировать взаимодействие между секторами и заинтересованными сторонами в вопросе обеспечения готовности и мер реагирования на угрозы здоровью людей. Обучение OH-APP проходит в виде двухдневного семинара с использованием инструментов для совместного принятия решений. Результаты оценки служат основой для принятия решений в отношении совместного планирования, внедрения и реагирования на угрозы здоровью населения. | E57: https://www.onehealthapp.org/ | F57: Для доступа к приложению можно использовать вымышленное название страны «Конкордия». Для целей внутренней отчетности результаты оценки для других стран, кроме Конкордии, могут добавлять только пользователи с официальными логинами «Единое здоровье». Функционал остается тем же, поэтому пользователи могут использовать данное приложение для оценки организационного потенциала и эффективности платформы «Единое здоровье» в контексте своей страны без официальной регистрации.
B58: 57 | C58: =Backbone!A83 -> Оценка системы эпиднадзора и мониторинга качества данных Европейского ЦКПЗ — справочник методов и применений | D58: Справочник по мониторингу качества данных эпиднадзора для специалистов сектора общественного здравоохранения. Он служит руководством для выполнения процессов мониторинга качества данных и оценки систем эпиднадзора в странах-членах ЕС/ЕЭЗ, а также помогает специалистам сектора общественного здравоохранения в их ежедневной работе с данными эпиднадзора за инфекционными заболеваниями. | E58: https://www.ecdc.europa.eu/en/publications-data/data-quality-monitoring-and-surveillance-system-evaluation-handbook-methods-and | H58: https://bmjopenquality.bmj.com/content/4/1/u209037.w3663; https://www.ncbi.nlm.nih.gov/pmc/articles/PMC5372144/
B59: 58 | C59: =Backbone!A100 -> Оценка сотрудничества в рамках межотраслевой системы эпиднадзора (ECoSur) | D59: EcoSur — это полуколичественный инструмент для оценки организации и функционирования взаимодействия в межотраслевой системе эпиднадзора и для анализа сильных и слабых сторон такого взаимодействия. В конечном счете результаты оценки могут дать толчок созданию рекомендаций для улучшения взаимодействия в межотраслевой системе эпиднадзора. | E59: https://survtools.org/wiki/surveillance-evaluation/doku.php?id=quality_of_the_collaboration | H59: https://doi.org/10.3389/fvets.2019.00109 http://www.theses.fr/s168606
B60: 59 | C60: =Backbone!A489 -> Пакет программного обеспечения для проведения автоматического глобального электронного биомониторинга (SAGES) | D60: Пакет программного обеспечения в свободном доступе с открытым исходным кодом для улучшения электронного эпиднадзора в условиях ограниченных ресурсов. SAGES задействует инструменты электронного эпиднадзора в сочетании с другими свободно доступными совместимыми инструментами, а также имеющейся местной технологической инфраструктурой, для обеспечения и/или укрепления потенциала электронного эпиднадзора по всему миру. Функционал SAGES включает мобильный сбор данных, пространственно-временной анализ при помощи географического картографирования, обнаружение аномальных явлений и возможность динамических запросов. | E60: https://github.com/sages-health/openessence | F60: Для получения более подробной информации свяжитесь с Лабораторией прикладной физики Университета Джонса Хопкинса Контактное лицо в Лаборатории прикладной физики Университета Джонса Хопкинса: Шраддха Патель Shraddha.patel@jhuapl.edu | G60: https://www.jhuapl.edu/sages/ | H60: https://doi.org/10.1186/1472-6947-12-99 https://doi.org/10.1371/journal.pone.0019750
B61: 60 | C61: =Backbone!A194 -> Подход к оценке систем здравоохранения (HSAA) | D61: HSAA предназначена для помощи в диагностировании эффективности систем здравоохранения и сборе общесистемной информации с целью улучшения работы по планированию в секторе здравоохранения. При таком подходе рассматривается вся система здравоохранения, включая ее управление, финансирование, оказание медицинских услуг, кадровые ресурсы, фармацевтический менеджмент и информационные системы здравоохранения, с учетом частного сектора, который является важным, но зачастую упускаемым из виду элементом системы здравоохранения. | E61: https://www.hfgproject.org/the-health-system-assessment-approach-a-how-to-manual/
B62: 61 | C62: =Backbone!A557 -> Поэтапный инструмент по искоренению бруцеллеза (STEB) | D62: Настоящий инструмент самооценки на базе электронных таблиц создан в помощь странам в оценке имеющегося потенциала профилактики и искоренения бруцеллеза и борьбы с ним. При помощи STEB, выявляющего пробелы в потенциале, страны могут проводить мероприятия с использованием подхода «Единое здоровье» для профилактики и искоренения бруцеллеза и борьбы с ним. | F62: Для получения более подробной информации или доступа отправьте запрос на onehealth@cdc.gov и bspb@cdc.gov
B63: 62 | C63: =Backbone!A453 -> Поэтапный подход к ликвидации бешенства (SARE) | D63: SARE является рабочим инструментом планирования, мониторинга и оценки для реализации, разработки и доработки программ борьбы с бешенством. Он представлен в виде оценочной таблицы Excel с измеряемыми этапами, которые разработаны как логическая последовательность мероприятий от Этапа 0 до Этапа 5, призванных искоренить передаваемое собаками бешенство. | E63: https://caninerabiesblueprint.org/A-stepwise-approach-to-planning?lang=en | F63: Запросить оценочную таблицу SARE можно на сайте https://rabiesblueprint.org/sare.html | G63: https://caninerabiesblueprint.org/IMG/pdf/sare_outline_2017_f.pdf
B64: 63 | C64: =Backbone!A179 -> Приложение FoodChain-Lab (FCL) | D64: FoodChain-Lab (FCL) — это бесплатное программное обеспечение для отслеживания с открытым исходным кодом. Оно позволяет отслеживать продукты питания по всей цепочки поставки как вперед, так и назад, чтобы определить источник заражения, вызвавший вспышку заболевания пищевого происхождения или иной инцидент, связанный с пищевыми продуктами. В FCL есть функции сбора данных, управления и визуализации, а также методы интерактивного анализа. FCL успешно применялось при нескольких вспышках заболеваний. | E64: https://foodrisklabs.bfr.bund.de/foodchain-lab/ https://fcl-portal.bfr.berlin/ | G64: https://foodrisklabs.bfr.bund.de/foodchain-lab/ https://foodrisklabs.bfr.bund.de/foodchain-lab/ https://github.com/SiLeBAT/BfROpenLab https://github.com/SiLeBAT/fcl-client | H64: https://www.liebertpub.com/doi/pdf/10.1089/fpd.2012.1296 https://journals.plos.org/plosone/article?id=10.1371/journal.pone.0151977 https://efsa.onlinelibrary.wiley.com/doi/epdf/10.2903/sp.efsa.2019.EN-1742
B65: 64 | C65: =Backbone!A571 -> Приложение Всемирной организации охраны здоровья животных (МЭБ) для получения оповещений от ВАХИС (WAHIS Alerts) | D65: Приложение WAHIS Alerts позволяет пользователям получать на мобильный телефон или планшет (мгновенные) оповещения о болезнях животных и последующие отчеты по мере их публикации МЭБ. | F65: Онлайн-магазины App store, Google Playstore, Play Market | G65: https://www.oie.int/en/for-the-media/press-releases/detail/article/oie-alerts-and-animal-health-information-now-available-on-your-smartphone-or-tablet/
B66: 65 | C66: =Backbone!A604 -> Приложение для оценки воздействия бешенства и выявления контактных лиц (REACT) | D66: Инструмент, помогающий реализации комплексных программ управления случаями укусов (IBCM). Представленный в виде приложения, данный инструмент обеспечивает стандартизированные, систематические полевые исследования людей, подверженных риску заражения бешенством, и животных с подозрением на бешенство. С его помощью можно собирать данные и в реальном времени получить обратную связь в отношении процедуры проведения исследования IBCM, риска наличия бешенства у исследуемых животных и организации карантина. Приложение следит за случаями в течение долгого времени, позволяя пользователям отслеживать важную эпидемиологическую и санитарную информацию в долгосрочной перспективе. Сбор данных происходит в оффлайн режиме, но их можно сразу же загрузить на общий защищенный сервер, доступный авторизованным пользователям из организаций охраны здоровья животных и здравоохранения человека. Персонализированный вебсайт позволяет пользователям визуализировать и анализировать данные IBCM и данные о рисках заражения бешенством с целью ведения руководящих принципов по лечению жертв укусов, а также управления информацией для организации мероприятий по борьбе с бешенством, таких как вакцинация собак. | E66: https://rabiestaskforce.com/toolkit | F66: Доступно на английском, французском, испанском, вьетнамском и тайском языках. Основные задачи приложения: сбор/обобщение/поверхностный анализ данных для исследования/регистрации случаев бешенства у людей и животных, — но при этом оно может быть адаптировано ко многим ситуациям, так как позволяет пользователям создавать любые виды отчетов. | G66: https://www.youtube.com/watch?v=BQJ5D6wGIeg | H66: https://www.cdc.gov/mmwr/volumes/68/wr/mm6832a6.htm
B67: 66 | C67: =Backbone!A592 -> Программа ВОЗ «WHO-CHOICE» | D67: Настоящая программа помогает странам расставить приоритеты в отношении системы здравоохранения с учетом затрат и последствий. Она состоит из различных методов и инструментов. Компонент программы, касающийся Общей экономической эффективности, призван определить мероприятия в сфере здравоохранения с наилучшим соотношением цены и качества, т.е. с большей выгодой для здоровья от каждого потраченного доллара. Инструмент «Единое здоровье» помогает странам анализировать затраты и целесообразность их стратегических планов, а также оценивать потенциальную результативность этих планов. | E67: https://www.who.int/news-room/feature-stories/detail/new-cost-effectiveness-updates-from-who-choice
B68: 67 | C68: =Backbone!A415 -> Процесс приоритизации зоонозов на основе концепции «Единое здоровье» (OHZDP) | D68: Данный инструмент на базе Excel является пошаговым руководством для принятия решений и выполнения в ходе семинара межотраслевого процесса приоритизации на основе концепции «Единое здоровье». Используемый процесс варьирует от качественного до полуколичественного и до количественного, и в ходе него участники разрабатывают ряд критериев для приоритизации зоонозов, затем составляют репрезентативные вопросы для этих критериев, ранжируют критерии и вычисляют рейтинговые значения с учетом этой информации. | F68: Для связи: onehealth@cdc.gov
B69: 68 | C69: =Backbone!A643 -> Разработка стратегического плана на основе концепции «Единое здоровье» | D69: Настоящий инструмент представляет собой пошаговое руководство для разработки национального стратегического плана на основе концепции «Единое здоровье» при помощи коллективного подхода с учетом потребностей заинтересованных сторон. Стратегический план на основе концепции «Единое здоровье» — это национальный директивный документ, который излагает координированный, межотраслевой подход «Единое здоровье» к угрозам заболевания, вызывающим беспокойство в области общественного здравоохранения, особенно угрозам зоонозов. Он также служит основанием для планирования работы платформы и пропаганды с целью привлечения ресурсов. | E69: https://www.onehealthapp.org/ | F69: См. раздел «Ресурсы "Единое здоровье"» Программы OH-APP
B70: 69 | C70: =Backbone!A65 -> Районная информационная система здравоохранения, версия 2 (DHIS2) | D70: DHIS2 — это онлайн-платформа информационной системы управления в системе здравоохранения (HMIS) с открытым исходным кодом. Эта платформа отличается тем, что имеет хранилище данных, графические возможности и функцию генерации анализов из реальных данных в режиме реального времени для пользователей данных и руководящих работников. DHIS2 является бесплатным и открытым программным обеспечением. У каждый страны имеется своя собственная «копия» платформы DHIS2 с полными правами владения приложением и данными. При содействии экспертов сообщества DHIS2 министерства здравоохранения настраивают собственную информационную систему поверх типовой платформы. | E70: https://www.dhis2.org/home | F70: Разработка основного программного обеспечения DHIS2 ведется в рамках Программы информационных систем здравоохранения (HISP) в Университете Осло (УО). Электронная почта для связи: post@dhis2.org
B71: 70 | C71: =Backbone!A2 -> Рамочная программа Африканских ЦКПЗ по надзору на основе сигнальных событий | D71: Рамочная программа для осуществления надзора на основе сигнальных событий (НОС) представляет собой руководство для работников системы общественного здравоохранения, стремящихся внедрить НОС на всех административных уровнях своей страны. Для стран Африканского союза, реализующих Комплексную стратегию эпиднадзора и мер реагирования (IDSR), настоящий документ дополняет данную стратегию и может усилить работу по ее внедрению. | E71: https://africacdc.org/download/africa-cdc-event-based-surveillance-framework/ | F71: Поскольку надзор на основе индикаторов и надзор на основе событий совместно являются компонентом раннего предупреждения и реагирования системы эпиднадзора за здоровьем населения, настоящая рамочная программа предназначена для внедрения НОС. Доступны версии на английском и французском языках.
B72: 71 | C72: =Backbone!A183 -> Рамочная программа для оценки систем эпиднадзора за здоровьем человека с целью раннего обнаружения вспышек заболеваний | D72: Оперативная рамочная программа по планированию и оценке систем синдромного надзора. Она помогает планировать и оценивать всю систему эпиднадзора на предмет соответствия ряду самоопределенных критериев | E72: https://www.researchgate.net/publication/8576839_Framework_for_Evaluating_Public_Health_Surveillance_Systems_for_Early_Detection_of_Outbreaks_Recommendations_from_the_CDC_Working_Group
B73: 72 | C73: =Backbone!A33 -> Рамочная программа для укрепления мер профилактики и борьбы с сибирской язвой | D73: Данная рамочная программа рассказывает о сибирской язве и о том, как усилить меры профилактики и борьбы с сибирской язвой у животных и людей. Она предназначена для чиновников систем общественного здравоохранения и охраны здоровья животных в эндемичных по сибирской язве странах. Программу можно использовать для обучения мерам профилактики и борьбы с сибирской язвой или в качестве краткого справочника для плановых органов в сфере общественного здравоохранения. | E73: https://www.cdc.gov/anthrax/resources/anthrax-framework.html | H73: https://wwwnc.cdc.gov/eid/article/23/13/17-0431_article
B74: 73 | C74: =Backbone!A137 -> Рамочная программа ЕФСА для сбора данных | D74: Онлайн-инструмент для сбора данных. Данные обязательны к подаче всеми странами-членами ЕС. Он предназначен для упрощения процесса сбора данных по зоонозам между сторонами и их последующего обмена, а также извлечения и повторного использования данных. | E74: https://dcf.efsa.europa.eu/dcf-war/dc | F74: Требуется авторизация. Электронная почта для получения дополнительной информации: Mario.MONGUIDI@efsa.europa.eu | G74: https://efsa.onlinelibrary.wiley.com/doi/pdf/10.2903/j.efsa.2014.3945
B75: 74 | C75: =Backbone!A561 -> Рамочная программа по оценке эпиднадзора за биозащитой (SurF) | D75: Рамочная программа оценки систем эпиднадзора, которую можно использовать для обеспечения биозащиты, здоровья животных и растений. Она была разработана Министерством сельского и лесного хозяйства Новой Зеландии для внутреннего пользования, но сейчас доступна для любой организации. | E75: https://www.mpi.govt.nz/dmsdocument/18091/direct | H75: https://onlinelibrary.wiley.com/doi/full/10.1111/tbed.12898
B76: 75 | C76: =Backbone!A510 -> Рамочная программа по оценке эпиднадзора за здоровьем животных (SERVAL) | D76: Пошаговое руководство по планированию, структурированию и оценке систем надзора за здоровьем животных, проверенное и испытанное на ветеринарном секторе Великобритании. Оно предназначено для комплексной оценки как отдельных элементов эпиднадзора (мероприятий), так и целых программ эпиднадзора. | E76: https://www.rvc.ac.uk/Media/Default/VEEPH/Documents/SERVAL.pdf
B77: 76 | C77: =Backbone!A176 -> Руководство для разработки планов эпиднадзора за болезнями животных | D77: Общий шаблон с рамочной программой для планирования эпиднадзора за инфекционными заболеваниями | E77: http://www.fao.org/3/cb3252en/cb3252en.pdf
B78: 77 | C78: =Backbone!A51 -> Руководство для сбора данных о потенциале страны в отношении охраны здоровья в пограничных районах (BHCDG) | D78: В Руководстве для сбора данных о потенциале страны в отношении охраны здоровья в пограничных районах содержатся шаблонные инструменты, которые помогают проводить обсуждения с представителями национальных, районных и наземных пограничных служб по семи темам, связанным с охраной здоровья на границе: 1. Особенности пограничного пункта 2. Наличие медико-санитарных служб 3. Планирование мер реагирования и соответствующее обучение 4. Системы эпиднадзора 5. Системы коммуникации 6. Социальная мобилизация 7. Обмен информацией между граничащими странами и регионами. | F78: Более подробную информацию по данному ресурсу можно запросить у Глобальной группы ЦКПЗ по охране здоровья в пограничных районах по электронной почте: gbht@cdc.gov
B79: 78 | C79: =Backbone!A59 -> Руководящие принципы в отношении уровня компетенции специалистов, работающих в лабораториях общественного здравоохранения: ЦКПЗ и Ассоциация лабораторий общественного здравоохранения | D79: Настоящие руководящие принципы обозначают знания, навыки и способности, которыми должны обладать специалисты лабораторий общественного здравоохранения (ЛОЗ), чтобы эффективно и результативно предоставлять основные услуги ЛОЗ. | E79: https://www.cdc.gov/mmwr/preview/mmwrhtml/su6401a1.htm?s_cid=su6401a1_w | F79: Может использоваться для определенных видов мероприятий государственного сектора и, тем самым, способствовать построению элементов координированного эпиднадзора.
B80: 79 | C80: =Backbone!A418 -> Сборник материалов для организации единых пунктов пограничного контроля | D80: Настоящий ресурс, разработанный странами Восточной Африки и непосредственно применимый к ним, дает подробное описание ряда соображений, которые следует принимать во внимание национальным ведомствам двух граничащих стран при организации общей системы контроля перемещений людей и товаров через приоритетные наземные пограничные пункты. | E80: https://www.tralac.org/documents/resources/african-union/1682-osbp-sourcebook-2nd-edition-may-2016/file.html
B81: 80 | C81: =Backbone!A332 -> Сеть для оценки мероприятий на основе концепции «Единое здоровье» (NEOH) | D81: Как часть рамочной программы оценки данная сеть оценивает приверженность системы эпиднадзора принципу «Единое здоровье» (или степень применения подхода «Единое здоровье», ЕЗ), начисляя баллы важнейшим аспектам интеграции, таким как мышление, планирование, работа, обучение, обмен и системная организация в рамках концепции «Единое здоровье», и делает это при помощи стандартных рабочих листов Excel, на каждом из которых нужно ответить не более чем на 17 вопросов. | E81: https://www.wageningenacademic.com/doi/abs/10.3920/978-90-8686-875-9 https://www.wageningenacademic.com/doi/suppl/10.3920/978-90-8686-875-9/suppl_file/%20NEOH_ESM_4_The%20neoh%20evaluation%20tools.xlsx | G81: https://www.wageningenacademic.com/doi/suppl/10.3920/978-90-8686-875-9/suppl_file/%20NEOH_ESM_4_The%20neoh%20evaluation%20tools.xlsx https://www.wageningenacademic.com/doi/suppl/10.3920/978-90-8686-875-9 | H81: https://www.frontiersin.org/articles/10.3389/fpubh.2017.00020/full https://www.frontiersin.org/articles/10.3389/fvets.2018.00033/full https://www.frontiersin.org/articles/10.3389/fpubh.2018.00045/full https://www.frontiersin.org/articles/10.3389/fpubh.2018.00074/full https://www.frontiersin.org/articles/10.3389/fvets.2018.00147/full https://www.frontiersin.org/articles/10.3389/fvets.2018.00163/full https://www.frontiersin.org/articles/10.3389/fvets.2018.00023/full https://www.frontiersin.org/articles/10.3389/fvets.2017.00238/full https://www.frontiersin.org/articles/10.3389/fpubh.2017.00236/full
B82: 81 | C82: =Backbone!A540 -> Система анализа и управления мерами эпиднадзора и реагирования на вспышки (SORMAS) | D82: Мобильная система eHealth с открытым исходным кодом, которая помимо эпиднадзора и раннего обнаружения вспышек обрабатывает процедуры борьбы с заболеваниями и управления вспышками при помощи цифрового эпиднадзора в реальном времени, включая периферийные учреждения здравоохранения и лаборатории. | E82: https://github.com/hzi-braunschweig | F82: Система может быть адаптирована для использования с координированной системой эпиднадзора на основе принципа «Единое здоровье». Электронная почта для получения дополнительной информации: sormas@helmholtz-hzi.de | H82: https://www.ncbi.nlm.nih.gov/pubmed/30147081; https://www.thieme-connect.com/products/ejournals/abstract/10.1055/s-0037-1605995 https://www.ncbi.nlm.nih.gov/pubmed/30373727
B83: 82 | C83: =Backbone!A419 -> Система оценки эффективности ветеринарных служб (ПВС), разработанная Всемирной организацией охраны здоровья животных (МЭБ) | D83: Представляет собой независимую оценку внутри страны группой экспертов, подготовленных МЭБ, которые собирают и анализируют исходную информацию и свидетельства, сведенные воедино во время миссии, в том числе масштабный полевой компонент. Во время миссии используется инструмент ПВС МЭБ, при помощи которого систематически оцениваются 45 критически важных компетенций. По результатам оценки составляется итоговый отчет, в котором в соответствие с международными стандартами МЭБ дается обзор состояния ветеринарных служб, оценивается их эффективность и выявляются сильные и слабые стороны. | E83: https://www.oie.int/solidarity/pvs-pathway/ | F83: Запрос на проведение миссии ПВС следует направлять от делегата страны в МЭБ Генеральному директору МЭБ. | G83: https://rr-asia.oie.int/wp-content/uploads/2019/12/6a-managing-an-oie-pvs-evaluation-part-1_bangkok-dec-2019.pdf
B84: 83 | C84: =Backbone!A288 -> Составление перечня и классификация приоритетных болезней животных, в том числе передаваемых человеку (Phylum) | D84: Данный инструмент классификации и приоритизации разработан для выполнения аналитических этапов протокола. Он представляет собой Excel-файл, состоящий из нескольких модулей. Каждому модулю отведен отдельный рабочий лист, где оценивается определенное воздействие или тип данных. | E84: https://www.oie.int/solidarity/global-studies/categorisation-of-animal-diseases/ | G84: https://www.who.int/ihr/procedures/mission-reports/en/
B85: 84 | C85: =Backbone!A61 -> Стратегии трансграничной межотраслевой коммуникации и координации | D85: Данный инструмент является обучающими модулями для практических семинарных занятий. Он предназначен для содействия заинтересованным сторонам в процессе определения отраслевых механизмов обмена информацией и создания межотраслевых или трансграничных механизмов обмена информацией. Они могут быть подробными и готовыми к эксплуатации либо высокого уровня, в зависимости от задач пользователя. | F85: Для получения более подробной информации или выражения интереса по данному ресурсу свяжитесь с Глобальной группой ЦКПЗ США по охране здоровья в пограничных районах по электронной почте: gbht@cdc.gov | H85: https://wwwnc.cdc.gov/eid/article/23/13/17-0520_article https://www.liebertpub.com/doi/10.1089/hs.2019.0080
B86: 85 | C86: =Backbone!A575 -> Устойчивость к противомикробным препаратам: руководство для разработки национальных планов действий | D86: Руководство для разработки национальных планов действий для решения проблемы устойчивости к противомикробным препаратам. В дополнение к настоящему руководству ВОЗ, совместно с ФАО и МЭБ, разработали ряд вспомогательных инструментов. Среди них: образец круга ведения для предлагаемых координационных механизмов, национальный план действий стандартного образца, образец плана мониторинга и оценки и контрольный перечень. | E86: https://apps.who.int/iris/bitstream/handle/10665/204470/9789241549530_eng.pdf | F86: Данное руководство и вспомогательные материалы могут быть рассмотрены на предмет адаптации для целей эпиднадзора за зоонозами.
B87: 86 | C87: =Backbone!A138 -> Электронная интегрированная система эпиднадзора за болезнями (EIDSS) | D87: Настоящая электронная онлайн-система передачи эпидемиологической информации адаптируется под требования заказчика. Она создана для пассивного и активного эпиднадзора при содействии медицинских и ветеринарных учреждений, для лабораторной диагностики, надзора за переносчиками и управления вспышками заболеваний с целью обеспечения потока информации почти в режиме реального времени для принятия решений по инфекционным заболеваниям. | E87: Github.com/EIDSS

Sheet PP1_tools
B2: Ресурсы по координаторам
AG7: Доступность | AI7: Язык | AK7: Простота использования | AM7: Гибкость | AO7: Потребности в данных | AQ7: Анализ данных | AS7: Приемлемость | AU7: «Единое здоровье» | AW7: Воздействие
AY14: ИСХОДНАЯ ОЦЕНКА | BB14: СКОРРЕКТИРОВАННАЯ ОЦЕНКА (Исходя из предпочтений пользователей)
B18: РЕСУРСЫ УРОВНЯ 1 | D18: КЛАССИФИКАЦИЯ | I18: НАЗВАНИЕ РЕСУРСА | P18: КРАТКОЕ ОПИСАНИЕ | Y18: ВИД РЕСУРСА | AC18: ОБЩАЯ НАПРАВЛЕННОСТЬ РЕСУРСА
AG22: ='Attribute Survey'!S22 -> 0 | AI22: ='Attribute Survey'!S26 -> 0 | AK22: ='Attribute Survey'!S30 -> 0 | AM22: ='Attribute Survey'!S34 -> 0 | AO22: ='Attribute Survey'!S38 -> 0 | AQ22: ='Attribute Survey'!S42 -> 0 | AS22: ='Attribute Survey'!S46 -> 0 | AU22: ='Attribute Survey'!S50 -> 0 | AW22: ='Attribute Survey'!S54 -> 0
D23: Наиболее подходящие ресурсы | I23: =Backbone!A437 -> Анализ политического поля (PFA) | P23: Специализированное картирование заинтересованных сторон, позволяющее визуализировать систему организаций и взаимодействие между ними по конкретному вопросу политики | Y23: =INDEX(Backbone!$R2:$R893,MATCH(I23,Backbone!$A2:$A893,0)) -> Руководящий документ | AC23: =INDEX(Backbone!$S2:$S893,MATCH(I23,Backbone!$A2:$A893,0)) -> «Единое здоровье»; универсальный | AG23: =INDEX(Backbone!$H2:$H893,MATCH(I23,Backbone!$A2:$A893,0)) -> 7.8 | AI23: =INDEX(Backbone!$I2:$I893,MATCH(I23,Backbone!$A2:$A893,0)) -> 8 | AK23: =INDEX(Backbone!$J2:$J893,MATCH(I23,Backbone!$A2:$A893,0)) -> 9.8 | AM23: =INDEX(Backbone!$K2:$K893,MATCH(I23,Backbone!$A2:$A893,0)) -> 10 | AO23: =INDEX(Backbone!$L2:$L893,MATCH(I23,Backbone!$A2:$A893,0)) -> 7.1 | AQ23: =INDEX(Backbone!$M2:$M893,MATCH(I23,Backbone!$A2:$A893,0)) -> 4 | AS23: =INDEX(Backbone!$N2:$N893,MATCH(I23,Backbone!$A2:$A893,0)) -> 7 | AU23: =INDEX(Backbone!$O2:$O893,MATCH(I23,Backbone!$A2:$A893,0)) -> 8.8 | AW23: =INDEX(Backbone!$P2:$P893,MATCH(I23,Backbone!$A2:$A893,0)) -> 5 | AY23: =INDEX(Backbone!$Q2:$Q893,MATCH(I23,Backbone!$A2:$A893,0)) -> 0.75 | BB23: =(AG23*AG22+AI23*AI22+AK23*AK22+AM23*AM22+AO23*AO22+AQ23*AQ22+AS23*AS22+AU23*AU22+AW23*AW22)/(SUM(AG22:AW22)*10) ->  | BE23: Перейти в Реестр ресурсов: | BG23: =HYPERLINK("#"&ADDRESS(MATCH(I23,Toolbox!$C$1:$C$30010),1,,,"Toolbox"),VLOOKUP(I23,Toolbox!$C$1:$C$30010,1,FALSE)) -> Анализ политического поля (PFA)
D30: Другие полезные ресурсы | I30: =Backbone!A2 -> Рамочная программа Африканских ЦКПЗ по надзору на основе сигнальных событий | P30: Руководство для работников системы общественного здравоохранения, стремящихся внедрить надзор на основе событий на всех административных уровнях. | Y30: =INDEX(Backbone!$R2:$R893,MATCH(I30,Backbone!$A2:$A893,0)) -> Руководящий документ | AC30: =INDEX(Backbone!$S2:$S893,MATCH(I30,Backbone!$A2:$A893,0)) -> «Единое здоровье»; универсальный | AG30: =INDEX(Backbone!$H2:$H893,MATCH(I30,Backbone!$A2:$A893,0)) -> 8 | AI30: =INDEX(Backbone!$I2:$I893,MATCH(I30,Backbone!$A2:$A893,0)) -> 6 | AK30: =INDEX(Backbone!$J2:$J893,MATCH(I30,Backbone!$A2:$A893,0)) -> 8.2 | AM30: =INDEX(Backbone!$K2:$K893,MATCH(I30,Backbone!$A2:$A893,0)) -> 8.3 | AO30: =INDEX(Backbone!$L2:$L893,MATCH(I30,Backbone!$A2:$A893,0)) -> 6.1 | AQ30: =INDEX(Backbone!$M2:$M893,MATCH(I30,Backbone!$A2:$A893,0)) -> 3.5 | AS30: =INDEX(Backbone!$N2:$N893,MATCH(I30,Backbone!$A2:$A893,0)) -> 4 | AU30: =INDEX(Backbone!$O2:$O893,MATCH(I30,Backbone!$A2:$A893,0)) -> 7 | AW30: =INDEX(Backbone!$P2:$P893,MATCH(I30,Backbone!$A2:$A893,0)) -> 6 | AY30: =INDEX(Backbone!$Q2:$Q893,MATCH(I30,Backbone!$A2:$A893,0)) -> 0.6322222222 | BB30: =(AG30*AG22+AI30*AI22+AK30*AK22+AM30*AM22+AO30*AO22+AQ30*AQ22+AS30*AS22+AU30*AU22+AW30*AW22)/(SUM(AG22:AW22)*10) ->  | BE30: Перейти в Реестр ресурсов: | BG30: =HYPERLINK("#"&ADDRESS(MATCH(I30,Toolbox!$C$1:$C$300),1,,,"Toolbox"),VLOOKUP(I30,Toolbox!$C$1:$C$300,1,FALSE)) -> Рамочная программа Африканских ЦКПЗ по надзору на основе сигнальных событий
I36: =Backbone!A100 -> Оценка сотрудничества в рамках межотраслевой системы эпиднадзора (ECoSur) | P36: Инструмент, предназначенный для оценки организации и функционирования взаимодействия в системе межотраслевого эпиднадзора и для анализа сильных и слабых сторон такого взаимодействия. | Y36: =INDEX(Backbone!$R2:$R893,MATCH(I36,Backbone!$A2:$A893,0)) -> Инструмент или процесс с методическим руководством/пояснениями | AC36: =INDEX(Backbone!$S2:$S893,MATCH(I36,Backbone!$A2:$A893,0)) -> «Единое здоровье»; универсальный | AG36: =INDEX(Backbone!$H2:$H893,MATCH(I36,Backbone!$A2:$A893,0)) -> 8.3 | AI36: =INDEX(Backbone!$I2:$I893,MATCH(I36,Backbone!$A2:$A893,0)) -> 6 | AK36: =INDEX(Backbone!$J2:$J893,MATCH(I36,Backbone!$A2:$A893,0)) -> 8.5 | AM36: =INDEX(Backbone!$K2:$K893,MATCH(I36,Backbone!$A2:$A893,0)) -> 7.8 | AO36: =INDEX(Backbone!$L2:$L893,MATCH(I36,Backbone!$A2:$A893,0)) -> 8.3 | AQ36: =INDEX(Backbone!$M2:$M893,MATCH(I36,Backbone!$A2:$A893,0)) -> 6.7 | AS36: =INDEX(Backbone!$N2:$N893,MATCH(I36,Backbone!$A2:$A893,0)) -> 3.3 | AU36: =INDEX(Backbone!$O2:$O893,MATCH(I36,Backbone!$A2:$A893,0)) -> 9.1 | AW36: =INDEX(Backbone!$P2:$P893,MATCH(I36,Backbone!$A2:$A893,0)) -> 4.7 | AY36: =INDEX(Backbone!$Q2:$Q893,MATCH(I36,Backbone!$A2:$A893,0)) -> 0.6966666667 | BB36: =(AG36*AG22+AI36*AI22+AK36*AK22+AM36*AM22+AO36*AO22+AQ36*AQ22+AS36*AS22+AU36*AU22+AW36*AW22)/(SUM(AG22:AW22)*10) ->  | BE36: Перейти в Реестр ресурсов: | BG36: =HYPERLINK("#"&ADDRESS(MATCH(I36,Toolbox!$C$1:$C$300),1,,,"Toolbox"),VLOOKUP(I36,Toolbox!$C$1:$C$300,1,FALSE)) -> Оценка сотрудничества в рамках межотраслевой системы эпиднадзора (ECoSur)
I42: =Backbone!A195 -> Комплексная система эпиднадзора и мер реагирования (IDSR) | P42: Стратегия, разработанная с целью укрепить потенциал стран для выявления и подтверждения предполагаемых случаев заболевания и вспышек и реагирования на них, а также для использования информации для прогнозирования событий в области общественного здравоохранения и планирования мер реагирования на них. | Y42: =INDEX(Backbone!$R2:$R893,MATCH(I42,Backbone!$A2:$A893,0)) -> Руководящий документ | AC42: =INDEX(Backbone!$S2:$S893,MATCH(I42,Backbone!$A2:$A893,0)) -> Ориентированный на конкретный сектор; универсальный | AG42: =INDEX(Backbone!$H2:$H893,MATCH(I42,Backbone!$A2:$A893,0)) -> 7.4 | AI42: =INDEX(Backbone!$I2:$I893,MATCH(I42,Backbone!$A2:$A893,0)) -> 10 | AK42: =INDEX(Backbone!$J2:$J893,MATCH(I42,Backbone!$A2:$A893,0)) -> 7.4 | AM42: =INDEX(Backbone!$K2:$K893,MATCH(I42,Backbone!$A2:$A893,0)) -> 8.7 | AO42: =INDEX(Backbone!$L2:$L893,MATCH(I42,Backbone!$A2:$A893,0)) -> 6.7 | AQ42: =INDEX(Backbone!$M2:$M893,MATCH(I42,Backbone!$A2:$A893,0)) -> 4.5 | AS42: =INDEX(Backbone!$N2:$N893,MATCH(I42,Backbone!$A2:$A893,0)) -> 8 | AU42: =INDEX(Backbone!$O2:$O893,MATCH(I42,Backbone!$A2:$A893,0)) -> 7.2 | AW42: =INDEX(Backbone!$P2:$P893,MATCH(I42,Backbone!$A2:$A893,0)) -> 8.5 | AY42: =INDEX(Backbone!$Q2:$Q893,MATCH(I42,Backbone!$A2:$A893,0)) -> 0.76 | BB42: =(AG42*AG22+AI42*AI22+AK42*AK22+AM42*AM22+AO42*AO22+AQ42*AQ22+AS42*AS22+AU42*AU22+AW42*AW22)/(SUM(AG22:AW22)*10) ->  | BE42: Перейти в Реестр ресурсов: | BG42: =HYPERLINK("#"&ADDRESS(MATCH(I42,Toolbox!$C$1:$C$300),1,,,"Toolbox"),VLOOKUP(I42,Toolbox!$C$1:$C$300,1,FALSE)) -> Комплексная система эпиднадзора и мер реагирования (IDSR)
I48: =Backbone!A367 -> Инструмент оценки систем здравоохранения на предмет предотвращения приоритетных зоонозов и борьбы с ними в соответствии с подходом «Единое здоровье» (OH-SAPZ) | P48: Настоящий инструмент призван упростить планомерные оценки национальных структур для координации в рамках подхода «Единое здоровье» с точки зрения профилактики и выявления зоонозов и мер борьбы с ними. | Y48: =INDEX(Backbone!$R2:$R893,MATCH(I48,Backbone!$A2:$A893,0)) -> Инструмент самооценки | AC48: =INDEX(Backbone!$S2:$S893,MATCH(I48,Backbone!$A2:$A893,0)) -> «Единое здоровье»; универсальный | AG48: =INDEX(Backbone!$H2:$H893,MATCH(I48,Backbone!$A2:$A893,0)) -> 7.9 | AI48: =INDEX(Backbone!$I2:$I893,MATCH(I48,Backbone!$A2:$A893,0)) -> 7.3 | AK48: =INDEX(Backbone!$J2:$J893,MATCH(I48,Backbone!$A2:$A893,0)) -> 7.2 | AM48: =INDEX(Backbone!$K2:$K893,MATCH(I48,Backbone!$A2:$A893,0)) -> 7.8 | AO48: =INDEX(Backbone!$L2:$L893,MATCH(I48,Backbone!$A2:$A893,0)) -> 6.5 | AQ48: =INDEX(Backbone!$M2:$M893,MATCH(I48,Backbone!$A2:$A893,0)) -> 5.2 | AS48: =INDEX(Backbone!$N2:$N893,MATCH(I48,Backbone!$A2:$A893,0)) -> 4 | AU48: =INDEX(Backbone!$O2:$O893,MATCH(I48,Backbone!$A2:$A893,0)) -> 8.3 | AW48: =INDEX(Backbone!$P2:$P893,MATCH(I48,Backbone!$A2:$A893,0)) -> 9.7 | AY48: =INDEX(Backbone!$Q2:$Q893,MATCH(I48,Backbone!$A2:$A893,0)) -> 0.71 | BB48: =(AG48*AG22+AI48*AI22+AK48*AK22+AM48*AM22+AO48*AO22+AQ48*AQ22+AS48*AS22+AU48*AU22+AW48*AW22)/(SUM(AG22:AW22)*10) ->  | BE48: Перейти в Реестр ресурсов: | BG48: =HYPERLINK("#"&ADDRESS(MATCH(I48,Toolbox!C1:C300),1,,,"Toolbox"),VLOOKUP(I48,Toolbox!C1:C300,1,FALSE)) -> Инструмент оценки систем здравоохранения на предмет предотвращения приоритетных зоонозов и борьбы с ними в соответствии с подходом «Единое здоровье» (OH-SAPZ)
AG74: Доступность | AI74: Язык | AK74: Простота использования | AM74: Гибкость | AO74: Потребности в данных | AQ74: Анализ данных | AS74: Приемлемость | AU74: «Единое здоровье» | AW74: Воздействие
B80: РЕСУРСЫ УРОВНЯ 3
AY81: ИСХОДНАЯ ОЦЕНКА | BB81: СКОРРЕКТИРОВАННАЯ ОЦЕНКА (Исходя из предпочтений пользователей)
D85: КЛАССИФИКАЦИЯ | I85: НАЗВАНИЕ РЕСУРСА | P85: КРАТКОЕ ОПИСАНИЕ | Y85: ВИД РЕСУРСА | AC85: ОБЩАЯ НАПРАВЛЕННОСТЬ РЕСУРСА
D90: Другие полезные ресурсы | I90: =Backbone!A303 -> Национальный план действий по обеспечению безопасности в области здравоохранения (NAPHS) | P90: Организуемый самими странами процесс планирования, способный ускорить внедрение основных возможностей Международных медико-санитарных правил (ММСП) и основывающийся на концепции «Единое здоровье» и общегосударственном подходе ко всем видам опасностей. | Y90: =INDEX(Backbone!$R2:$R893,MATCH(I90,Backbone!$A2:$A893,0)) -> Руководящий документ | AC90: =INDEX(Backbone!$S2:$S893,MATCH(I90,Backbone!$A2:$A893,0)) -> «Единое здоровье»; универсальный | AG90: =INDEX(Backbone!$H2:$H893,MATCH(I90,Backbone!$A2:$A893,0)) -> 8 | AI90: =INDEX(Backbone!$I2:$I893,MATCH(I90,Backbone!$A2:$A893,0)) -> 9 | AK90: =INDEX(Backbone!$J2:$J893,MATCH(I90,Backbone!$A2:$A893,0)) -> 7.8 | AM90: =INDEX(Backbone!$K2:$K893,MATCH(I90,Backbone!$A2:$A893,0)) -> 10 | AO90: =INDEX(Backbone!$L2:$L893,MATCH(I90,Backbone!$A2:$A893,0)) -> 8 | AQ90: =INDEX(Backbone!$M2:$M893,MATCH(I90,Backbone!$A2:$A893,0)) -> 4.5 | AS90: =INDEX(Backbone!$N2:$N893,MATCH(I90,Backbone!$A2:$A893,0)) -> 10 | AU90: =INDEX(Backbone!$O2:$O893,MATCH(I90,Backbone!$A2:$A893,0)) -> 10 | AW90: =INDEX(Backbone!$P2:$P893,MATCH(I90,Backbone!$A2:$A893,0)) -> 10 | AY90: =INDEX(Backbone!$Q2:$Q893,MATCH(I90,Backbone!$A2:$A893,0)) -> 0.8588888889 | BB90: =(AG90*AG22+AI90*AI22+AK90*AK22+AM90*AM22+AO90*AO22+AQ90*AQ22+AS90*AS22+AU90*AU22+AW90*AW22)/(SUM(AG22:AW22)*10) ->  | BE90: Перейти в Реестр ресурсов: | BG90: =HYPERLINK("#"&ADDRESS(MATCH(I90,Toolbox!$C$1:$C$300),1,,,"Toolbox"),VLOOKUP(I90,Toolbox!$C$1:$C$300,1,FALSE)) -> Национальный план действий по обеспечению безопасности в области здравоохранения (NAPHS)
I96: =Backbone!A400 -> Инструмент для оценки требований и готовности к эпиднадзору на основе концепции «Единое здоровье» (OHSRRT) | P96: Инструмент оценки требований и готовности к эпиднадзору, позволяющий определить уровень готовности страны и собрать требования для развития системы эпиднадзора на основе концепции «Единое здоровье» исходя из важнейших факторов успеха. | Y96: =INDEX(Backbone!$R2:$R893,MATCH(I96,Backbone!$A2:$A893,0)) -> Инструмент самооценки | AC96: =INDEX(Backbone!$S2:$S893,MATCH(I96,Backbone!$A2:$A893,0)) -> «Единое здоровье»; универсальный | AG96: =INDEX(Backbone!$H2:$H893,MATCH(I96,Backbone!$A2:$A893,0)) -> 8 | AI96: =INDEX(Backbone!$I2:$I893,MATCH(I96,Backbone!$A2:$A893,0)) -> 6 | AK96: =INDEX(Backbone!$J2:$J893,MATCH(I96,Backbone!$A2:$A893,0)) -> 7.4 | AM96: =INDEX(Backbone!$K2:$K893,MATCH(I96,Backbone!$A2:$A893,0)) -> 8.7 | AO96: =INDEX(Backbone!$L2:$L893,MATCH(I96,Backbone!$A2:$A893,0)) -> 6 | AQ96: =INDEX(Backbone!$M2:$M893,MATCH(I96,Backbone!$A2:$A893,0)) -> 2.5 | AS96: =INDEX(Backbone!$N2:$N893,MATCH(I96,Backbone!$A2:$A893,0)) -> 2 | AU96: =INDEX(Backbone!$O2:$O893,MATCH(I96,Backbone!$A2:$A893,0)) -> 9.6 | AW96: =INDEX(Backbone!$P2:$P893,MATCH(I96,Backbone!$A2:$A893,0)) -> 5.5 | AY96: =INDEX(Backbone!$Q2:$Q893,MATCH(I96,Backbone!$A2:$A893,0)) -> 0.6188888889 | BB96: =(AG96*AG22+AI96*AI22+AK96*AK22+AM96*AM22+AO96*AO22+AQ96*AQ22+AS96*AS22+AU96*AU22+AW96*AW22)/(SUM(AG22:AW22)*10) ->  | BE96: Перейти в Реестр ресурсов: | BG96: =HYPERLINK("#"&ADDRESS(MATCH(I96,Toolbox!$C$1:$C$300),1,,,"Toolbox"),VLOOKUP(I96,Toolbox!$C$1:$C$300,1,FALSE)) -> Инструмент для оценки требований и готовности к эпиднадзору на основе концепции «Единое здоровье» (OHSRRT)

Sheet PP2_tools
B2: Ресурсы по приоритизации
AG7: Доступность | AI7: Язык | AK7: Простота использования | AM7: Гибкость | AO7: Потребности в данных | AQ7: Анализ данных | AS7: Приемлемость | AU7: «Единое здоровье» | AW7: Воздействие
AY14: ИСХОДНАЯ ОЦЕНКА | BB14: СКОРРЕКТИРОВАННАЯ ОЦЕНКА (Исходя из предпочтений пользователей)
B18: РЕСУРСЫ УРОВНЯ 1 | D18: КЛАССИФИКАЦИЯ | I18: НАЗВАНИЕ РЕСУРСА | P18: КРАТКОЕ ОПИСАНИЕ | Y18: ВИД РЕСУРСА | AC18: ОБЩАЯ НАПРАВЛЕННОСТЬ РЕСУРСА
AG22: ='Attribute Survey'!S22 -> 0 | AI22: ='Attribute Survey'!S26 -> 0 | AK22: ='Attribute Survey'!S30 -> 0 | AM22: ='Attribute Survey'!S34 -> 0 | AO22: ='Attribute Survey'!S38 -> 0 | AQ22: ='Attribute Survey'!S42 -> 0 | AS22: ='Attribute Survey'!S46 -> 0 | AU22: ='Attribute Survey'!S50 -> 0 | AW22: ='Attribute Survey'!S54 -> 0
D23: Наиболее подходящие ресурсы | I23: =Backbone!A97 -> Инструмент Европейского ЦКПЗ для приоритизации угроз инфекционных заболеваний | P23: Инструмент на базе Excel для приоритизации угроз инфекционных заболеваний | Y23: =INDEX(Backbone!$R2:$R893,MATCH(I23,Backbone!$A2:$A893,0)) -> Инструмент самооценки | AC23: =INDEX(Backbone!$S2:$S893,MATCH(I23,Backbone!$A2:$A893,0)) -> Ориентированный на конкретный сектор; универсальный | AG23: =INDEX(Backbone!$H2:$H893,MATCH(I23,Backbone!$A2:$A893,0)) -> 9.8 | AI23: =INDEX(Backbone!$I2:$I893,MATCH(I23,Backbone!$A2:$A893,0)) -> 10 | AK23: =INDEX(Backbone!$J2:$J893,MATCH(I23,Backbone!$A2:$A893,0)) -> 8 | AM23: =INDEX(Backbone!$K2:$K893,MATCH(I23,Backbone!$A2:$A893,0)) -> 8.7 | AO23: =INDEX(Backbone!$L2:$L893,MATCH(I23,Backbone!$A2:$A893,0)) -> 7.1 | AQ23: =INDEX(Backbone!$M2:$M893,MATCH(I23,Backbone!$A2:$A893,0)) -> 4.5 | AS23: =INDEX(Backbone!$N2:$N893,MATCH(I23,Backbone!$A2:$A893,0)) -> 8 | AU23: =INDEX(Backbone!$O2:$O893,MATCH(I23,Backbone!$A2:$A893,0)) -> 8.5 | AW23: =INDEX(Backbone!$P2:$P893,MATCH(I23,Backbone!$A2:$A893,0)) -> 9 | AY23: =INDEX(Backbone!$Q2:$Q893,MATCH(I23,Backbone!$A2:$A893,0)) -> 0.8177777778 | BB23: =(AG23*AG22+AI23*AI22+AK23*AK22+AM23*AM22+AO23*AO22+AQ23*AQ22+AS23*AS22+AU23*AU22+AW23*AW22)/(SUM(AG22:AW22)*10) ->  | BE23: Перейти в Реестр ресурсов: | BG23: =HYPERLINK("#"&ADDRESS(MATCH(I23,Toolbox!$C$1:$C$300),1,,,"Toolbox"),VLOOKUP(I23,Toolbox!$C$1:$C$300,1,FALSE)) -> Инструмент Европейского ЦКПЗ для приоритизации угроз инфекционных заболеваний
I29: =Backbone!A367 -> Инструмент оценки систем здравоохранения на предмет предотвращения приоритетных зоонозов и борьбы с ними в соответствии с подходом «Единое здоровье» (OH-SAPZ) | P29: Настоящий инструмент призван упростить планомерные оценки национальных структур для координации в рамках подхода «Единое здоровье» с точки зрения профилактики и выявления зоонозов и мер борьбы с ними. | Y29: =INDEX(Backbone!$R2:$R893,MATCH(I29,Backbone!$A2:$A893,0)) -> Инструмент самооценки | AC29: =INDEX(Backbone!$S2:$S893,MATCH(I29,Backbone!$A2:$A893,0)) -> «Единое здоровье»; универсальный | AG29: =INDEX(Backbone!$H2:$H893,MATCH(I29,Backbone!$A2:$A893,0)) -> 7.9 | AI29: =INDEX(Backbone!$I2:$I893,MATCH(I29,Backbone!$A2:$A893,0)) -> 7.3 | AK29: =INDEX(Backbone!$J2:$J893,MATCH(I29,Backbone!$A2:$A893,0)) -> 7.2 | AM29: =INDEX(Backbone!$K2:$K893,MATCH(I29,Backbone!$A2:$A893,0)) -> 7.8 | AO29: =INDEX(Backbone!$L2:$L893,MATCH(I29,Backbone!$A2:$A893,0)) -> 6.5 | AQ29: =INDEX(Backbone!$M2:$M893,MATCH(I29,Backbone!$A2:$A893,0)) -> 5.2 | AS29: =INDEX(Backbone!$N2:$N893,MATCH(I29,Backbone!$A2:$A893,0)) -> 4 | AU29: =INDEX(Backbone!$O2:$O893,MATCH(I29,Backbone!$A2:$A893,0)) -> 8.3 | AW29: =INDEX(Backbone!$P2:$P893,MATCH(I29,Backbone!$A2:$A893,0)) -> 9.7 | AY29: =INDEX(Backbone!$Q2:$Q893,MATCH(I29,Backbone!$A2:$A893,0)) -> 0.71 | BB29: =(AG29*AG22+AI29*AI22+AK29*AK22+AM29*AM22+AO29*AO22+AQ29*AQ22+AS29*AS22+AU29*AU22+AW29*AW22)/(SUM(AG22:AW22)*10) ->  | BE29: Перейти в Реестр ресурсов: | BG29: =HYPERLINK("#"&ADDRESS(MATCH(I29,Toolbox!$C$1:$C$300),1,,,"Toolbox"),VLOOKUP(I29,Toolbox!$C$1:$C$300,1,FALSE)) -> Инструмент оценки систем здравоохранения на предмет предотвращения приоритетных зоонозов и борьбы с ними в соответствии с подходом «Единое здоровье» (OH-SAPZ)
I35: =Backbone!A415 -> Процесс приоритизации зоонозов на основе концепции «Единое здоровье» (OHZDP) | P35: Инструмент на базе Excel, представляющий собой пошаговое руководство для принятия решений и осуществления межотраслевого процесса приоритизации на основе концепции «Единое здоровье» в форме семинара. | Y35: =INDEX(Backbone!$R2:$R893,MATCH(I35,Backbone!$A2:$A893,0)) -> Инструмент или процесс с методическим руководством/пояснениями | AC35: =INDEX(Backbone!$S2:$S893,MATCH(I35,Backbone!$A2:$A893,0)) -> «Единое здоровье»; универсальный | AG35: =INDEX(Backbone!$H2:$H893,MATCH(I35,Backbone!$A2:$A893,0)) -> 8 | AI35: =INDEX(Backbone!$I2:$I893,MATCH(I35,Backbone!$A2:$A893,0)) -> 9.3 | AK35: =INDEX(Backbone!$J2:$J893,MATCH(I35,Backbone!$A2:$A893,0)) -> 9.1 | AM35: =INDEX(Backbone!$K2:$K893,MATCH(I35,Backbone!$A2:$A893,0)) -> 6.7 | AO35: =INDEX(Backbone!$L2:$L893,MATCH(I35,Backbone!$A2:$A893,0)) -> 7 | AQ35: =INDEX(Backbone!$M2:$M893,MATCH(I35,Backbone!$A2:$A893,0)) -> 7.3 | AS35: =INDEX(Backbone!$N2:$N893,MATCH(I35,Backbone!$A2:$A893,0)) -> 8.3 | AU35: =INDEX(Backbone!$O2:$O893,MATCH(I35,Backbone!$A2:$A893,0)) -> 9.1 | AW35: =INDEX(Backbone!$P2:$P893,MATCH(I35,Backbone!$A2:$A893,0)) -> 9.3 | AY35: =INDEX(Backbone!$Q2:$Q893,MATCH(I35,Backbone!$A2:$A893,0)) -> 0.8233333333 | BB35: =(AG35*AG22+AI35*AI22+AK35*AK22+AM35*AM22+AO35*AO22+AQ35*AQ22+AS35*AS22+AU35*AU22+AW35*AW22)/(SUM(AG22:AW22)*10) ->  | BE35: Перейти в Реестр ресурсов: | BG35: =HYPERLINK("#"&ADDRESS(MATCH(I35,Toolbox!$C$1:$C$300),1,,,"Toolbox"),VLOOKUP(I35,Toolbox!$C$1:$C$300,1,FALSE)) -> Процесс приоритизации зоонозов на основе концепции «Единое здоровье» (OHZDP)
D42: Другие полезные ресурсы | I42: =Backbone!A288 -> Составление перечня и классификация приоритетных болезней животных, в том числе передаваемых человеку (Phylum) | P42: Данный инструмент классификации и приоритизации на базе Excel разработан для выполнения аналитических этапов протокола. | Y42: =INDEX(Backbone!$R2:$R893,MATCH(I42,Backbone!$A2:$A893,0)) -> Инструмент самооценки | AC42: =INDEX(Backbone!$S2:$S893,MATCH(I42,Backbone!$A2:$A893,0)) -> Ориентированный на конкретный сектор; универсальный | AG42: =INDEX(Backbone!$H2:$H893,MATCH(I42,Backbone!$A2:$A893,0)) -> 6.9 | AI42: =INDEX(Backbone!$I2:$I893,MATCH(I42,Backbone!$A2:$A893,0)) -> 8 | AK42: =INDEX(Backbone!$J2:$J893,MATCH(I42,Backbone!$A2:$A893,0)) -> 6.2 | AM42: =INDEX(Backbone!$K2:$K893,MATCH(I42,Backbone!$A2:$A893,0)) -> 8.3 | AO42: =INDEX(Backbone!$L2:$L893,MATCH(I42,Backbone!$A2:$A893,0)) -> 7.5 | AQ42: =INDEX(Backbone!$M2:$M893,MATCH(I42,Backbone!$A2:$A893,0)) -> 7.3 | AS42: =INDEX(Backbone!$N2:$N893,MATCH(I42,Backbone!$A2:$A893,0)) -> 5.5 | AU42: =INDEX(Backbone!$O2:$O893,MATCH(I42,Backbone!$A2:$A893,0)) -> 8.7 | AW42: =INDEX(Backbone!$P2:$P893,MATCH(I42,Backbone!$A2:$A893,0)) -> 4 | AY42: =INDEX(Backbone!$Q2:$Q893,MATCH(I42,Backbone!$A2:$A893,0)) -> 0.6933333333 | BB42: =(AG42*AG22+AI42*AI22+AK42*AK22+AM42*AM22+AO42*AO22+AQ42*AQ22+AS42*AS22+AU42*AU22+AW42*AW22)/(SUM(AG22:AW22)*10) ->  | BE42: Перейти в Реестр ресурсов: | BG42: =HYPERLINK("#"&ADDRESS(MATCH(I42,Toolbox!$C$1:$C$300),1,,,"Toolbox"),VLOOKUP(I42,Toolbox!$C$1:$C$300,1,FALSE)) -> Составление перечня и классификация приоритетных болезней животных, в том числе передаваемых человеку (Phylum)

Sheet PP3_tools
B2: Ресурсы по постановке целей
AG7: Доступность | AI7: Язык | AK7: Простота использования | AM7: Гибкость | AO7: Потребности в данных | AQ7: Анализ данных | AS7: Приемлемость | AU7: «Единое здоровье» | AW7: Воздействие
AY14: ИСХОДНАЯ ОЦЕНКА | BB14: СКОРРЕКТИРОВАННАЯ ОЦЕНКА (Исходя из предпочтений пользователей)
B18: РЕСУРСЫ УРОВНЯ 1 | D18: КЛАССИФИКАЦИЯ | I18: НАЗВАНИЕ РЕСУРСА | P18: КРАТКОЕ ОПИСАНИЕ | Y18: ВИД РЕСУРСА | AC18: ОБЩАЯ НАПРАВЛЕННОСТЬ РЕСУРСА
AG22: ='Attribute Survey'!S22 -> 0 | AI22: ='Attribute Survey'!S26 -> 0 | AK22: ='Attribute Survey'!S30 -> 0 | AM22: ='Attribute Survey'!S34 -> 0 | AO22: ='Attribute Survey'!S38 -> 0 | AQ22: ='Attribute Survey'!S42 -> 0 | AS22: ='Attribute Survey'!S46 -> 0 | AU22: ='Attribute Survey'!S50 -> 0 | AW22: ='Attribute Survey'!S54 -> 0
D23: Наиболее подходящие ресурсы | I23: Комплексная система эпиднадзора и мер реагирования (IDSR) | P23: Стратегия, разработанная с целью укрепить потенциал стран для выявления и подтверждения предполагаемых случаев заболевания и вспышек и реагирования на них, а также для использования информации для прогнозирования событий в области общественного здравоохранения и планирования мер реагирования на них. | Y23: =INDEX(Backbone!R2:R893,MATCH(I23,Backbone!A2:A893,0)) -> Руководящий документ | AC23: =INDEX(Backbone!S2:S893,MATCH(I23,Backbone!A2:A893,0)) -> Ориентированный на конкретный сектор; универсальный | AG23: =INDEX(Backbone!H2:H893,MATCH(I23,Backbone!A2:A893,0)) -> 7.4 | AI23: =INDEX(Backbone!I2:I893,MATCH(I23,Backbone!A2:A893,0)) -> 10 | AK23: =INDEX(Backbone!J2:J893,MATCH(I23,Backbone!A2:A893,0)) -> 7.4 | AM23: =INDEX(Backbone!K2:K893,MATCH(I23,Backbone!A2:A893,0)) -> 8.7 | AO23: =INDEX(Backbone!L2:L893,MATCH(I23,Backbone!A2:A893,0)) -> 6.7 | AQ23: =INDEX(Backbone!M2:M893,MATCH(I23,Backbone!A2:A893,0)) -> 4.5 | AS23: =INDEX(Backbone!N2:N893,MATCH(I23,Backbone!A2:A893,0)) -> 8 | AU23: =INDEX(Backbone!O2:O893,MATCH(I23,Backbone!A2:A893,0)) -> 7.2 | AW23: =INDEX(Backbone!P2:P893,MATCH(I23,Backbone!A2:A893,0)) -> 8.5 | AY23: =INDEX(Backbone!Q2:Q893,MATCH(I23,Backbone!A2:A893,0)) -> 0.76 | BB23: =(AG23*AG22+AI23*AI22+AK23*AK22+AM23*AM22+AO23*AO22+AQ23*AQ22+AS23*AS22+AU23*AU22+AW23*AW22)/(SUM(AG22:AW22)*10) ->  | BE23: Перейти в Реестр ресурсов: | BG23: =HYPERLINK("#"&ADDRESS(MATCH(I23,Toolbox!$C$1:$C$300),1,,,"Toolbox"),VLOOKUP(I23,Toolbox!$C$1:$C$300,1,FALSE)) -> Комплексная система эпиднадзора и мер реагирования (IDSR)
